Workbook

Sheet Sheet1
R4: 3. กดปุ่มวิเคราะห์ข้อมูล
L5: ทองจุล ขันขาว
L6: http://www.thongjoon.com
B8: จำนวนแบบทดสอบ | D8: 8 | E8: ฉบับ | G8: ลักษณะตัวเลือก | J8: ก | K8: ข | L8: ค | M8: ง | N8: จ | Q8: ข้อสอบแต่ละฉบับ มีจำนวน | V8: 100 | W8: ข้อ | GU8: (จำนวนข้อสูงสุด ไม่เกิน 200 ข้อ นะครับ)
B9: 1. กำหนดข้อที่ถูกของทุกข้อคำถาม
B10: ข้อ | C10: 1 | D10: 2 | E10: 3 | F10: 4 | G10: 5 | H10: 6 | I10: 7 | J10: 8 | K10: 9 | L10: 10 | M10: 11 | N10: 12 | O10: 13 | P10: 14 | Q10: 15 | R10: 16 | S10: 17 | T10: 18 | U10: 19 | V10: 20 | W10: 21 | X10: 22 | Y10: 23 | Z10: 24 | AA10: 25 | AB10: 26 | AC10: 27 | AD10: 28 | AE10: 29 | AF10: 30 | AG10: 31 | AH10: 32 | AI10: 33 | AJ10: 34 | AK10: 35 | AL10: 36 | AM10: 37 | AN10: 38 | AO10: 39 | AP10: 40 | AQ10: 41 | AR10: 42 | AS10: 43 | AT10: 44 | AU10: 45 | AV10: 46 | AW10: 47 | AX10: 48 | AY10: 49 | AZ10: 50 | BA10: 51 | BB10: 52 | BC10: 53 | BD10: 54 | BE10: 55 | BF10: 56 | BG10: 57 | BH10: 58 | BI10: 59 | BJ10: 60 | BK10: 61 | BL10: 62 | BM10: 63 | BN10: 64 | BO10: 65 | BP10: 66 | BQ10: 67 | BR10: 68 | BS10: 69 | BT10: 70 | BU10: 71 | BV10: 72 | BW10: 73 | BX10: 74 | BY10: 75 | BZ10: 76 | CA10: 77 | CB10: 78 | CC10: 79 | CD10: 80 | CE10: 81 | CF10: 82 | CG10: 83 | CH10: 84 | CI10: 85 | CJ10: 86 | CK10: 87 | CL10: 88 | CM10: 89 | CN10: 90 | CO10: 91 | CP10: 92 | CQ10: 93 | CR10: 94 | CS10: 95 | CT10: 96 | CU10: 97 | CV10: 98 | CW10: 99 | CX10: 100
B11: คำตอบที่ถูก | C11: ค | D11: จ | E11: ค | F11: ค | G11: ก | H11: ข | I11: ก | J11: ข | K11: ก | L11: ข | M11: ข | N11: ค | O11: ข | P11: ข | Q11: ง | R11: ข | S11: ข | T11: ก | U11: ข | V11: ค | W11: ก | X11: ค | Y11: ค | Z11: ก | AA11: ง | AB11: ข | AC11: ค | AD11: ค | AE11: ข | AF11: ข | AG11: ค | AH11: ก | AI11: ข | AJ11: ก | AK11: ข | AL11: ก | AM11: ข | AN11: ข | AO11: ค | AP11: ข | AQ11: ข | AR11: ง | AS11: ข | AT11: ง | AU11: ก | AV11: ข | AW11: ค | AX11: ก | AY11: ค | AZ11: ค | BA11: ก | BB11: ง | BC11: ข | BD11: ค | BE11: ค | BF11: ข | BG11: ข | BH11: ค | BI11: ก | BJ11: ข | BK11: ก | BL11: ก | BM11: ก | BN11: ข | BO11: ข | BP11: ค | BQ11: ข | BR11: ข | BS11: ง | BT11: ข | BU11: ง | BV11: ข | BW11: ข | BX11: ค | BY11: ก | BZ11: ค | CA11: ข | CB11: ก | CC11: ง | CD11: ข | CE11: ค | CF11: ค | CG11: ข | CH11: ข | CI11: ค | CJ11: ก | CK11: ข | CL11: ก | CM11: ก | CN11: ก | CO11: ข | CP11: ข | CQ11: ค | CR11: ข | CS11: ข | CT11: ง | CU11: ข | CV11: ง | CW11: ก | CX11: ข
B13: 2. กรอกคำตอบของผู้ทำแบบทดสอบ แต่ละคน (สูงสุด ไม่เกิน 2,000 คน)
B14: ฉบับ\ข้อ | C14: 1 | D14: 2 | E14: 3 | F14: 4 | G14: 5 | H14: 6 | I14: 7 | J14: 8 | K14: 9 | L14: 10 | M14: 11 | N14: 12 | O14: 13 | P14: 14 | Q14: 15 | R14: 16 | S14: 17 | T14: 18 | U14: 19 | V14: 20 | W14: 21 | X14: 22 | Y14: 23 | Z14: 24 | AA14: 25 | AB14: 26 | AC14: 27 | AD14: 28 | AE14: 29 | AF14: 30 | AG14: 31 | AH14: 32 | AI14: 33 | AJ14: 34 | AK14: 35 | AL14: 36 | AM14: 37 | AN14: 38 | AO14: 39 | AP14: 40 | AQ14: 41 | AR14: 42 | AS14: 43 | AT14: 44 | AU14: 45 | AV14: 46 | AW14: 47 | AX14: 48 | AY14: 49 | AZ14: 50 | BA14: 51 | BB14: 52 | BC14: 53 | BD14: 54 | BE14: 55 | BF14: 56 | BG14: 57 | BH14: 58 | BI14: 59 | BJ14: 60 | BK14: 61 | BL14: 62 | BM14: 63 | BN14: 64 | BO14: 65 | BP14: 66 | BQ14: 67 | BR14: 68 | BS14: 69 | BT14: 70 | BU14: 71 | BV14: 72 | BW14: 73 | BX14: 74 | BY14: 75 | BZ14: 76 | CA14: 77 | CB14: 78 | CC14: 79 | CD14: 80 | CE14: 81 | CF14: 82 | CG14: 83 | CH14: 84 | CI14: 85 | CJ14: 86 | CK14: 87 | CL14: 88 | CM14: 89 | CN14: 90 | CO14: 91 | CP14: 92 | CQ14: 93 | CR14: 94 | CS14: 95 | CT14: 96 | CU14: 97 | CV14: 98 | CW14: 99 | CX14: 100
B15: 1 | C15: ค | D15: ข | E15: ก | F15: ง | G15: ค | H15: ค | I15: ง | J15: ข | K15: ง | L15: ง | M15: ก | N15: ก | O15: ค | P15: ก | Q15: ก | R15: ข | S15: ง | T15: ก | U15: ง | V15: ง | W15: ค | X15: ข | Y15: ง | Z15: ก | AA15: ง | AB15: ง | AC15: ข | AD15: ค | AE15: ข | AF15: ก | AG15: ง | AH15: ค | AI15: ค | AJ15: ง | AK15: ข | AL15: ง | AM15: ง | AN15: ก | AO15: ก | AP15: ค | AQ15: ก | AR15: ก | AS15: ข | AT15: ง | AU15: ก | AV15: ง | AW15: ง | AX15: ค | AY15: ข | AZ15: ง | BA15: ก | BB15: ง | BC15: ง | BD15: ข | BE15: ค | BF15: ข | BG15: ก | BH15: ง | BI15: ค | BJ15: ค | BK15: ง | BL15: ข | BM15: ง | BN15: ง | BO15: ก | BP15: ก | BQ15: ค | BR15: ก | BS15: ก | BT15: ข | BU15: ง | BV15: ก | BW15: ง | BX15: ง | BY15: ค | BZ15: ข | CA15: ง | CB15: ก | CC15: ง | CD15: ง | CE15: ข | CF15: ค | CG15: ข | CH15: ก | CI15: ง | CJ15: ค | CK15: ค | CL15: ง | CM15: ข | CN15: ง | CO15: ง | CP15: ก | CQ15: ก | CR15: ค | CS15: ก | CT15: ก | CU15: ข | CV15: ง | CW15: ก | CX15: ง
B16: 2 | C16: ค | D16: ข | E16: ค | F16: ข | G16: ข | H16: ก | I16: ง | J16: ง | K16: ข | L16: ค | M16: ค | N16: ก | O16: ค | P16: ค | Q16: ก | R16: ง | S16: ก | T16: ก | U16: ข | V16: ง | W16: ค | X16: ง | Y16: ข | Z16: ข | AA16: ง | AB16: ค | AC16: ง | AD16: ค | AE16: ข | AF16: ค | AG16: ข | AH16: ข | AI16: ก | AJ16: ง | AK16: ง | AL16: ข | AM16: ค | AN16: ค | AO16: ก | AP16: ค | AQ16: ค | AR16: ก | AS16: ง | AT16: ก | AU16: ก | AV16: ข | AW16: ง | AX16: ค | AY16: ง | AZ16: ข | BA16: ข | BB16: ง | BC16: ค | BD16: ง | BE16: ค | BF16: ข | BG16: ค | BH16: ข | BI16: ข | BJ16: ก | BK16: ง | BL16: ง | BM16: ข | BN16: ค | BO16: ค | BP16: ก | BQ16: ค | BR16: ค | BS16: ก | BT16: ง | BU16: ก | BV16: ก | BW16: ข | BX16: ง | BY16: ค | BZ16: ง | CA16: ข | CB16: ข | CC16: ง | CD16: ค | CE16: ง | CF16: ค | CG16: ข | CH16: ค | CI16: ข | CJ16: ข | CK16: ก | CL16: ง | CM16: ง | CN16: ข | CO16: ค | CP16: ค | CQ16: ก | CR16: ค | CS16: ค | CT16: ก | CU16: ง | CV16: ก | CW16: ก | CX16: ข
B17: 3 | C17: ค | D17: ง | E17: ข | F17: ข | G17: ง | H17: ง | I17: ง | J17: ก | K17: ก | L17: ข | M17: ง | N17: ง | O17: ข | P17: ค | Q17: ข | R17: ก | S17: ก | T17: ค | U17: ค | V17: ข | W17: ค | X17: ข | Y17: ค | Z17: ง | AA17: ค | AB17: ค | AC17: ข | AD17: ค | AE17: ง | AF17: ข | AG17: ข | AH17: ง | AI17: ง | AJ17: ง | AK17: ก | AL17: ก | AM17: ข | AN17: ง | AO17: ง | AP17: ข | AQ17: ค | AR17: ข | AS17: ก | AT17: ก | AU17: ค | AV17: ค | AW17: ข | AX17: ค | AY17: ข | AZ17: ค | BA17: ง | BB17: ค | BC17: ค | BD17: ข | BE17: ค | BF17: ง | BG17: ข | BH17: ข | BI17: ง | BJ17: ง | BK17: ง | BL17: ก | BM17: ก | BN17: ข | BO17: ง | BP17: ง | BQ17: ข | BR17: ค | BS17: ข | BT17: ก | BU17: ก | BV17: ค | BW17: ค | BX17: ข | BY17: ค | BZ17: ข | CA17: ค | CB17: ง | CC17: ค | CD17: ค | CE17: ข | CF17: ค | CG17: ง | CH17: ข | CI17: ข | CJ17: ง | CK17: ง | CL17: ง | CM17: ก | CN17: ก | CO17: ข | CP17: ง | CQ17: ง | CR17: ข | CS17: ค | CT17: ข | CU17: ก | CV17: ก | CW17: ค | CX17: ค
B18: 4 | C18: ค | D18: ข | E18: ข | F18: ค | G18: ก | H18: ข | I18: ก | J18: ก | K18: ก | L18: ข | M18: ข | N18: ค | O18: ข | P18: ข | Q18: ง | R18: ข | S18: ง | T18: ก | U18: ข | V18: ค | W18: ก | X18: ค | Y18: ค | Z18: ก | AA18: ง | AB18: ข | AC18: ค | AD18: ค | AE18: ข | AF18: ข | AG18: ค | AH18: ก | AI18: ข | AJ18: ก | AK18: ก | AL18: ก | AM18: ข | AN18: ข | AO18: ค | AP18: ข | AQ18: ข | AR18: ง | AS18: ข | AT18: ง | AU18: ก | AV18: ข | AW18: ค | AX18: ก | AY18: ค | AZ18: ค | BA18: ก | BB18: ง | BC18: ข | BD18: ค | BE18: ค | BF18: ข | BG18: ข | BH18: ค | BI18: ก | BJ18: ข | BK18: ก | BL18: ก | BM18: ก | BN18: ข | BO18: ข | BP18: ค | BQ18: ข | BR18: ข | BS18: ง | BT18: ข | BU18: ง | BV18: ก | BW18: ข | BX18: ค | BY18: ก | BZ18: ค | CA18: ค | CB18: ก | CC18: ง | CD18: ข | CE18: ค | CF18: ค | CG18: ข | CH18: ข | CI18: ค | CJ18: ก | CK18: ข | CL18: ก | CM18: ก | CN18: ก | CO18: ข | CP18: ข | CQ18: ค | CR18: ข | CS18: ข | CT18: ง | CU18: ข | CV18: ง | CW18: ก | CX18: ข
B19: 5 | C19: ค | D19: ค | E19: ง | F19: ข | G19: ก | H19: ง | I19: ก | J19: ข | K19: ค | L19: ง | M19: ง | N19: ข | O19: ค | P19: ค | Q19: ก | R19: ก | S19: ง | T19: ก | U19: ง | V19: ข | W19: ข | X19: ง | Y19: ค | Z19: ก | AA19: ข | AB19: ก | AC19: ค | AD19: ค | AE19: ค | AF19: ง | AG19: ข | AH19: ก | AI19: ง | AJ19: ก | AK19: ข | AL19: ค | AM19: ค | AN19: ง | AO19: ข | AP19: ค | AQ19: ค | AR19: ก | AS19: ก | AT19: ง | AU19: ก | AV19: ง | AW19: ข | AX19: ข | AY19: ง | AZ19: ค | BA19: ก | BB19: ข | BC19: ก | BD19: ค | BE19: ค | BF19: ค | BG19: ง | BH19: ข | BI19: ก | BJ19: ง | BK19: ก | BL19: ข | BM19: ค | BN19: ค | BO19: ง | BP19: ข | BQ19: ค | BR19: ค | BS19: ก | BT19: ก | BU19: ง | BV19: ก | BW19: ง | BX19: ข | BY19: ข | BZ19: ง | CA19: ค | CB19: ก | CC19: ข | CD19: ก | CE19: ค | CF19: ค | CG19: ค | CH19: ง | CI19: ข | CJ19: ก | CK19: ง | CL19: ก | CM19: ข | CN19: ค | CO19: ค | CP19: ง | CQ19: ข | CR19: ค | CS19: ค | CT19: ก | CU19: ก | CV19: ง | CW19: ก | CX19: ง
B20: 6 | C20: ก | D20: ข | E20: ก | F20: ก | G20: ข | H20: ค | I20: ข | J20: ค | K20: ค | L20: ข | M20: ง | N20: ง | O20: ก | P20: ค | Q20: ง | R20: ข | S20: ก | T20: ง | U20: ง | V20: ค | W20: ข | X20: ข | Y20: ก | Z20: ข | AA20: ง | AB20: ง | AC20: ข | AD20: ก | AE20: ข | AF20: ก | AG20: ก | AH20: ข | AI20: ค | AJ20: ข | AK20: ค | AL20: ค | AM20: ข | AN20: ง | AO20: ง | AP20: ก | AQ20: ค | AR20: ง | AS20: ข | AT20: ก | AU20: ง | AV20: ง | AW20: ค | AX20: ข | AY20: ข | AZ20: ก | BA20: ข | BB20: ง | BC20: ง | BD20: ข | BE20: ก | BF20: ข | BG20: ก | BH20: ก | BI20: ข | BJ20: ค | BK20: ข | BL20: ค | BM20: ค | BN20: ข | BO20: ง | BP20: ง | BQ20: ก | BR20: ค | BS20: ง | BT20: ข | BU20: ก | BV20: ง | BW20: ง | BX20: ค | BY20: ข | BZ20: ข | CA20: ก | CB20: ข | CC20: ง | CD20: ง | CE20: ข | CF20: ก | CG20: ข | CH20: ก | CI20: ก | CJ20: ข | CK20: ค | CL20: ข | CM20: ค | CN20: ค | CO20: ข | CP20: ง | CQ20: ง | CR20: ก | CS20: ค | CT20: ง | CU20: ข | CV20: ก | CW20: ง | CX20: ง
B21: 7 | C21: ค | D21: ข | E21: ข | F21: ข | G21: ง | H21: ข | I21: ข | J21: ข | K21: ข | L21: ง | M21: ค | N21: ค | O21: ค | P21: ง | Q21: ก | R21: ค | S21: ค | T21: ง | U21: ข | V21: ง | W21: ก | X21: ข | Y21: ค | Z21: ข | AA21: ข | AB21: ข | AC21: ก | AD21: ค | AE21: ข | AF21: ข | AG21: ข | AH21: ง | AI21: ข | AJ21: ข | AK21: ข | AL21: ข | AM21: ง | AN21: ค | AO21: ค | AP21: ค | AQ21: ง | AR21: ก | AS21: ค | AT21: ค | AU21: ง | AV21: ข | AW21: ง | AX21: ก | AY21: ข | AZ21: ค | BA21: ข | BB21: ข | BC21: ข | BD21: ก | BE21: ค | BF21: ข | BG21: ข | BH21: ข | BI21: ง | BJ21: ข | BK21: ข | BL21: ข | BM21: ข | BN21: ง | BO21: ค | BP21: ค | BQ21: ค | BR21: ง | BS21: ก | BT21: ค | BU21: ค | BV21: ง | BW21: ข | BX21: ง | BY21: ก | BZ21: ข | CA21: ค | CB21: ข | CC21: ข | CD21: ข | CE21: ก | CF21: ค | CG21: ข | CH21: ข | CI21: ข | CJ21: ง | CK21: ข | CL21: ข | CM21: ข | CN21: ข | CO21: ง | CP21: ค | CQ21: ค | CR21: ค | CS21: ง | CT21: ก | CU21: ค | CV21: ค | CW21: ง | CX21: ข
B22: 8 | C22: ง | D22: จ | E22: ก | F22: ง | G22: ง | H22: ก | I22: ก | J22: ง | K22: ค | L22: ก | M22: ง | N22: ค | O22: ค | P22: ง | Q22: ค | R22: ก | S22: ข | T22: ง | U22: ค | V22: ก | W22: ข | X22: ข | Y22: ง | Z22: ข | AA22: ค | AB22: ง | AC22: ข | AD22: ง | AE22: ก | AF22: ก | AG22: ง | AH22: ง | AI22: ก | AJ22: ก | AK22: ง | AL22: ค | AM22: ก | AN22: ง | AO22: ค | AP22: ค | AQ22: ง | AR22: ค | AS22: ก | AT22: ข | AU22: ง | AV22: ค | AW22: ก | AX22: ข | AY22: ข | AZ22: ง | BA22: ข | BB22: ค | BC22: ง | BD22: ข | BE22: ง | BF22: ก | BG22: ก | BH22: ง | BI22: ง | BJ22: ก | BK22: ก | BL22: ง | BM22: ค | BN22: ก | BO22: ง | BP22: ค | BQ22: ค | BR22: ง | BS22: ค | BT22: ก | BU22: ข | BV22: ง | BW22: ค | BX22: ก | BY22: ข | BZ22: ข | CA22: ง | CB22: ข | CC22: ค | CD22: ง | CE22: ข | CF22: ง | CG22: ก | CH22: ก | CI22: ง | CJ22: ง | CK22: ก | CL22: ก | CM22: ง | CN22: ค | CO22: ก | CP22: ง | CQ22: ค | CR22: ค | CS22: ง | CT22: ค | CU22: ก | CV22: ข | CW22: ง | CX22: ค
A2015: เลยบรรทัดนี้ไป เป็นข้อสอบฉบับที่ 2001 แล้วครับ ผมเตรียมวิเคราะห์ไว้แค่ 2000 ฉบับ นะครับ -- ถ้าต้องการมากกว่านี้ ติดต่อ thongjoon@yahoo.com.sg หรือ thongjoon@gmail.com

Sheet Sheet2
G2: ผลการวิเคราะห์ข้อสอบของท่าน
B4: จำนวนข้อสอบ (N) = 8
B6: คำถามข้อที่ | C6: 1 | D6: 2 | E6: 3 | F6: 4 | G6: 5 | H6: 6 | I6: 7 | J6: 8 | K6: 9 | L6: 10 | M6: 11 | N6: 12 | O6: 13 | P6: 14 | Q6: 15 | R6: 16 | S6: 17 | T6: 18 | U6: 19 | V6: 20 | W6: 21 | X6: 22 | Y6: 23 | Z6: 24 | AA6: 25 | AB6: 26 | AC6: 27 | AD6: 28 | AE6: 29 | AF6: 30 | AG6: 31 | AH6: 32 | AI6: 33 | AJ6: 34 | AK6: 35 | AL6: 36 | AM6: 37 | AN6: 38 | AO6: 39 | AP6: 40 | AQ6: 41 | AR6: 42 | AS6: 43 | AT6: 44 | AU6: 45 | AV6: 46 | AW6: 47 | AX6: 48 | AY6: 49 | AZ6: 50 | BA6: 51 | BB6: 52 | BC6: 53 | BD6: 54 | BE6: 55 | BF6: 56 | BG6: 57 | BH6: 58 | BI6: 59 | BJ6: 60 | BK6: 61 | BL6: 62 | BM6: 63 | BN6: 64 | BO6: 65 | BP6: 66 | BQ6: 67 | BR6: 68 | BS6: 69 | BT6: 70 | BU6: 71 | BV6: 72 | BW6: 73 | BX6: 74 | BY6: 75 | BZ6: 76 | CA6: 77 | CB6: 78 | CC6: 79 | CD6: 80 | CE6: 81 | CF6: 82 | CG6: 83 | CH6: 84 | CI6: 85 | CJ6: 86 | CK6: 87 | CL6: 88 | CM6: 89 | CN6: 90 | CO6: 91 | CP6: 92 | CQ6: 93 | CR6: 94 | CS6: 95 | CT6: 96 | CU6: 97 | CV6: 98 | CW6: 99 | CX6: 100
B7: ตอบถูก | C7: 6 | D7: 1 | E7: 1 | F7: 1 | G7: 2 | H7: 2 | I7: 3 | J7: 3 | K7: 2 | L7: 3 | M7: 1 | N7: 3 | O7: 2 | P7: 1 | Q7: 2 | R7: 3 | S7: 1 | T7: 4 | U7: 3 | V7: 2 | W7: 2 | X7: 1 | Y7: 4 | Z7: 3 | AA7: 4 | AB7: 2 | AC7: 2 | AD7: 6 | AE7: 5 | AF7: 3 | AG7: 1 | AH7: 2 | AI7: 2 | AJ7: 3 | AK7: 3 | AL7: 2 | AM7: 3 | AN7: 1 | AO7: 3 | AP7: 2 | AQ7: 1 | AR7: 2 | AS7: 3 | AT7: 3 | AU7: 4 | AV7: 3 | AW7: 2 | AX7: 2 | AY7: 1 | AZ7: 4 | BA7: 3 | BB7: 4 | BC7: 2 | BD7: 2 | BE7: 6 | BF7: 5 | BG7: 3 | BH7: 1 | BI7: 2 | BJ7: 2 | BK7: 3 | BL7: 2 | BM7: 2 | BN7: 3 | BO7: 1 | BP7: 3 | BQ7: 2 | BR7: 1 | BS7: 2 | BT7: 3 | BU7: 3 | BV7: 0 | BW7: 3 | BX7: 2 | BY7: 2 | BZ7: 1 | CA7: 1 | CB7: 3 | CC7: 4 | CD7: 2 | CE7: 2 | CF7: 6 | CG7: 5 | CH7: 3 | CI7: 1 | CJ7: 2 | CK7: 2 | CL7: 3 | CM7: 2 | CN7: 2 | CO7: 3 | CP7: 1 | CQ7: 3 | CR7: 2 | CS7: 1 | CT7: 2 | CU7: 3 | CV7: 3 | CW7: 4 | CX7: 3
B8: ตอบผิด | C8: 2 | D8: 7 | E8: 7 | F8: 7 | G8: 6 | H8: 6 | I8: 5 | J8: 5 | K8: 6 | L8: 5 | M8: 7 | N8: 5 | O8: 6 | P8: 7 | Q8: 6 | R8: 5 | S8: 7 | T8: 4 | U8: 5 | V8: 6 | W8: 6 | X8: 7 | Y8: 4 | Z8: 5 | AA8: 4 | AB8: 6 | AC8: 6 | AD8: 2 | AE8: 3 | AF8: 5 | AG8: 7 | AH8: 6 | AI8: 6 | AJ8: 5 | AK8: 5 | AL8: 6 | AM8: 5 | AN8: 7 | AO8: 5 | AP8: 6 | AQ8: 7 | AR8: 6 | AS8: 5 | AT8: 5 | AU8: 4 | AV8: 5 | AW8: 6 | AX8: 6 | AY8: 7 | AZ8: 4 | BA8: 5 | BB8: 4 | BC8: 6 | BD8: 6 | BE8: 2 | BF8: 3 | BG8: 5 | BH8: 7 | BI8: 6 | BJ8: 6 | BK8: 5 | BL8: 6 | BM8: 6 | BN8: 5 | BO8: 7 | BP8: 5 | BQ8: 6 | BR8: 7 | BS8: 6 | BT8: 5 | BU8: 5 | BV8: 8 | BW8: 5 | BX8: 6 | BY8: 6 | BZ8: 7 | CA8: 7 | CB8: 5 | CC8: 4 | CD8: 6 | CE8: 6 | CF8: 2 | CG8: 3 | CH8: 5 | CI8: 7 | CJ8: 6 | CK8: 6 | CL8: 5 | CM8: 6 | CN8: 6 | CO8: 5 | CP8: 7 | CQ8: 5 | CR8: 6 | CS8: 7 | CT8: 6 | CU8: 5 | CV8: 5 | CW8: 4 | CX8: 5
B9: pi | C9: 0.75 | D9: 0.125 | E9: 0.125 | F9: 0.125 | G9: 0.25 | H9: 0.25 | I9: 0.375 | J9: 0.375 | K9: 0.25 | L9: 0.375 | M9: 0.125 | N9: 0.375 | O9: 0.25 | P9: 0.125 | Q9: 0.25 | R9: 0.375 | S9: 0.125 | T9: 0.5 | U9: 0.375 | V9: 0.25 | W9: 0.25 | X9: 0.125 | Y9: 0.5 | Z9: 0.375 | AA9: 0.5 | AB9: 0.25 | AC9: 0.25 | AD9: 0.75 | AE9: 0.625 | AF9: 0.375 | AG9: 0.125 | AH9: 0.25 | AI9: 0.25 | AJ9: 0.375 | AK9: 0.375 | AL9: 0.25 | AM9: 0.375 | AN9: 0.125 | AO9: 0.375 | AP9: 0.25 | AQ9: 0.125 | AR9: 0.25 | AS9: 0.375 | AT9: 0.375 | AU9: 0.5 | AV9: 0.375 | AW9: 0.25 | AX9: 0.25 | AY9: 0.125 | AZ9: 0.5 | BA9: 0.375 | BB9: 0.5 | BC9: 0.25 | BD9: 0.25 | BE9: 0.75 | BF9: 0.625 | BG9: 0.375 | BH9: 0.125 | BI9: 0.25 | BJ9: 0.25 | BK9: 0.375 | BL9: 0.25 | BM9: 0.25 | BN9: 0.375 | BO9: 0.125 | BP9: 0.375 | BQ9: 0.25 | BR9: 0.125 | BS9: 0.25 | BT9: 0.375 | BU9: 0.375 | BV9: 0 | BW9: 0.375 | BX9: 0.25 | BY9: 0.25 | BZ9: 0.125 | CA9: 0.125 | CB9: 0.375 | CC9: 0.5 | CD9: 0.25 | CE9: 0.25 | CF9: 0.75 | CG9: 0.625 | CH9: 0.375 | CI9: 0.125 | CJ9: 0.25 | CK9: 0.25 | CL9: 0.375 | CM9: 0.25 | CN9: 0.25 | CO9: 0.375 | CP9: 0.125 | CQ9: 0.375 | CR9: 0.25 | CS9: 0.125 | CT9: 0.25 | CU9: 0.375 | CV9: 0.375 | CW9: 0.5 | CX9: 0.375
B10: qi | C10: 0.25 | D10: 0.875 | E10: 0.875 | F10: 0.875 | G10: 0.75 | H10: 0.75 | I10: 0.625 | J10: 0.625 | K10: 0.75 | L10: 0.625 | M10: 0.875 | N10: 0.625 | O10: 0.75 | P10: 0.875 | Q10: 0.75 | R10: 0.625 | S10: 0.875 | T10: 0.5 | U10: 0.625 | V10: 0.75 | W10: 0.75 | X10: 0.875 | Y10: 0.5 | Z10: 0.625 | AA10: 0.5 | AB10: 0.75 | AC10: 0.75 | AD10: 0.25 | AE10: 0.375 | AF10: 0.625 | AG10: 0.875 | AH10: 0.75 | AI10: 0.75 | AJ10: 0.625 | AK10: 0.625 | AL10: 0.75 | AM10: 0.625 | AN10: 0.875 | AO10: 0.625 | AP10: 0.75 | AQ10: 0.875 | AR10: 0.75 | AS10: 0.625 | AT10: 0.625 | AU10: 0.5 | AV10: 0.625 | AW10: 0.75 | AX10: 0.75 | AY10: 0.875 | AZ10: 0.5 | BA10: 0.625 | BB10: 0.5 | BC10: 0.75 | BD10: 0.75 | BE10: 0.25 | BF10: 0.375 | BG10: 0.625 | BH10: 0.875 | BI10: 0.75 | BJ10: 0.75 | BK10: 0.625 | BL10: 0.75 | BM10: 0.75 | BN10: 0.625 | BO10: 0.875 | BP10: 0.625 | BQ10: 0.75 | BR10: 0.875 | BS10: 0.75 | BT10: 0.625 | BU10: 0.625 | BV10: 1 | BW10: 0.625 | BX10: 0.75 | BY10: 0.75 | BZ10: 0.875 | CA10: 0.875 | CB10: 0.625 | CC10: 0.5 | CD10: 0.75 | CE10: 0.75 | CF10: 0.25 | CG10: 0.375 | CH10: 0.625 | CI10: 0.875 | CJ10: 0.75 | CK10: 0.75 | CL10: 0.625 | CM10: 0.75 | CN10: 0.75 | CO10: 0.625 | CP10: 0.875 | CQ10: 0.625 | CR10: 0.75 | CS10: 0.875 | CT10: 0.75 | CU10: 0.625 | CV10: 0.625 | CW10: 0.5 | CX10: 0.625
B11: piqi | C11: 0.1875 | D11: 0.109375 | E11: 0.109375 | F11: 0.109375 | G11: 0.1875 | H11: 0.1875 | I11: 0.234375 | J11: 0.234375 | K11: 0.1875 | L11: 0.234375 | M11: 0.109375 | N11: 0.234375 | O11: 0.1875 | P11: 0.109375 | Q11: 0.1875 | R11: 0.234375 | S11: 0.109375 | T11: 0.25 | U11: 0.234375 | V11: 0.1875 | W11: 0.1875 | X11: 0.109375 | Y11: 0.25 | Z11: 0.234375 | AA11: 0.25 | AB11: 0.1875 | AC11: 0.1875 | AD11: 0.1875 | AE11: 0.234375 | AF11: 0.234375 | AG11: 0.109375 | AH11: 0.1875 | AI11: 0.1875 | AJ11: 0.234375 | AK11: 0.234375 | AL11: 0.1875 | AM11: 0.234375 | AN11: 0.109375 | AO11: 0.234375 | AP11: 0.1875 | AQ11: 0.109375 | AR11: 0.1875 | AS11: 0.234375 | AT11: 0.234375 | AU11: 0.25 | AV11: 0.234375 | AW11: 0.1875 | AX11: 0.1875 | AY11: 0.109375 | AZ11: 0.25 | BA11: 0.234375 | BB11: 0.25 | BC11: 0.1875 | BD11: 0.1875 | BE11: 0.1875 | BF11: 0.234375 | BG11: 0.234375 | BH11: 0.109375 | BI11: 0.1875 | BJ11: 0.1875 | BK11: 0.234375 | BL11: 0.1875 | BM11: 0.1875 | BN11: 0.234375 | BO11: 0.109375 | BP11: 0.234375 | BQ11: 0.1875 | BR11: 0.109375 | BS11: 0.1875 | BT11: 0.234375 | BU11: 0.234375 | BV11: 0 | BW11: 0.234375 | BX11: 0.1875 | BY11: 0.1875 | BZ11: 0.109375 | CA11: 0.109375 | CB11: 0.234375 | CC11: 0.25 | CD11: 0.1875 | CE11: 0.1875 | CF11: 0.1875 | CG11: 0.234375 | CH11: 0.234375 | CI11: 0.109375 | CJ11: 0.1875 | CK11: 0.1875 | CL11: 0.234375 | CM11: 0.1875 | CN11: 0.1875 | CO11: 0.234375 | CP11: 0.109375 | CQ11: 0.234375 | CR11: 0.1875 | CS11: 0.109375 | CT11: 0.1875 | CU11: 0.234375 | CV11: 0.234375 | CW11: 0.25 | CX11: 0.234375
B13: ร้อยละการเลือกตัวเลือกแต่ละข้อ
B14: ข้อ | C14: 1 | D14: 2 | E14: 3 | F14: 4 | G14: 5 | H14: 6 | I14: 7 | J14: 8 | K14: 9 | L14: 10 | M14: 11 | N14: 12 | O14: 13 | P14: 14 | Q14: 15 | R14: 16 | S14: 17 | T14: 18 | U14: 19 | V14: 20 | W14: 21 | X14: 22 | Y14: 23 | Z14: 24 | AA14: 25 | AB14: 26 | AC14: 27 | AD14: 28 | AE14: 29 | AF14: 30 | AG14: 31 | AH14: 32 | AI14: 33 | AJ14: 34 | AK14: 35 | AL14: 36 | AM14: 37 | AN14: 38 | AO14: 39 | AP14: 40 | AQ14: 41 | AR14: 42 | AS14: 43 | AT14: 44 | AU14: 45 | AV14: 46 | AW14: 47 | AX14: 48 | AY14: 49 | AZ14: 50 | BA14: 51 | BB14: 52 | BC14: 53 | BD14: 54 | BE14: 55 | BF14: 56 | BG14: 57 | BH14: 58 | BI14: 59 | BJ14: 60 | BK14: 61 | BL14: 62 | BM14: 63 | BN14: 64 | BO14: 65 | BP14: 66 | BQ14: 67 | BR14: 68 | BS14: 69 | BT14: 70 | BU14: 71 | BV14: 72 | BW14: 73 | BX14: 74 | BY14: 75 | BZ14: 76 | CA14: 77 | CB14: 78 | CC14: 79 | CD14: 80 | CE14: 81 | CF14: 82 | CG14: 83 | CH14: 84 | CI14: 85 | CJ14: 86 | CK14: 87 | CL14: 88 | CM14: 89 | CN14: 90 | CO14: 91 | CP14: 92 | CQ14: 93 | CR14: 94 | CS14: 95 | CT14: 96 | CU14: 97 | CV14: 98 | CW14: 99 | CX14: 100
B15: ข้อ ก | C15: 12.5 | D15: 0 | E15: 37.5 | F15: 12.5 | G15: 25 | H15: 25 | I15: 37.5 | J15: 25 | K15: 25 | L15: 12.5 | M15: 12.5 | N15: 25 | O15: 12.5 | P15: 12.5 | Q15: 50 | R15: 37.5 | S15: 37.5 | T15: 50 | U15: 0 | V15: 12.5 | W15: 25 | X15: 0 | Y15: 12.5 | Z15: 37.5 | AA15: 0 | AB15: 12.5 | AC15: 12.5 | AD15: 12.5 | AE15: 12.5 | AF15: 37.5 | AG15: 12.5 | AH15: 25 | AI15: 25 | AJ15: 37.5 | AK15: 25 | AL15: 25 | AM15: 12.5 | AN15: 12.5 | AO15: 25 | AP15: 12.5 | AQ15: 12.5 | AR15: 50 | AS15: 37.5 | AT15: 37.5 | AU15: 50 | AV15: 0 | AW15: 12.5 | AX15: 25 | AY15: 0 | AZ15: 12.5 | BA15: 37.5 | BB15: 0 | BC15: 12.5 | BD15: 12.5 | BE15: 12.5 | BF15: 12.5 | BG15: 37.5 | BH15: 12.5 | BI15: 25 | BJ15: 25 | BK15: 37.5 | BL15: 25 | BM15: 25 | BN15: 12.5 | BO15: 12.5 | BP15: 25 | BQ15: 12.5 | BR15: 12.5 | BS15: 50 | BT15: 37.5 | BU15: 37.5 | BV15: 50 | BW15: 0 | BX15: 12.5 | BY15: 25 | BZ15: 0 | CA15: 12.5 | CB15: 37.5 | CC15: 0 | CD15: 12.5 | CE15: 12.5 | CF15: 12.5 | CG15: 12.5 | CH15: 37.5 | CI15: 12.5 | CJ15: 25 | CK15: 25 | CL15: 37.5 | CM15: 25 | CN15: 25 | CO15: 12.5 | CP15: 12.5 | CQ15: 25 | CR15: 12.5 | CS15: 12.5 | CT15: 50 | CU15: 37.5 | CV15: 37.5 | CW15: 50 | CX15: 0
B16: ข้อ ข | C16: 0 | D16: 62.5 | E16: 37.5 | F16: 50 | G16: 25 | H16: 25 | I16: 25 | J16: 37.5 | K16: 25 | L16: 37.5 | M16: 12.5 | N16: 12.5 | O16: 25 | P16: 12.5 | Q16: 12.5 | R16: 37.5 | S16: 12.5 | T16: 0 | U16: 37.5 | V16: 25 | W16: 37.5 | X16: 62.5 | Y16: 12.5 | Z16: 50 | AA16: 25 | AB16: 25 | AC16: 50 | AD16: 0 | AE16: 62.5 | AF16: 37.5 | AG16: 50 | AH16: 25 | AI16: 25 | AJ16: 25 | AK16: 37.5 | AL16: 25 | AM16: 37.5 | AN16: 12.5 | AO16: 12.5 | AP16: 25 | AQ16: 12.5 | AR16: 12.5 | AS16: 37.5 | AT16: 12.5 | AU16: 0 | AV16: 37.5 | AW16: 25 | AX16: 37.5 | AY16: 62.5 | AZ16: 12.5 | BA16: 50 | BB16: 25 | BC16: 25 | BD16: 50 | BE16: 0 | BF16: 62.5 | BG16: 37.5 | BH16: 50 | BI16: 25 | BJ16: 25 | BK16: 25 | BL16: 37.5 | BM16: 25 | BN16: 37.5 | BO16: 12.5 | BP16: 12.5 | BQ16: 25 | BR16: 12.5 | BS16: 12.5 | BT16: 37.5 | BU16: 12.5 | BV16: 0 | BW16: 37.5 | BX16: 25 | BY16: 37.5 | BZ16: 62.5 | CA16: 12.5 | CB16: 50 | CC16: 25 | CD16: 25 | CE16: 50 | CF16: 0 | CG16: 62.5 | CH16: 37.5 | CI16: 50 | CJ16: 25 | CK16: 25 | CL16: 25 | CM16: 37.5 | CN16: 25 | CO16: 37.5 | CP16: 12.5 | CQ16: 12.5 | CR16: 25 | CS16: 12.5 | CT16: 12.5 | CU16: 37.5 | CV16: 12.5 | CW16: 0 | CX16: 37.5
B17: ข้อ ค | C17: 75 | D17: 12.5 | E17: 12.5 | F17: 12.5 | G17: 12.5 | H17: 25 | I17: 0 | J17: 12.5 | K17: 37.5 | L17: 12.5 | M17: 25 | N17: 37.5 | O17: 62.5 | P17: 50 | Q17: 12.5 | R17: 12.5 | S17: 12.5 | T17: 12.5 | U17: 25 | V17: 25 | W17: 37.5 | X17: 12.5 | Y17: 50 | Z17: 0 | AA17: 25 | AB17: 25 | AC17: 25 | AD17: 75 | AE17: 12.5 | AF17: 12.5 | AG17: 12.5 | AH17: 12.5 | AI17: 25 | AJ17: 0 | AK17: 12.5 | AL17: 37.5 | AM17: 25 | AN17: 25 | AO17: 37.5 | AP17: 62.5 | AQ17: 50 | AR17: 12.5 | AS17: 12.5 | AT17: 12.5 | AU17: 12.5 | AV17: 25 | AW17: 25 | AX17: 37.5 | AY17: 12.5 | AZ17: 50 | BA17: 0 | BB17: 25 | BC17: 25 | BD17: 25 | BE17: 75 | BF17: 12.5 | BG17: 12.5 | BH17: 12.5 | BI17: 12.5 | BJ17: 25 | BK17: 0 | BL17: 12.5 | BM17: 37.5 | BN17: 25 | BO17: 25 | BP17: 37.5 | BQ17: 62.5 | BR17: 50 | BS17: 12.5 | BT17: 12.5 | BU17: 12.5 | BV17: 12.5 | BW17: 25 | BX17: 25 | BY17: 37.5 | BZ17: 12.5 | CA17: 50 | CB17: 0 | CC17: 25 | CD17: 25 | CE17: 25 | CF17: 75 | CG17: 12.5 | CH17: 12.5 | CI17: 12.5 | CJ17: 12.5 | CK17: 25 | CL17: 0 | CM17: 12.5 | CN17: 37.5 | CO17: 25 | CP17: 25 | CQ17: 37.5 | CR17: 62.5 | CS17: 50 | CT17: 12.5 | CU17: 12.5 | CV17: 12.5 | CW17: 12.5 | CX17: 25
B18: ข้อ ง | C18: 12.5 | D18: 12.5 | E18: 12.5 | F18: 25 | G18: 37.5 | H18: 25 | I18: 37.5 | J18: 25 | K18: 12.5 | L18: 37.5 | M18: 50 | N18: 25 | O18: 0 | P18: 25 | Q18: 25 | R18: 12.5 | S18: 37.5 | T18: 37.5 | U18: 37.5 | V18: 37.5 | W18: 0 | X18: 25 | Y18: 25 | Z18: 12.5 | AA18: 50 | AB18: 37.5 | AC18: 12.5 | AD18: 12.5 | AE18: 12.5 | AF18: 12.5 | AG18: 25 | AH18: 37.5 | AI18: 25 | AJ18: 37.5 | AK18: 25 | AL18: 12.5 | AM18: 25 | AN18: 50 | AO18: 25 | AP18: 0 | AQ18: 25 | AR18: 25 | AS18: 12.5 | AT18: 37.5 | AU18: 37.5 | AV18: 37.5 | AW18: 37.5 | AX18: 0 | AY18: 25 | AZ18: 25 | BA18: 12.5 | BB18: 50 | BC18: 37.5 | BD18: 12.5 | BE18: 12.5 | BF18: 12.5 | BG18: 12.5 | BH18: 25 | BI18: 37.5 | BJ18: 25 | BK18: 37.5 | BL18: 25 | BM18: 12.5 | BN18: 25 | BO18: 50 | BP18: 25 | BQ18: 0 | BR18: 25 | BS18: 25 | BT18: 12.5 | BU18: 37.5 | BV18: 37.5 | BW18: 37.5 | BX18: 37.5 | BY18: 0 | BZ18: 25 | CA18: 25 | CB18: 12.5 | CC18: 50 | CD18: 37.5 | CE18: 12.5 | CF18: 12.5 | CG18: 12.5 | CH18: 12.5 | CI18: 25 | CJ18: 37.5 | CK18: 25 | CL18: 37.5 | CM18: 25 | CN18: 12.5 | CO18: 25 | CP18: 50 | CQ18: 25 | CR18: 0 | CS18: 25 | CT18: 25 | CU18: 12.5 | CV18: 37.5 | CW18: 37.5 | CX18: 37.5
B19: ข้อ จ | C19: 0 | D19: 12.5 | E19: 0 | F19: 0 | G19: 0 | H19: 0 | I19: 0 | J19: 0 | K19: 0 | L19: 0 | M19: 0 | N19: 0 | O19: 0 | P19: 0 | Q19: 0 | R19: 0 | S19: 0 | T19: 0 | U19: 0 | V19: 0 | W19: 0 | X19: 0 | Y19: 0 | Z19: 0 | AA19: 0 | AB19: 0 | AC19: 0 | AD19: 0 | AE19: 0 | AF19: 0 | AG19: 0 | AH19: 0 | AI19: 0 | AJ19: 0 | AK19: 0 | AL19: 0 | AM19: 0 | AN19: 0 | AO19: 0 | AP19: 0 | AQ19: 0 | AR19: 0 | AS19: 0 | AT19: 0 | AU19: 0 | AV19: 0 | AW19: 0 | AX19: 0 | AY19: 0 | AZ19: 0 | BA19: 0 | BB19: 0 | BC19: 0 | BD19: 0 | BE19: 0 | BF19: 0 | BG19: 0 | BH19: 0 | BI19: 0 | BJ19: 0 | BK19: 0 | BL19: 0 | BM19: 0 | BN19: 0 | BO19: 0 | BP19: 0 | BQ19: 0 | BR19: 0 | BS19: 0 | BT19: 0 | BU19: 0 | BV19: 0 | BW19: 0 | BX19: 0 | BY19: 0 | BZ19: 0 | CA19: 0 | CB19: 0 | CC19: 0 | CD19: 0 | CE19: 0 | CF19: 0 | CG19: 0 | CH19: 0 | CI19: 0 | CJ19: 0 | CK19: 0 | CL19: 0 | CM19: 0 | CN19: 0 | CO19: 0 | CP19: 0 | CQ19: 0 | CR19: 0 | CS19: 0 | CT19: 0 | CU19: 0 | CV19: 0 | CW19: 0 | CX19: 0
B20: รวม | C20: 100 | D20: 100 | E20: 100 | F20: 100 | G20: 100 | H20: 100 | I20: 100 | J20: 100 | K20: 100 | L20: 100 | M20: 100 | N20: 100 | O20: 100 | P20: 100 | Q20: 100 | R20: 100 | S20: 100 | T20: 100 | U20: 100 | V20: 100 | W20: 100 | X20: 100 | Y20: 100 | Z20: 100 | AA20: 100 | AB20: 100 | AC20: 100 | AD20: 100 | AE20: 100 | AF20: 100 | AG20: 100 | AH20: 100 | AI20: 100 | AJ20: 100 | AK20: 100 | AL20: 100 | AM20: 100 | AN20: 100 | AO20: 100 | AP20: 100 | AQ20: 100 | AR20: 100 | AS20: 100 | AT20: 100 | AU20: 100 | AV20: 100 | AW20: 100 | AX20: 100 | AY20: 100 | AZ20: 100 | BA20: 100 | BB20: 100 | BC20: 100 | BD20: 100 | BE20: 100 | BF20: 100 | BG20: 100 | BH20: 100 | BI20: 100 | BJ20: 100 | BK20: 100 | BL20: 100 | BM20: 100 | BN20: 100 | BO20: 100 | BP20: 100 | BQ20: 100 | BR20: 100 | BS20: 100 | BT20: 100 | BU20: 100 | BV20: 100 | BW20: 100 | BX20: 100 | BY20: 100 | BZ20: 100 | CA20: 100 | CB20: 100 | CC20: 100 | CD20: 100 | CE20: 100 | CF20: 100 | CG20: 100 | CH20: 100 | CI20: 100 | CJ20: 100 | CK20: 100 | CL20: 100 | CM20: 100 | CN20: 100 | CO20: 100 | CP20: 100 | CQ20: 100 | CR20: 100 | CS20: 100 | CT20: 100 | CU20: 100 | CV20: 100 | CW20: 100 | CX20: 100
B22: IF total (รวม) | C22: 0.75 | D22: 0.125 | E22: 0.125 | F22: 0.125 | G22: 0.25 | H22: 0.25 | I22: 0.375 | J22: 0.375 | K22: 0.25 | L22: 0.375 | M22: 0.125 | N22: 0.375 | O22: 0.25 | P22: 0.125 | Q22: 0.25 | R22: 0.375 | S22: 0.125 | T22: 0.5 | U22: 0.375 | V22: 0.25 | W22: 0.25 | X22: 0.125 | Y22: 0.5 | Z22: 0.375 | AA22: 0.5 | AB22: 0.25 | AC22: 0.25 | AD22: 0.75 | AE22: 0.625 | AF22: 0.375 | AG22: 0.125 | AH22: 0.25 | AI22: 0.25 | AJ22: 0.375 | AK22: 0.375 | AL22: 0.25 | AM22: 0.375 | AN22: 0.125 | AO22: 0.375 | AP22: 0.25 | AQ22: 0.125 | AR22: 0.25 | AS22: 0.375 | AT22: 0.375 | AU22: 0.5 | AV22: 0.375 | AW22: 0.25 | AX22: 0.25 | AY22: 0.125 | AZ22: 0.5 | BA22: 0.375 | BB22: 0.5 | BC22: 0.25 | BD22: 0.25 | BE22: 0.75 | BF22: 0.625 | BG22: 0.375 | BH22: 0.125 | BI22: 0.25 | BJ22: 0.25 | BK22: 0.375 | BL22: 0.25 | BM22: 0.25 | BN22: 0.375 | BO22: 0.125 | BP22: 0.375 | BQ22: 0.25 | BR22: 0.125 | BS22: 0.25 | BT22: 0.375 | BU22: 0.375 | BV22: 0 | BW22: 0.375 | BX22: 0.25 | BY22: 0.25 | BZ22: 0.125 | CA22: 0.125 | CB22: 0.375 | CC22: 0.5 | CD22: 0.25 | CE22: 0.25 | CF22: 0.75 | CG22: 0.625 | CH22: 0.375 | CI22: 0.125 | CJ22: 0.25 | CK22: 0.25 | CL22: 0.375 | CM22: 0.25 | CN22: 0.25 | CO22: 0.375 | CP22: 0.125 | CQ22: 0.375 | CR22: 0.25 | CS22: 0.125 | CT22: 0.25 | CU22: 0.375 | CV22: 0.375 | CW22: 0.5 | CX22: 0.375
B23: IF Upper (กลุ่มสูง) | C23: 1 | D23: 0 | E23: 0 | F23: 0.25 | G23: 0.5 | H23: 0.5 | I23: 0.5 | J23: 0.75 | K23: 0.25 | L23: 0.25 | M23: 0.25 | N23: 0.5 | O23: 0.25 | P23: 0.25 | Q23: 0.25 | R23: 0.5 | S23: 0 | T23: 0.75 | U23: 0.5 | V23: 0.25 | W23: 0.5 | X23: 0.25 | Y23: 0.75 | Z23: 0.75 | AA23: 0.5 | AB23: 0.5 | AC23: 0.5 | AD23: 1 | AE23: 0.75 | AF23: 0.5 | AG23: 0.25 | AH23: 0.5 | AI23: 0.5 | AJ23: 0.5 | AK23: 0.75 | AL23: 0.25 | AM23: 0.25 | AN23: 0.25 | AO23: 0.5 | AP23: 0.25 | AQ23: 0.25 | AR23: 0.25 | AS23: 0.5 | AT23: 0.75 | AU23: 0.75 | AV23: 0.5 | AW23: 0.25 | AX23: 0.5 | AY23: 0.25 | AZ23: 0.75 | BA23: 0.75 | BB23: 0.5 | BC23: 0.5 | BD23: 0.5 | BE23: 1 | BF23: 0.75 | BG23: 0.5 | BH23: 0.25 | BI23: 0.5 | BJ23: 0.5 | BK23: 0.5 | BL23: 0.25 | BM23: 0.25 | BN23: 0.25 | BO23: 0.25 | BP23: 0.5 | BQ23: 0.25 | BR23: 0.25 | BS23: 0.25 | BT23: 0.5 | BU23: 0.75 | BV23: 0 | BW23: 0.5 | BX23: 0.25 | BY23: 0.5 | BZ23: 0.25 | CA23: 0 | CB23: 0.75 | CC23: 0.5 | CD23: 0.5 | CE23: 0.5 | CF23: 1 | CG23: 0.75 | CH23: 0.5 | CI23: 0.25 | CJ23: 0.5 | CK23: 0.5 | CL23: 0.5 | CM23: 0.25 | CN23: 0.25 | CO23: 0.25 | CP23: 0.25 | CQ23: 0.5 | CR23: 0.25 | CS23: 0.25 | CT23: 0.25 | CU23: 0.5 | CV23: 0.75 | CW23: 0.75 | CX23: 0.5
B24: IF Lower (กลุ่มต่ำ) | C24: 0.5 | D24: 0.25 | E24: 0.25 | F24: 0 | G24: 0 | H24: 0 | I24: 0.25 | J24: 0 | K24: 0.25 | L24: 0.5 | M24: 0 | N24: 0.25 | O24: 0.25 | P24: 0 | Q24: 0.25 | R24: 0.25 | S24: 0.25 | T24: 0.25 | U24: 0.25 | V24: 0.25 | W24: 0 | X24: 0 | Y24: 0.25 | Z24: 0 | AA24: 0.5 | AB24: 0 | AC24: 0 | AD24: 0.5 | AE24: 0.5 | AF24: 0.25 | AG24: 0 | AH24: 0 | AI24: 0 | AJ24: 0.25 | AK24: 0 | AL24: 0.25 | AM24: 0.5 | AN24: 0 | AO24: 0.25 | AP24: 0.25 | AQ24: 0 | AR24: 0.25 | AS24: 0.25 | AT24: 0 | AU24: 0.25 | AV24: 0.25 | AW24: 0.25 | AX24: 0 | AY24: 0 | AZ24: 0.25 | BA24: 0 | BB24: 0.5 | BC24: 0 | BD24: 0 | BE24: 0.5 | BF24: 0.5 | BG24: 0.25 | BH24: 0 | BI24: 0 | BJ24: 0 | BK24: 0.25 | BL24: 0.25 | BM24: 0.25 | BN24: 0.5 | BO24: 0 | BP24: 0.25 | BQ24: 0.25 | BR24: 0 | BS24: 0.25 | BT24: 0.25 | BU24: 0 | BV24: 0 | BW24: 0.25 | BX24: 0.25 | BY24: 0 | BZ24: 0 | CA24: 0.25 | CB24: 0 | CC24: 0.5 | CD24: 0 | CE24: 0 | CF24: 0.5 | CG24: 0.5 | CH24: 0.25 | CI24: 0 | CJ24: 0 | CK24: 0 | CL24: 0.25 | CM24: 0.25 | CN24: 0.25 | CO24: 0.5 | CP24: 0 | CQ24: 0.25 | CR24: 0.25 | CS24: 0 | CT24: 0.25 | CU24: 0.25 | CV24: 0 | CW24: 0.25 | CX24: 0.25
B25: ID (อำนาจจำแนก) | C25: 0.5 | D25: -0.25 | E25: -0.25 | F25: 0.25 | G25: 0.5 | H25: 0.5 | I25: 0.25 | J25: 0.75 | K25: 0 | L25: -0.25 | M25: 0.25 | N25: 0.25 | O25: 0 | P25: 0.25 | Q25: 0 | R25: 0.25 | S25: -0.25 | T25: 0.5 | U25: 0.25 | V25: 0 | W25: 0.5 | X25: 0.25 | Y25: 0.5 | Z25: 0.75 | AA25: 0 | AB25: 0.5 | AC25: 0.5 | AD25: 0.5 | AE25: 0.25 | AF25: 0.25 | AG25: 0.25 | AH25: 0.5 | AI25: 0.5 | AJ25: 0.25 | AK25: 0.75 | AL25: 0 | AM25: -0.25 | AN25: 0.25 | AO25: 0.25 | AP25: 0 | AQ25: 0.25 | AR25: 0 | AS25: 0.25 | AT25: 0.75 | AU25: 0.5 | AV25: 0.25 | AW25: 0 | AX25: 0.5 | AY25: 0.25 | AZ25: 0.5 | BA25: 0.75 | BB25: 0 | BC25: 0.5 | BD25: 0.5 | BE25: 0.5 | BF25: 0.25 | BG25: 0.25 | BH25: 0.25 | BI25: 0.5 | BJ25: 0.5 | BK25: 0.25 | BL25: 0 | BM25: 0 | BN25: -0.25 | BO25: 0.25 | BP25: 0.25 | BQ25: 0 | BR25: 0.25 | BS25: 0 | BT25: 0.25 | BU25: 0.75 | BV25: 0 | BW25: 0.25 | BX25: 0 | BY25: 0.5 | BZ25: 0.25 | CA25: -0.25 | CB25: 0.75 | CC25: 0 | CD25: 0.5 | CE25: 0.5 | CF25: 0.5 | CG25: 0.25 | CH25: 0.25 | CI25: 0.25 | CJ25: 0.5 | CK25: 0.5 | CL25: 0.25 | CM25: 0 | CN25: 0 | CO25: -0.25 | CP25: 0.25 | CQ25: 0.25 | CR25: 0 | CS25: 0.25 | CT25: 0 | CU25: 0.25 | CV25: 0.75 | CW25: 0.5 | CX25: 0.25
B27: Reliability(KR-20) | C27: 0.98
B28: คะแนนเฉลี่ย | C28: 31.38
B29: S.D. | C29: 24.08
B30: SEM | C30: 3.41
B32: ความยาก-ง่าย (IF total) | C32: ดีพอใช้ | D32: ยากมาก-ตัดทิ้ง | E32: ยากมาก-ตัดทิ้ง | F32: ยากมาก-ตัดทิ้ง | G32: ดีพอใช้ | H32: ดีพอใช้ | I32: ดีพอใช้ | J32: ดีพอใช้ | K32: ดีพอใช้ | L32: ดีพอใช้ | M32: ยากมาก-ตัดทิ้ง | N32: ดีพอใช้ | O32: ดีพอใช้ | P32: ยากมาก-ตัดทิ้ง | Q32: ดีพอใช้ | R32: ดีพอใช้ | S32: ยากมาก-ตัดทิ้ง | T32: ดีมาก | U32: ดีพอใช้ | V32: ดีพอใช้ | W32: ดีพอใช้ | X32: ยากมาก-ตัดทิ้ง | Y32: ดีมาก | Z32: ดีพอใช้ | AA32: ดีมาก | AB32: ดีพอใช้ | AC32: ดีพอใช้ | AD32: ดีพอใช้ | AE32: ดีพอใช้ | AF32: ดีพอใช้ | AG32: ยากมาก-ตัดทิ้ง | AH32: ดีพอใช้ | AI32: ดีพอใช้ | AJ32: ดีพอใช้ | AK32: ดีพอใช้ | AL32: ดีพอใช้ | AM32: ดีพอใช้ | AN32: ยากมาก-ตัดทิ้ง | AO32: ดีพอใช้ | AP32: ดีพอใช้ | AQ32: ยากมาก-ตัดทิ้ง | AR32: ดีพอใช้ | AS32: ดีพอใช้ | AT32: ดีพอใช้ | AU32: ดีมาก | AV32: ดีพอใช้ | AW32: ดีพอใช้ | AX32: ดีพอใช้ | AY32: ยากมาก-ตัดทิ้ง | AZ32: ดีมาก | BA32: ดีพอใช้ | BB32: ดีมาก | BC32: ดีพอใช้ | BD32: ดีพอใช้ | BE32: ดีพอใช้ | BF32: ดีพอใช้ | BG32: ดีพอใช้ | BH32: ยากมาก-ตัดทิ้ง | BI32: ดีพอใช้ | BJ32: ดีพอใช้ | BK32: ดีพอใช้ | BL32: ดีพอใช้ | BM32: ดีพอใช้ | BN32: ดีพอใช้ | BO32: ยากมาก-ตัดทิ้ง | BP32: ดีพอใช้ | BQ32: ดีพอใช้ | BR32: ยากมาก-ตัดทิ้ง | BS32: ดีพอใช้ | BT32: ดีพอใช้ | BU32: ดีพอใช้ | BV32: ยากมาก-ตัดทิ้ง | BW32: ดีพอใช้ | BX32: ดีพอใช้ | BY32: ดีพอใช้ | BZ32: ยากมาก-ตัดทิ้ง | CA32: ยากมาก-ตัดทิ้ง | CB32: ดีพอใช้ | CC32: ดีมาก | CD32: ดีพอใช้ | CE32: ดีพอใช้ | CF32: ดีพอใช้ | CG32: ดีพอใช้ | CH32: ดีพอใช้ | CI32: ยากมาก-ตัดทิ้ง | CJ32: ดีพอใช้ | CK32: ดีพอใช้ | CL32: ดีพอใช้ | CM32: ดีพอใช้ | CN32: ดีพอใช้ | CO32: ดีพอใช้ | CP32: ยากมาก-ตัดทิ้ง | CQ32: ดีพอใช้ | CR32: ดีพอใช้ | CS32: ยากมาก-ตัดทิ้ง | CT32: ดีพอใช้ | CU32: ดีพอใช้ | CV32: ดีพอใช้ | CW32: ดีมาก | CX32: ดีพอใช้
B33: อำนาจจำแนก (ID) | C33: ดี | D33: ตัดทิ้ง | E33: ตัดทิ้ง | F33: พอใช้ได้ | G33: ดี | H33: ดี | I33: พอใช้ได้ | J33: ดีมาก | K33: ตัดทิ้ง | L33: ตัดทิ้ง | M33: พอใช้ได้ | N33: พอใช้ได้ | O33: ตัดทิ้ง | P33: พอใช้ได้ | Q33: ตัดทิ้ง | R33: พอใช้ได้ | S33: ตัดทิ้ง | T33: ดี | U33: พอใช้ได้ | V33: ตัดทิ้ง | W33: ดี | X33: พอใช้ได้ | Y33: ดี | Z33: ดีมาก | AA33: ตัดทิ้ง | AB33: ดี | AC33: ดี | AD33: ดี | AE33: พอใช้ได้ | AF33: พอใช้ได้ | AG33: พอใช้ได้ | AH33: ดี | AI33: ดี | AJ33: พอใช้ได้ | AK33: ดีมาก | AL33: ตัดทิ้ง | AM33: ตัดทิ้ง | AN33: พอใช้ได้ | AO33: พอใช้ได้ | AP33: ตัดทิ้ง | AQ33: พอใช้ได้ | AR33: ตัดทิ้ง | AS33: พอใช้ได้ | AT33: ดีมาก | AU33: ดี | AV33: พอใช้ได้ | AW33: ตัดทิ้ง | AX33: ดี | AY33: พอใช้ได้ | AZ33: ดี | BA33: ดีมาก | BB33: ตัดทิ้ง | BC33: ดี | BD33: ดี | BE33: ดี | BF33: พอใช้ได้ | BG33: พอใช้ได้ | BH33: พอใช้ได้ | BI33: ดี | BJ33: ดี | BK33: พอใช้ได้ | BL33: ตัดทิ้ง | BM33: ตัดทิ้ง | BN33: ตัดทิ้ง | BO33: พอใช้ได้ | BP33: พอใช้ได้ | BQ33: ตัดทิ้ง | BR33: พอใช้ได้ | BS33: ตัดทิ้ง | BT33: พอใช้ได้ | BU33: ดีมาก | BV33: ตัดทิ้ง | BW33: พอใช้ได้ | BX33: ตัดทิ้ง | BY33: ดี | BZ33: พอใช้ได้ | CA33: ตัดทิ้ง | CB33: ดีมาก | CC33: ตัดทิ้ง | CD33: ดี | CE33: ดี | CF33: ดี | CG33: พอใช้ได้ | CH33: พอใช้ได้ | CI33: พอใช้ได้ | CJ33: ดี | CK33: ดี | CL33: พอใช้ได้ | CM33: ตัดทิ้ง | CN33: ตัดทิ้ง | CO33: ตัดทิ้ง | CP33: พอใช้ได้ | CQ33: พอใช้ได้ | CR33: ตัดทิ้ง | CS33: พอใช้ได้ | CT33: ตัดทิ้ง | CU33: พอใช้ได้ | CV33: ดีมาก | CW33: ดี | CX33: พอใช้ได้

Sheet Sheet3
B3: ข้อ | C3: 1 | D3: 2 | E3: 3 | F3: 4 | G3: 5 | H3: 6 | I3: 7 | J3: 8 | K3: 9 | L3: 10 | M3: 11 | N3: 12 | O3: 13 | P3: 14 | Q3: 15 | R3: 16 | S3: 17 | T3: 18 | U3: 19 | V3: 20 | W3: 21 | X3: 22 | Y3: 23 | Z3: 24 | AA3: 25 | AB3: 26 | AC3: 27 | AD3: 28 | AE3: 29 | AF3: 30 | AG3: 31 | AH3: 32 | AI3: 33 | AJ3: 34 | AK3: 35 | AL3: 36 | AM3: 37 | AN3: 38 | AO3: 39 | AP3: 40 | AQ3: 41 | AR3: 42 | AS3: 43 | AT3: 44 | AU3: 45 | AV3: 46 | AW3: 47 | AX3: 48 | AY3: 49 | AZ3: 50 | BA3: 51 | BB3: 52 | BC3: 53 | BD3: 54 | BE3: 55 | BF3: 56 | BG3: 57 | BH3: 58 | BI3: 59 | BJ3: 60 | BK3: 61 | BL3: 62 | BM3: 63 | BN3: 64 | BO3: 65 | BP3: 66 | BQ3: 67 | BR3: 68 | BS3: 69 | BT3: 70 | BU3: 71 | BV3: 72 | BW3: 73 | BX3: 74 | BY3: 75 | BZ3: 76 | CA3: 77 | CB3: 78 | CC3: 79 | CD3: 80 | CE3: 81 | CF3: 82 | CG3: 83 | CH3: 84 | CI3: 85 | CJ3: 86 | CK3: 87 | CL3: 88 | CM3: 89 | CN3: 90 | CO3: 91 | CP3: 92 | CQ3: 93 | CR3: 94 | CS3: 95 | CT3: 96 | CU3: 97 | CV3: 98 | CW3: 99 | CX3: 100
B4: คำตอบที่ถูก | C4: ค | D4: จ | E4: ค | F4: ค | G4: ก | H4: ข | I4: ก | J4: ข | K4: ก | L4: ข | M4: ข | N4: ค | O4: ข | P4: ข | Q4: ง | R4: ข | S4: ข | T4: ก | U4: ข | V4: ค | W4: ก | X4: ค | Y4: ค | Z4: ก | AA4: ง | AB4: ข | AC4: ค | AD4: ค | AE4: ข | AF4: ข | AG4: ค | AH4: ก | AI4: ข | AJ4: ก | AK4: ข | AL4: ก | AM4: ข | AN4: ข | AO4: ค | AP4: ข | AQ4: ข | AR4: ง | AS4: ข | AT4: ง | AU4: ก | AV4: ข | AW4: ค | AX4: ก | AY4: ค | AZ4: ค | BA4: ก | BB4: ง | BC4: ข | BD4: ค | BE4: ค | BF4: ข | BG4: ข | BH4: ค | BI4: ก | BJ4: ข | BK4: ก | BL4: ก | BM4: ก | BN4: ข | BO4: ข | BP4: ค | BQ4: ข | BR4: ข | BS4: ง | BT4: ข | BU4: ง | BV4: ข | BW4: ข | BX4: ค | BY4: ก | BZ4: ค | CA4: ข | CB4: ก | CC4: ง | CD4: ข | CE4: ค | CF4: ค | CG4: ข | CH4: ข | CI4: ค | CJ4: ก | CK4: ข | CL4: ก | CM4: ก | CN4: ก | CO4: ข | CP4: ข | CQ4: ค | CR4: ข | CS4: ข | CT4: ง | CU4: ข | CV4: ง | CW4: ก | CX4: ข
B6: 2. กรอกคำตอบของผู้ทำแบบทดสอบ แต่ละคน (สูงสุด ไม่เกิน 2,000 คน)
B7: ฉบับ\ข้อ | C7: 1 | D7: 2 | E7: 3 | F7: 4 | G7: 5 | H7: 6 | I7: 7 | J7: 8 | K7: 9 | L7: 10 | M7: 11 | N7: 12 | O7: 13 | P7: 14 | Q7: 15 | R7: 16 | S7: 17 | T7: 18 | U7: 19 | V7: 20 | W7: 21 | X7: 22 | Y7: 23 | Z7: 24 | AA7: 25 | AB7: 26 | AC7: 27 | AD7: 28 | AE7: 29 | AF7: 30 | AG7: 31 | AH7: 32 | AI7: 33 | AJ7: 34 | AK7: 35 | AL7: 36 | AM7: 37 | AN7: 38 | AO7: 39 | AP7: 40 | AQ7: 41 | AR7: 42 | AS7: 43 | AT7: 44 | AU7: 45 | AV7: 46 | AW7: 47 | AX7: 48 | AY7: 49 | AZ7: 50 | BA7: 51 | BB7: 52 | BC7: 53 | BD7: 54 | BE7: 55 | BF7: 56 | BG7: 57 | BH7: 58 | BI7: 59 | BJ7: 60 | BK7: 61 | BL7: 62 | BM7: 63 | BN7: 64 | BO7: 65 | BP7: 66 | BQ7: 67 | BR7: 68 | BS7: 69 | BT7: 70 | BU7: 71 | BV7: 72 | BW7: 73 | BX7: 74 | BY7: 75 | BZ7: 76 | CA7: 77 | CB7: 78 | CC7: 79 | CD7: 80 | CE7: 81 | CF7: 82 | CG7: 83 | CH7: 84 | CI7: 85 | CJ7: 86 | CK7: 87 | CL7: 88 | CM7: 89 | CN7: 90 | CO7: 91 | CP7: 92 | CQ7: 93 | CR7: 94 | CS7: 95 | CT7: 96 | CU7: 97 | CV7: 98 | CW7: 99 | CX7: 100
B8: 1 | C8: ค | D8: ข | E8: ก | F8: ง | G8: ค | H8: ค | I8: ง | J8: ข | K8: ง | L8: ง | M8: ก | N8: ก | O8: ค | P8: ก | Q8: ก | R8: ข | S8: ง | T8: ก | U8: ง | V8: ง | W8: ค | X8: ข | Y8: ง | Z8: ก | AA8: ง | AB8: ง | AC8: ข | AD8: ค | AE8: ข | AF8: ก | AG8: ง | AH8: ค | AI8: ค | AJ8: ง | AK8: ข | AL8: ง | AM8: ง | AN8: ก | AO8: ก | AP8: ค | AQ8: ก | AR8: ก | AS8: ข | AT8: ง | AU8: ก | AV8: ง | AW8: ง | AX8: ค | AY8: ข | AZ8: ง | BA8: ก | BB8: ง | BC8: ง | BD8: ข | BE8: ค | BF8: ข | BG8: ก | BH8: ง | BI8: ค | BJ8: ค | BK8: ง | BL8: ข | BM8: ง | BN8: ง | BO8: ก | BP8: ก | BQ8: ค | BR8: ก | BS8: ก | BT8: ข | BU8: ง | BV8: ก | BW8: ง | BX8: ง | BY8: ค | BZ8: ข | CA8: ง | CB8: ก | CC8: ง | CD8: ง | CE8: ข | CF8: ค | CG8: ข | CH8: ก | CI8: ง | CJ8: ค | CK8: ค | CL8: ง | CM8: ข | CN8: ง | CO8: ง | CP8: ก | CQ8: ก | CR8: ค | CS8: ก | CT8: ก | CU8: ข | CV8: ง | CW8: ก | CX8: ง
B9: 2 | C9: ค | D9: ข | E9: ค | F9: ข | G9: ข | H9: ก | I9: ง | J9: ง | K9: ข | L9: ค | M9: ค | N9: ก | O9: ค | P9: ค | Q9: ก | R9: ง | S9: ก | T9: ก | U9: ข | V9: ง | W9: ค | X9: ง | Y9: ข | Z9: ข | AA9: ง | AB9: ค | AC9: ง | AD9: ค | AE9: ข | AF9: ค | AG9: ข | AH9: ข | AI9: ก | AJ9: ง | AK9: ง | AL9: ข | AM9: ค | AN9: ค | AO9: ก | AP9: ค | AQ9: ค | AR9: ก | AS9: ง | AT9: ก | AU9: ก | AV9: ข | AW9: ง | AX9: ค | AY9: ง | AZ9: ข | BA9: ข | BB9: ง | BC9: ค | BD9: ง | BE9: ค | BF9: ข | BG9: ค | BH9: ข | BI9: ข | BJ9: ก | BK9: ง | BL9: ง | BM9: ข | BN9: ค | BO9: ค | BP9: ก | BQ9: ค | BR9: ค | BS9: ก | BT9: ง | BU9: ก | BV9: ก | BW9: ข | BX9: ง | BY9: ค | BZ9: ง | CA9: ข | CB9: ข | CC9: ง | CD9: ค | CE9: ง | CF9: ค | CG9: ข | CH9: ค | CI9: ข | CJ9: ข | CK9: ก | CL9: ง | CM9: ง | CN9: ข | CO9: ค | CP9: ค | CQ9: ก | CR9: ค | CS9: ค | CT9: ก | CU9: ง | CV9: ก | CW9: ก | CX9: ข
B10: 3 | C10: ค | D10: ง | E10: ข | F10: ข | G10: ง | H10: ง | I10: ง | J10: ก | K10: ก | L10: ข | M10: ง | N10: ง | O10: ข | P10: ค | Q10: ข | R10: ก | S10: ก | T10: ค | U10: ค | V10: ข | W10: ค | X10: ข | Y10: ค | Z10: ง | AA10: ค | AB10: ค | AC10: ข | AD10: ค | AE10: ง | AF10: ข | AG10: ข | AH10: ง | AI10: ง | AJ10: ง | AK10: ก | AL10: ก | AM10: ข | AN10: ง | AO10: ง | AP10: ข | AQ10: ค | AR10: ข | AS10: ก | AT10: ก | AU10: ค | AV10: ค | AW10: ข | AX10: ค | AY10: ข | AZ10: ค | BA10: ง | BB10: ค | BC10: ค | BD10: ข | BE10: ค | BF10: ง | BG10: ข | BH10: ข | BI10: ง | BJ10: ง | BK10: ง | BL10: ก | BM10: ก | BN10: ข | BO10: ง | BP10: ง | BQ10: ข | BR10: ค | BS10: ข | BT10: ก | BU10: ก | BV10: ค | BW10: ค | BX10: ข | BY10: ค | BZ10: ข | CA10: ค | CB10: ง | CC10: ค | CD10: ค | CE10: ข | CF10: ค | CG10: ง | CH10: ข | CI10: ข | CJ10: ง | CK10: ง | CL10: ง | CM10: ก | CN10: ก | CO10: ข | CP10: ง | CQ10: ง | CR10: ข | CS10: ค | CT10: ข | CU10: ก | CV10: ก | CW10: ค | CX10: ค
B11: 4 | C11: ค | D11: ข | E11: ข | F11: ค | G11: ก | H11: ข | I11: ก | J11: ก | K11: ก | L11: ข | M11: ข | N11: ค | O11: ข | P11: ข | Q11: ง | R11: ข | S11: ง | T11: ก | U11: ข | V11: ค | W11: ก | X11: ค | Y11: ค | Z11: ก | AA11: ง | AB11: ข | AC11: ค | AD11: ค | AE11: ข | AF11: ข | AG11: ค | AH11: ก | AI11: ข | AJ11: ก | AK11: ก | AL11: ก | AM11: ข | AN11: ข | AO11: ค | AP11: ข | AQ11: ข | AR11: ง | AS11: ข | AT11: ง | AU11: ก | AV11: ข | AW11: ค | AX11: ก | AY11: ค | AZ11: ค | BA11: ก | BB11: ง | BC11: ข | BD11: ค | BE11: ค | BF11: ข | BG11: ข | BH11: ค | BI11: ก | BJ11: ข | BK11: ก | BL11: ก | BM11: ก | BN11: ข | BO11: ข | BP11: ค | BQ11: ข | BR11: ข | BS11: ง | BT11: ข | BU11: ง | BV11: ก | BW11: ข | BX11: ค | BY11: ก | BZ11: ค | CA11: ค | CB11: ก | CC11: ง | CD11: ข | CE11: ค | CF11: ค | CG11: ข | CH11: ข | CI11: ค | CJ11: ก | CK11: ข | CL11: ก | CM11: ก | CN11: ก | CO11: ข | CP11: ข | CQ11: ค | CR11: ข | CS11: ข | CT11: ง | CU11: ข | CV11: ง | CW11: ก | CX11: ข
B12: 5 | C12: ค | D12: ค | E12: ง | F12: ข | G12: ก | H12: ง | I12: ก | J12: ข | K12: ค | L12: ง | M12: ง | N12: ข | O12: ค | P12: ค | Q12: ก | R12: ก | S12: ง | T12: ก | U12: ง | V12: ข | W12: ข | X12: ง | Y12: ค | Z12: ก | AA12: ข | AB12: ก | AC12: ค | AD12: ค | AE12: ค | AF12: ง | AG12: ข | AH12: ก | AI12: ง | AJ12: ก | AK12: ข | AL12: ค | AM12: ค | AN12: ง | AO12: ข | AP12: ค | AQ12: ค | AR12: ก | AS12: ก | AT12: ง | AU12: ก | AV12: ง | AW12: ข | AX12: ข | AY12: ง | AZ12: ค | BA12: ก | BB12: ข | BC12: ก | BD12: ค | BE12: ค | BF12: ค | BG12: ง | BH12: ข | BI12: ก | BJ12: ง | BK12: ก | BL12: ข | BM12: ค | BN12: ค | BO12: ง | BP12: ข | BQ12: ค | BR12: ค | BS12: ก | BT12: ก | BU12: ง | BV12: ก | BW12: ง | BX12: ข | BY12: ข | BZ12: ง | CA12: ค | CB12: ก | CC12: ข | CD12: ก | CE12: ค | CF12: ค | CG12: ค | CH12: ง | CI12: ข | CJ12: ก | CK12: ง | CL12: ก | CM12: ข | CN12: ค | CO12: ค | CP12: ง | CQ12: ข | CR12: ค | CS12: ค | CT12: ก | CU12: ก | CV12: ง | CW12: ก | CX12: ง
B13: 6 | C13: ก | D13: ข | E13: ก | F13: ก | G13: ข | H13: ค | I13: ข | J13: ค | K13: ค | L13: ข | M13: ง | N13: ง | O13: ก | P13: ค | Q13: ง | R13: ข | S13: ก | T13: ง | U13: ง | V13: ค | W13: ข | X13: ข | Y13: ก | Z13: ข | AA13: ง | AB13: ง | AC13: ข | AD13: ก | AE13: ข | AF13: ก | AG13: ก | AH13: ข | AI13: ค | AJ13: ข | AK13: ค | AL13: ค | AM13: ข | AN13: ง | AO13: ง | AP13: ก | AQ13: ค | AR13: ง | AS13: ข | AT13: ก | AU13: ง | AV13: ง | AW13: ค | AX13: ข | AY13: ข | AZ13: ก | BA13: ข | BB13: ง | BC13: ง | BD13: ข | BE13: ก | BF13: ข | BG13: ก | BH13: ก | BI13: ข | BJ13: ค | BK13: ข | BL13: ค | BM13: ค | BN13: ข | BO13: ง | BP13: ง | BQ13: ก | BR13: ค | BS13: ง | BT13: ข | BU13: ก | BV13: ง | BW13: ง | BX13: ค | BY13: ข | BZ13: ข | CA13: ก | CB13: ข | CC13: ง | CD13: ง | CE13: ข | CF13: ก | CG13: ข | CH13: ก | CI13: ก | CJ13: ข | CK13: ค | CL13: ข | CM13: ค | CN13: ค | CO13: ข | CP13: ง | CQ13: ง | CR13: ก | CS13: ค | CT13: ง | CU13: ข | CV13: ก | CW13: ง | CX13: ง
B14: 7 | C14: ค | D14: ข | E14: ข | F14: ข | G14: ง | H14: ข | I14: ข | J14: ข | K14: ข | L14: ง | M14: ค | N14: ค | O14: ค | P14: ง | Q14: ก | R14: ค | S14: ค | T14: ง | U14: ข | V14: ง | W14: ก | X14: ข | Y14: ค | Z14: ข | AA14: ข | AB14: ข | AC14: ก | AD14: ค | AE14: ข | AF14: ข | AG14: ข | AH14: ง | AI14: ข | AJ14: ข | AK14: ข | AL14: ข | AM14: ง | AN14: ค | AO14: ค | AP14: ค | AQ14: ง | AR14: ก | AS14: ค | AT14: ค | AU14: ง | AV14: ข | AW14: ง | AX14: ก | AY14: ข | AZ14: ค | BA14: ข | BB14: ข | BC14: ข | BD14: ก | BE14: ค | BF14: ข | BG14: ข | BH14: ข | BI14: ง | BJ14: ข | BK14: ข | BL14: ข | BM14: ข | BN14: ง | BO14: ค | BP14: ค | BQ14: ค | BR14: ง | BS14: ก | BT14: ค | BU14: ค | BV14: ง | BW14: ข | BX14: ง | BY14: ก | BZ14: ข | CA14: ค | CB14: ข | CC14: ข | CD14: ข | CE14: ก | CF14: ค | CG14: ข | CH14: ข | CI14: ข | CJ14: ง | CK14: ข | CL14: ข | CM14: ข | CN14: ข | CO14: ง | CP14: ค | CQ14: ค | CR14: ค | CS14: ง | CT14: ก | CU14: ค | CV14: ค | CW14: ง | CX14: ข
B15: 8 | C15: ง | D15: จ | E15: ก | F15: ง | G15: ง | H15: ก | I15: ก | J15: ง | K15: ค | L15: ก | M15: ง | N15: ค | O15: ค | P15: ง | Q15: ค | R15: ก | S15: ข | T15: ง | U15: ค | V15: ก | W15: ข | X15: ข | Y15: ง | Z15: ข | AA15: ค | AB15: ง | AC15: ข | AD15: ง | AE15: ก | AF15: ก | AG15: ง | AH15: ง | AI15: ก | AJ15: ก | AK15: ง | AL15: ค | AM15: ก | AN15: ง | AO15: ค | AP15: ค | AQ15: ง | AR15: ค | AS15: ก | AT15: ข | AU15: ง | AV15: ค | AW15: ก | AX15: ข | AY15: ข | AZ15: ง | BA15: ข | BB15: ค | BC15: ง | BD15: ข | BE15: ง | BF15: ก | BG15: ก | BH15: ง | BI15: ง | BJ15: ก | BK15: ก | BL15: ง | BM15: ค | BN15: ก | BO15: ง | BP15: ค | BQ15: ค | BR15: ง | BS15: ค | BT15: ก | BU15: ข | BV15: ง | BW15: ค | BX15: ก | BY15: ข | BZ15: ข | CA15: ง | CB15: ข | CC15: ค | CD15: ง | CE15: ข | CF15: ง | CG15: ก | CH15: ก | CI15: ง | CJ15: ง | CK15: ก | CL15: ก | CM15: ง | CN15: ค | CO15: ก | CP15: ง | CQ15: ค | CR15: ค | CS15: ง | CT15: ค | CU15: ก | CV15: ข | CW15: ง | CX15: ค
B17: ผลการตรวจและเรียงคะแนนจากมากไปหาน้อย
B18: ฉบับที่\ข้อที่ | C18: 1 | D18: 2 | E18: 3 | F18: 4 | G18: 5 | H18: 6 | I18: 7 | J18: 8 | K18: 9 | L18: 10 | M18: 11 | N18: 12 | O18: 13 | P18: 14 | Q18: 15 | R18: 16 | S18: 17 | T18: 18 | U18: 19 | V18: 20 | W18: 21 | X18: 22 | Y18: 23 | Z18: 24 | AA18: 25 | AB18: 26 | AC18: 27 | AD18: 28 | AE18: 29 | AF18: 30 | AG18: 31 | AH18: 32 | AI18: 33 | AJ18: 34 | AK18: 35 | AL18: 36 | AM18: 37 | AN18: 38 | AO18: 39 | AP18: 40 | AQ18: 41 | AR18: 42 | AS18: 43 | AT18: 44 | AU18: 45 | AV18: 46 | AW18: 47 | AX18: 48 | AY18: 49 | AZ18: 50 | BA18: 51 | BB18: 52 | BC18: 53 | BD18: 54 | BE18: 55 | BF18: 56 | BG18: 57 | BH18: 58 | BI18: 59 | BJ18: 60 | BK18: 61 | BL18: 62 | BM18: 63 | BN18: 64 | BO18: 65 | BP18: 66 | BQ18: 67 | BR18: 68 | BS18: 69 | BT18: 70 | BU18: 71 | BV18: 72 | BW18: 73 | BX18: 74 | BY18: 75 | BZ18: 76 | CA18: 77 | CB18: 78 | CC18: 79 | CD18: 80 | CE18: 81 | CF18: 82 | CG18: 83 | CH18: 84 | CI18: 85 | CJ18: 86 | CK18: 87 | CL18: 88 | CM18: 89 | CN18: 90 | CO18: 91 | CP18: 92 | CQ18: 93 | CR18: 94 | CS18: 95 | CT18: 96 | CU18: 97 | CV18: 98 | CW18: 99 | CX18: 100 | CY18: X | CZ18: X2
B19: 4 | C19: 1 | D19: 0 | E19: 0 | F19: 1 | G19: 1 | H19: 1 | I19: 1 | J19: 0 | K19: 1 | L19: 1 | M19: 1 | N19: 1 | O19: 1 | P19: 1 | Q19: 1 | R19: 1 | S19: 0 | T19: 1 | U19: 1 | V19: 1 | W19: 1 | X19: 1 | Y19: 1 | Z19: 1 | AA19: 1 | AB19: 1 | AC19: 1 | AD19: 1 | AE19: 1 | AF19: 1 | AG19: 1 | AH19: 1 | AI19: 1 | AJ19: 1 | AK19: 0 | AL19: 1 | AM19: 1 | AN19: 1 | AO19: 1 | AP19: 1 | AQ19: 1 | AR19: 1 | AS19: 1 | AT19: 1 | AU19: 1 | AV19: 1 | AW19: 1 | AX19: 1 | AY19: 1 | AZ19: 1 | BA19: 1 | BB19: 1 | BC19: 1 | BD19: 1 | BE19: 1 | BF19: 1 | BG19: 1 | BH19: 1 | BI19: 1 | BJ19: 1 | BK19: 1 | BL19: 1 | BM19: 1 | BN19: 1 | BO19: 1 | BP19: 1 | BQ19: 1 | BR19: 1 | BS19: 1 | BT19: 1 | BU19: 1 | BV19: 0 | BW19: 1 | BX19: 1 | BY19: 1 | BZ19: 1 | CA19: 0 | CB19: 1 | CC19: 1 | CD19: 1 | CE19: 1 | CF19: 1 | CG19: 1 | CH19: 1 | CI19: 1 | CJ19: 1 | CK19: 1 | CL19: 1 | CM19: 1 | CN19: 1 | CO19: 1 | CP19: 1 | CQ19: 1 | CR19: 1 | CS19: 1 | CT19: 1 | CU19: 1 | CV19: 1 | CW19: 1 | CX19: 1 | CY19: 93 | CZ19: =CY19^2 -> 8649
B20: 7 | C20: 1 | D20: 0 | E20: 0 | F20: 0 | G20: 0 | H20: 1 | I20: 0 | J20: 1 | K20: 0 | L20: 0 | M20: 0 | N20: 1 | O20: 0 | P20: 0 | Q20: 0 | R20: 0 | S20: 0 | T20: 0 | U20: 1 | V20: 0 | W20: 1 | X20: 0 | Y20: 1 | Z20: 0 | AA20: 0 | AB20: 1 | AC20: 0 | AD20: 1 | AE20: 1 | AF20: 1 | AG20: 0 | AH20: 0 | AI20: 1 | AJ20: 0 | AK20: 1 | AL20: 0 | AM20: 0 | AN20: 0 | AO20: 1 | AP20: 0 | AQ20: 0 | AR20: 0 | AS20: 0 | AT20: 0 | AU20: 0 | AV20: 1 | AW20: 0 | AX20: 1 | AY20: 0 | AZ20: 1 | BA20: 0 | BB20: 0 | BC20: 1 | BD20: 0 | BE20: 1 | BF20: 1 | BG20: 1 | BH20: 0 | BI20: 0 | BJ20: 1 | BK20: 0 | BL20: 0 | BM20: 0 | BN20: 0 | BO20: 0 | BP20: 1 | BQ20: 0 | BR20: 0 | BS20: 0 | BT20: 0 | BU20: 0 | BV20: 0 | BW20: 1 | BX20: 0 | BY20: 1 | BZ20: 0 | CA20: 0 | CB20: 0 | CC20: 0 | CD20: 1 | CE20: 0 | CF20: 1 | CG20: 1 | CH20: 1 | CI20: 0 | CJ20: 0 | CK20: 1 | CL20: 0 | CM20: 0 | CN20: 0 | CO20: 0 | CP20: 0 | CQ20: 1 | CR20: 0 | CS20: 0 | CT20: 0 | CU20: 0 | CV20: 0 | CW20: 0 | CX20: 1 | CY20: 32 | CZ20: =CY20^2 -> 1024
B21: 5 | C21: 1 | D21: 0 | E21: 0 | F21: 0 | G21: 1 | H21: 0 | I21: 1 | J21: 1 | K21: 0 | L21: 0 | M21: 0 | N21: 0 | O21: 0 | P21: 0 | Q21: 0 | R21: 0 | S21: 0 | T21: 1 | U21: 0 | V21: 0 | W21: 0 | X21: 0 | Y21: 1 | Z21: 1 | AA21: 0 | AB21: 0 | AC21: 1 | AD21: 1 | AE21: 0 | AF21: 0 | AG21: 0 | AH21: 1 | AI21: 0 | AJ21: 1 | AK21: 1 | AL21: 0 | AM21: 0 | AN21: 0 | AO21: 0 | AP21: 0 | AQ21: 0 | AR21: 0 | AS21: 0 | AT21: 1 | AU21: 1 | AV21: 0 | AW21: 0 | AX21: 0 | AY21: 0 | AZ21: 1 | BA21: 1 | BB21: 0 | BC21: 0 | BD21: 1 | BE21: 1 | BF21: 0 | BG21: 0 | BH21: 0 | BI21: 1 | BJ21: 0 | BK21: 1 | BL21: 0 | BM21: 0 | BN21: 0 | BO21: 0 | BP21: 0 | BQ21: 0 | BR21: 0 | BS21: 0 | BT21: 0 | BU21: 1 | BV21: 0 | BW21: 0 | BX21: 0 | BY21: 0 | BZ21: 0 | CA21: 0 | CB21: 1 | CC21: 0 | CD21: 0 | CE21: 1 | CF21: 1 | CG21: 0 | CH21: 0 | CI21: 0 | CJ21: 1 | CK21: 0 | CL21: 1 | CM21: 0 | CN21: 0 | CO21: 0 | CP21: 0 | CQ21: 0 | CR21: 0 | CS21: 0 | CT21: 0 | CU21: 0 | CV21: 1 | CW21: 1 | CX21: 0 | CY21: 28 | CZ21: 784
B22: 1 | C22: 1 | D22: 0 | E22: 0 | F22: 0 | G22: 0 | H22: 0 | I22: 0 | J22: 1 | K22: 0 | L22: 0 | M22: 0 | N22: 0 | O22: 0 | P22: 0 | Q22: 0 | R22: 1 | S22: 0 | T22: 1 | U22: 0 | V22: 0 | W22: 0 | X22: 0 | Y22: 0 | Z22: 1 | AA22: 1 | AB22: 0 | AC22: 0 | AD22: 1 | AE22: 1 | AF22: 0 | AG22: 0 | AH22: 0 | AI22: 0 | AJ22: 0 | AK22: 1 | AL22: 0 | AM22: 0 | AN22: 0 | AO22: 0 | AP22: 0 | AQ22: 0 | AR22: 0 | AS22: 1 | AT22: 1 | AU22: 1 | AV22: 0 | AW22: 0 | AX22: 0 | AY22: 0 | AZ22: 0 | BA22: 1 | BB22: 1 | BC22: 0 | BD22: 0 | BE22: 1 | BF22: 1 | BG22: 0 | BH22: 0 | BI22: 0 | BJ22: 0 | BK22: 0 | BL22: 0 | BM22: 0 | BN22: 0 | BO22: 0 | BP22: 0 | BQ22: 0 | BR22: 0 | BS22: 0 | BT22: 1 | BU22: 1 | BV22: 0 | BW22: 0 | BX22: 0 | BY22: 0 | BZ22: 0 | CA22: 0 | CB22: 1 | CC22: 1 | CD22: 0 | CE22: 0 | CF22: 1 | CG22: 1 | CH22: 0 | CI22: 0 | CJ22: 0 | CK22: 0 | CL22: 0 | CM22: 0 | CN22: 0 | CO22: 0 | CP22: 0 | CQ22: 0 | CR22: 0 | CS22: 0 | CT22: 0 | CU22: 1 | CV22: 1 | CW22: 1 | CX22: 0 | CY22: 25 | CZ22: 625
B23: 3 | C23: 1 | D23: 0 | E23: 0 | F23: 0 | G23: 0 | H23: 0 | I23: 0 | J23: 0 | K23: 1 | L23: 1 | M23: 0 | N23: 0 | O23: 1 | P23: 0 | Q23: 0 | R23: 0 | S23: 0 | T23: 0 | U23: 0 | V23: 0 | W23: 0 | X23: 0 | Y23: 1 | Z23: 0 | AA23: 0 | AB23: 0 | AC23: 0 | AD23: 1 | AE23: 0 | AF23: 1 | AG23: 0 | AH23: 0 | AI23: 0 | AJ23: 0 | AK23: 0 | AL23: 1 | AM23: 1 | AN23: 0 | AO23: 0 | AP23: 1 | AQ23: 0 | AR23: 0 | AS23: 0 | AT23: 0 | AU23: 0 | AV23: 0 | AW23: 0 | AX23: 0 | AY23: 0 | AZ23: 1 | BA23: 0 | BB23: 0 | BC23: 0 | BD23: 0 | BE23: 1 | BF23: 0 | BG23: 1 | BH23: 0 | BI23: 0 | BJ23: 0 | BK23: 0 | BL23: 1 | BM23: 1 | BN23: 1 | BO23: 0 | BP23: 0 | BQ23: 1 | BR23: 0 | BS23: 0 | BT23: 0 | BU23: 0 | BV23: 0 | BW23: 0 | BX23: 0 | BY23: 0 | BZ23: 0 | CA23: 0 | CB23: 0 | CC23: 0 | CD23: 0 | CE23: 0 | CF23: 1 | CG23: 0 | CH23: 1 | CI23: 0 | CJ23: 0 | CK23: 0 | CL23: 0 | CM23: 1 | CN23: 1 | CO23: 1 | CP23: 0 | CQ23: 0 | CR23: 1 | CS23: 0 | CT23: 0 | CU23: 0 | CV23: 0 | CW23: 0 | CX23: 0 | CY23: 23 | CZ23: 529
B24: 6 | C24: 0 | D24: 0 | E24: 0 | F24: 0 | G24: 0 | H24: 0 | I24: 0 | J24: 0 | K24: 0 | L24: 1 | M24: 0 | N24: 0 | O24: 0 | P24: 0 | Q24: 1 | R24: 1 | S24: 0 | T24: 0 | U24: 0 | V24: 1 | W24: 0 | X24: 0 | Y24: 0 | Z24: 0 | AA24: 1 | AB24: 0 | AC24: 0 | AD24: 0 | AE24: 1 | AF24: 0 | AG24: 0 | AH24: 0 | AI24: 0 | AJ24: 0 | AK24: 0 | AL24: 0 | AM24: 1 | AN24: 0 | AO24: 0 | AP24: 0 | AQ24: 0 | AR24: 1 | AS24: 1 | AT24: 0 | AU24: 0 | AV24: 0 | AW24: 1 | AX24: 0 | AY24: 0 | AZ24: 0 | BA24: 0 | BB24: 1 | BC24: 0 | BD24: 0 | BE24: 0 | BF24: 1 | BG24: 0 | BH24: 0 | BI24: 0 | BJ24: 0 | BK24: 0 | BL24: 0 | BM24: 0 | BN24: 1 | BO24: 0 | BP24: 0 | BQ24: 0 | BR24: 0 | BS24: 1 | BT24: 1 | BU24: 0 | BV24: 0 | BW24: 0 | BX24: 1 | BY24: 0 | BZ24: 0 | CA24: 0 | CB24: 0 | CC24: 1 | CD24: 0 | CE24: 0 | CF24: 0 | CG24: 1 | CH24: 0 | CI24: 0 | CJ24: 0 | CK24: 0 | CL24: 0 | CM24: 0 | CN24: 0 | CO24: 1 | CP24: 0 | CQ24: 0 | CR24: 0 | CS24: 0 | CT24: 1 | CU24: 1 | CV24: 0 | CW24: 0 | CX24: 0 | CY24: 21 | CZ24: 441
B25: 2 | C25: 1 | D25: 0 | E25: 1 | F25: 0 | G25: 0 | H25: 0 | I25: 0 | J25: 0 | K25: 0 | L25: 0 | M25: 0 | N25: 0 | O25: 0 | P25: 0 | Q25: 0 | R25: 0 | S25: 0 | T25: 1 | U25: 1 | V25: 0 | W25: 0 | X25: 0 | Y25: 0 | Z25: 0 | AA25: 1 | AB25: 0 | AC25: 0 | AD25: 1 | AE25: 1 | AF25: 0 | AG25: 0 | AH25: 0 | AI25: 0 | AJ25: 0 | AK25: 0 | AL25: 0 | AM25: 0 | AN25: 0 | AO25: 0 | AP25: 0 | AQ25: 0 | AR25: 0 | AS25: 0 | AT25: 0 | AU25: 1 | AV25: 1 | AW25: 0 | AX25: 0 | AY25: 0 | AZ25: 0 | BA25: 0 | BB25: 1 | BC25: 0 | BD25: 0 | BE25: 1 | BF25: 1 | BG25: 0 | BH25: 0 | BI25: 0 | BJ25: 0 | BK25: 0 | BL25: 0 | BM25: 0 | BN25: 0 | BO25: 0 | BP25: 0 | BQ25: 0 | BR25: 0 | BS25: 0 | BT25: 0 | BU25: 0 | BV25: 0 | BW25: 1 | BX25: 0 | BY25: 0 | BZ25: 0 | CA25: 1 | CB25: 0 | CC25: 1 | CD25: 0 | CE25: 0 | CF25: 1 | CG25: 1 | CH25: 0 | CI25: 0 | CJ25: 0 | CK25: 0 | CL25: 0 | CM25: 0 | CN25: 0 | CO25: 0 | CP25: 0 | CQ25: 0 | CR25: 0 | CS25: 0 | CT25: 0 | CU25: 0 | CV25: 0 | CW25: 1 | CX25: 1 | CY25: 19 | CZ25: 361
B26: 8 | C26: 0 | D26: 1 | E26: 0 | F26: 0 | G26: 0 | H26: 0 | I26: 1 | J26: 0 | K26: 0 | L26: 0 | M26: 0 | N26: 1 | O26: 0 | P26: 0 | Q26: 0 | R26: 0 | S26: 1 | T26: 0 | U26: 0 | V26: 0 | W26: 0 | X26: 0 | Y26: 0 | Z26: 0 | AA26: 0 | AB26: 0 | AC26: 0 | AD26: 0 | AE26: 0 | AF26: 0 | AG26: 0 | AH26: 0 | AI26: 0 | AJ26: 1 | AK26: 0 | AL26: 0 | AM26: 0 | AN26: 0 | AO26: 1 | AP26: 0 | AQ26: 0 | AR26: 0 | AS26: 0 | AT26: 0 | AU26: 0 | AV26: 0 | AW26: 0 | AX26: 0 | AY26: 0 | AZ26: 0 | BA26: 0 | BB26: 0 | BC26: 0 | BD26: 0 | BE26: 0 | BF26: 0 | BG26: 0 | BH26: 0 | BI26: 0 | BJ26: 0 | BK26: 1 | BL26: 0 | BM26: 0 | BN26: 0 | BO26: 0 | BP26: 1 | BQ26: 0 | BR26: 0 | BS26: 0 | BT26: 0 | BU26: 0 | BV26: 0 | BW26: 0 | BX26: 0 | BY26: 0 | BZ26: 0 | CA26: 0 | CB26: 0 | CC26: 0 | CD26: 0 | CE26: 0 | CF26: 0 | CG26: 0 | CH26: 0 | CI26: 0 | CJ26: 0 | CK26: 0 | CL26: 1 | CM26: 0 | CN26: 0 | CO26: 0 | CP26: 0 | CQ26: 1 | CR26: 0 | CS26: 0 | CT26: 0 | CU26: 0 | CV26: 0 | CW26: 0 | CX26: 0 | CY26: 10 | CZ26: 100
CY27: =SUM(CY19:CY26) -> 251 | CZ27: =SUM(CZ19:CZ26) -> 12513
B28: คำถามข้อที่ | C28: 1 | D28: 2 | E28: 3 | F28: 4 | G28: 5 | H28: 6 | I28: 7 | J28: 8 | K28: 9 | L28: 10 | M28: 11 | N28: 12 | O28: 13 | P28: 14 | Q28: 15 | R28: 16 | S28: 17 | T28: 18 | U28: 19 | V28: 20 | W28: 21 | X28: 22 | Y28: 23 | Z28: 24 | AA28: 25 | AB28: 26 | AC28: 27 | AD28: 28 | AE28: 29 | AF28: 30 | AG28: 31 | AH28: 32 | AI28: 33 | AJ28: 34 | AK28: 35 | AL28: 36 | AM28: 37 | AN28: 38 | AO28: 39 | AP28: 40 | AQ28: 41 | AR28: 42 | AS28: 43 | AT28: 44 | AU28: 45 | AV28: 46 | AW28: 47 | AX28: 48 | AY28: 49 | AZ28: 50 | BA28: 51 | BB28: 52 | BC28: 53 | BD28: 54 | BE28: 55 | BF28: 56 | BG28: 57 | BH28: 58 | BI28: 59 | BJ28: 60 | BK28: 61 | BL28: 62 | BM28: 63 | BN28: 64 | BO28: 65 | BP28: 66 | BQ28: 67 | BR28: 68 | BS28: 69 | BT28: 70 | BU28: 71 | BV28: 72 | BW28: 73 | BX28: 74 | BY28: 75 | BZ28: 76 | CA28: 77 | CB28: 78 | CC28: 79 | CD28: 80 | CE28: 81 | CF28: 82 | CG28: 83 | CH28: 84 | CI28: 85 | CJ28: 86 | CK28: 87 | CL28: 88 | CM28: 89 | CN28: 90 | CO28: 91 | CP28: 92 | CQ28: 93 | CR28: 94 | CS28: 95 | CT28: 96 | CU28: 97 | CV28: 98 | CW28: 99 | CX28: 100
B29: ตอบถูก | C29: =COUNTIF(C19:C26,1) -> 6 | D29: =COUNTIF(D19:D26,1) -> 1 | E29: =COUNTIF(E19:E26,1) -> 1 | F29: =COUNTIF(F19:F26,1) -> 1 | G29: =COUNTIF(G19:G26,1) -> 2 | H29: =COUNTIF(H19:H26,1) -> 2 | I29: =COUNTIF(I19:I26,1) -> 3 | J29: =COUNTIF(J19:J26,1) -> 3 | K29: =COUNTIF(K19:K26,1) -> 2 | L29: =COUNTIF(L19:L26,1) -> 3 | M29: =COUNTIF(M19:M26,1) -> 1 | N29: =COUNTIF(N19:N26,1) -> 3 | O29: =COUNTIF(O19:O26,1) -> 2 | P29: =COUNTIF(P19:P26,1) -> 1 | Q29: =COUNTIF(Q19:Q26,1) -> 2 | R29: =COUNTIF(R19:R26,1) -> 3 | S29: =COUNTIF(S19:S26,1) -> 1 | T29: =COUNTIF(T19:T26,1) -> 4 | U29: =COUNTIF(U19:U26,1) -> 3 | V29: =COUNTIF(V19:V26,1) -> 2 | W29: =COUNTIF(W19:W26,1) -> 2 | X29: =COUNTIF(X19:X26,1) -> 1 | Y29: =COUNTIF(Y19:Y26,1) -> 4 | Z29: =COUNTIF(Z19:Z26,1) -> 3 | AA29: =COUNTIF(AA19:AA26,1) -> 4 | AB29: =COUNTIF(AB19:AB26,1) -> 2 | AC29: =COUNTIF(AC19:AC26,1) -> 2 | AD29: =COUNTIF(AD19:AD26,1) -> 6 | AE29: =COUNTIF(AE19:AE26,1) -> 5 | AF29: =COUNTIF(AF19:AF26,1) -> 3 | AG29: =COUNTIF(AG19:AG26,1) -> 1 | AH29: =COUNTIF(AH19:AH26,1) -> 2 | AI29: =COUNTIF(AI19:AI26,1) -> 2 | AJ29: =COUNTIF(AJ19:AJ26,1) -> 3 | AK29: =COUNTIF(AK19:AK26,1) -> 3 | AL29: =COUNTIF(AL19:AL26,1) -> 2 | AM29: =COUNTIF(AM19:AM26,1) -> 3 | AN29: =COUNTIF(AN19:AN26,1) -> 1 | AO29: =COUNTIF(AO19:AO26,1) -> 3 | AP29: =COUNTIF(AP19:AP26,1) -> 2 | AQ29: =COUNTIF(AQ19:AQ26,1) -> 1 | AR29: =COUNTIF(AR19:AR26,1) -> 2 | AS29: =COUNTIF(AS19:AS26,1) -> 3 | AT29: =COUNTIF(AT19:AT26,1) -> 3 | AU29: =COUNTIF(AU19:AU26,1) -> 4 | AV29: =COUNTIF(AV19:AV26,1) -> 3 | AW29: =COUNTIF(AW19:AW26,1) -> 2 | AX29: =COUNTIF(AX19:AX26,1) -> 2 | AY29: =COUNTIF(AY19:AY26,1) -> 1 | AZ29: =COUNTIF(AZ19:AZ26,1) -> 4 | BA29: =COUNTIF(BA19:BA26,1) -> 3 | BB29: =COUNTIF(BB19:BB26,1) -> 4 | BC29: =COUNTIF(BC19:BC26,1) -> 2 | BD29: =COUNTIF(BD19:BD26,1) -> 2 | BE29: =COUNTIF(BE19:BE26,1) -> 6 | BF29: =COUNTIF(BF19:BF26,1) -> 5 | BG29: =COUNTIF(BG19:BG26,1) -> 3 | BH29: =COUNTIF(BH19:BH26,1) -> 1 | BI29: =COUNTIF(BI19:BI26,1) -> 2 | BJ29: =COUNTIF(BJ19:BJ26,1) -> 2 | BK29: =COUNTIF(BK19:BK26,1) -> 3 | BL29: =COUNTIF(BL19:BL26,1) -> 2 | BM29: =COUNTIF(BM19:BM26,1) -> 2 | BN29: =COUNTIF(BN19:BN26,1) -> 3 | BO29: =COUNTIF(BO19:BO26,1) -> 1 | BP29: =COUNTIF(BP19:BP26,1) -> 3 | BQ29: =COUNTIF(BQ19:BQ26,1) -> 2 | BR29: =COUNTIF(BR19:BR26,1) -> 1 | BS29: =COUNTIF(BS19:BS26,1) -> 2 | BT29: =COUNTIF(BT19:BT26,1) -> 3 | BU29: =COUNTIF(BU19:BU26,1) -> 3 | BV29: =COUNTIF(BV19:BV26,1) -> 0 | BW29: =COUNTIF(BW19:BW26,1) -> 3 | BX29: =COUNTIF(BX19:BX26,1) -> 2 | BY29: =COUNTIF(BY19:BY26,1) -> 2 | BZ29: =COUNTIF(BZ19:BZ26,1) -> 1 | CA29: =COUNTIF(CA19:CA26,1) -> 1 | CB29: =COUNTIF(CB19:CB26,1) -> 3 | CC29: =COUNTIF(CC19:CC26,1) -> 4 | CD29: =COUNTIF(CD19:CD26,1) -> 2 | CE29: =COUNTIF(CE19:CE26,1) -> 2 | CF29: =COUNTIF(CF19:CF26,1) -> 6 | CG29: =COUNTIF(CG19:CG26,1) -> 5 | CH29: =COUNTIF(CH19:CH26,1) -> 3 | CI29: =COUNTIF(CI19:CI26,1) -> 1 | CJ29: =COUNTIF(CJ19:CJ26,1) -> 2 | CK29: =COUNTIF(CK19:CK26,1) -> 2 | CL29: =COUNTIF(CL19:CL26,1) -> 3 | CM29: =COUNTIF(CM19:CM26,1) -> 2 | CN29: =COUNTIF(CN19:CN26,1) -> 2 | CO29: =COUNTIF(CO19:CO26,1) -> 3 | CP29: =COUNTIF(CP19:CP26,1) -> 1 | CQ29: =COUNTIF(CQ19:CQ26,1) -> 3 | CR29: =COUNTIF(CR19:CR26,1) -> 2 | CS29: =COUNTIF(CS19:CS26,1) -> 1 | CT29: =COUNTIF(CT19:CT26,1) -> 2 | CU29: =COUNTIF(CU19:CU26,1) -> 3 | CV29: =COUNTIF(CV19:CV26,1) -> 3 | CW29: =COUNTIF(CW19:CW26,1) -> 4 | CX29: =COUNTIF(CX19:CX26,1) -> 3
B30: ตอบผิด | C30: =COUNTIF(C19:C26,0) -> 2 | D30: =COUNTIF(D19:D26,0) -> 7 | E30: =COUNTIF(E19:E26,0) -> 7 | F30: =COUNTIF(F19:F26,0) -> 7 | G30: =COUNTIF(G19:G26,0) -> 6 | H30: =COUNTIF(H19:H26,0) -> 6 | I30: =COUNTIF(I19:I26,0) -> 5 | J30: =COUNTIF(J19:J26,0) -> 5 | K30: =COUNTIF(K19:K26,0) -> 6 | L30: =COUNTIF(L19:L26,0) -> 5 | M30: =COUNTIF(M19:M26,0) -> 7 | N30: =COUNTIF(N19:N26,0) -> 5 | O30: =COUNTIF(O19:O26,0) -> 6 | P30: =COUNTIF(P19:P26,0) -> 7 | Q30: =COUNTIF(Q19:Q26,0) -> 6 | R30: =COUNTIF(R19:R26,0) -> 5 | S30: =COUNTIF(S19:S26,0) -> 7 | T30: =COUNTIF(T19:T26,0) -> 4 | U30: =COUNTIF(U19:U26,0) -> 5 | V30: =COUNTIF(V19:V26,0) -> 6 | W30: =COUNTIF(W19:W26,0) -> 6 | X30: =COUNTIF(X19:X26,0) -> 7 | Y30: =COUNTIF(Y19:Y26,0) -> 4 | Z30: =COUNTIF(Z19:Z26,0) -> 5 | AA30: =COUNTIF(AA19:AA26,0) -> 4 | AB30: =COUNTIF(AB19:AB26,0) -> 6 | AC30: =COUNTIF(AC19:AC26,0) -> 6 | AD30: =COUNTIF(AD19:AD26,0) -> 2 | AE30: =COUNTIF(AE19:AE26,0) -> 3 | AF30: =COUNTIF(AF19:AF26,0) -> 5 | AG30: =COUNTIF(AG19:AG26,0) -> 7 | AH30: =COUNTIF(AH19:AH26,0) -> 6 | AI30: =COUNTIF(AI19:AI26,0) -> 6 | AJ30: =COUNTIF(AJ19:AJ26,0) -> 5 | AK30: =COUNTIF(AK19:AK26,0) -> 5 | AL30: =COUNTIF(AL19:AL26,0) -> 6 | AM30: =COUNTIF(AM19:AM26,0) -> 5 | AN30: =COUNTIF(AN19:AN26,0) -> 7 | AO30: =COUNTIF(AO19:AO26,0) -> 5 | AP30: =COUNTIF(AP19:AP26,0) -> 6 | AQ30: =COUNTIF(AQ19:AQ26,0) -> 7 | AR30: =COUNTIF(AR19:AR26,0) -> 6 | AS30: =COUNTIF(AS19:AS26,0) -> 5 | AT30: =COUNTIF(AT19:AT26,0) -> 5 | AU30: =COUNTIF(AU19:AU26,0) -> 4 | AV30: =COUNTIF(AV19:AV26,0) -> 5 | AW30: =COUNTIF(AW19:AW26,0) -> 6 | AX30: =COUNTIF(AX19:AX26,0) -> 6 | AY30: =COUNTIF(AY19:AY26,0) -> 7 | AZ30: =COUNTIF(AZ19:AZ26,0) -> 4 | BA30: =COUNTIF(BA19:BA26,0) -> 5 | BB30: =COUNTIF(BB19:BB26,0) -> 4 | BC30: =COUNTIF(BC19:BC26,0) -> 6 | BD30: =COUNTIF(BD19:BD26,0) -> 6 | BE30: =COUNTIF(BE19:BE26,0) -> 2 | BF30: =COUNTIF(BF19:BF26,0) -> 3 | BG30: =COUNTIF(BG19:BG26,0) -> 5 | BH30: =COUNTIF(BH19:BH26,0) -> 7 | BI30: =COUNTIF(BI19:BI26,0) -> 6 | BJ30: =COUNTIF(BJ19:BJ26,0) -> 6 | BK30: =COUNTIF(BK19:BK26,0) -> 5 | BL30: =COUNTIF(BL19:BL26,0) -> 6 | BM30: =COUNTIF(BM19:BM26,0) -> 6 | BN30: =COUNTIF(BN19:BN26,0) -> 5 | BO30: =COUNTIF(BO19:BO26,0) -> 7 | BP30: =COUNTIF(BP19:BP26,0) -> 5 | BQ30: =COUNTIF(BQ19:BQ26,0) -> 6 | BR30: =COUNTIF(BR19:BR26,0) -> 7 | BS30: =COUNTIF(BS19:BS26,0) -> 6 | BT30: =COUNTIF(BT19:BT26,0) -> 5 | BU30: =COUNTIF(BU19:BU26,0) -> 5 | BV30: =COUNTIF(BV19:BV26,0) -> 8 | BW30: =COUNTIF(BW19:BW26,0) -> 5 | BX30: =COUNTIF(BX19:BX26,0) -> 6 | BY30: =COUNTIF(BY19:BY26,0) -> 6 | BZ30: =COUNTIF(BZ19:BZ26,0) -> 7 | CA30: =COUNTIF(CA19:CA26,0) -> 7 | CB30: =COUNTIF(CB19:CB26,0) -> 5 | CC30: =COUNTIF(CC19:CC26,0) -> 4 | CD30: =COUNTIF(CD19:CD26,0) -> 6 | CE30: =COUNTIF(CE19:CE26,0) -> 6 | CF30: =COUNTIF(CF19:CF26,0) -> 2 | CG30: =COUNTIF(CG19:CG26,0) -> 3 | CH30: =COUNTIF(CH19:CH26,0) -> 5 | CI30: =COUNTIF(CI19:CI26,0) -> 7 | CJ30: =COUNTIF(CJ19:CJ26,0) -> 6 | CK30: =COUNTIF(CK19:CK26,0) -> 6 | CL30: =COUNTIF(CL19:CL26,0) -> 5 | CM30: =COUNTIF(CM19:CM26,0) -> 6 | CN30: =COUNTIF(CN19:CN26,0) -> 6 | CO30: =COUNTIF(CO19:CO26,0) -> 5 | CP30: =COUNTIF(CP19:CP26,0) -> 7 | CQ30: =COUNTIF(CQ19:CQ26,0) -> 5 | CR30: =COUNTIF(CR19:CR26,0) -> 6 | CS30: =COUNTIF(CS19:CS26,0) -> 7 | CT30: =COUNTIF(CT19:CT26,0) -> 6 | CU30: =COUNTIF(CU19:CU26,0) -> 5 | CV30: =COUNTIF(CV19:CV26,0) -> 5 | CW30: =COUNTIF(CW19:CW26,0) -> 4 | CX30: =COUNTIF(CX19:CX26,0) -> 5
B31: pi | C31: =29:29/8 -> 0.75 | D31: =29:29/8 -> 0.125 | E31: =29:29/8 -> 0.125 | F31: =29:29/8 -> 0.125 | G31: =29:29/8 -> 0.25 | H31: =29:29/8 -> 0.25 | I31: =29:29/8 -> 0.375 | J31: =29:29/8 -> 0.375 | K31: =29:29/8 -> 0.25 | L31: =29:29/8 -> 0.375 | M31: =29:29/8 -> 0.125 | N31: =29:29/8 -> 0.375 | O31: =29:29/8 -> 0.25 | P31: =29:29/8 -> 0.125 | Q31: =29:29/8 -> 0.25 | R31: =29:29/8 -> 0.375 | S31: =29:29/8 -> 0.125 | T31: =29:29/8 -> 0.5 | U31: =29:29/8 -> 0.375 | V31: =29:29/8 -> 0.25 | W31: =29:29/8 -> 0.25 | X31: =29:29/8 -> 0.125 | Y31: =29:29/8 -> 0.5 | Z31: =29:29/8 -> 0.375 | AA31: =29:29/8 -> 0.5 | AB31: =29:29/8 -> 0.25 | AC31: =29:29/8 -> 0.25 | AD31: =29:29/8 -> 0.75 | AE31: =29:29/8 -> 0.625 | AF31: =29:29/8 -> 0.375 | AG31: =29:29/8 -> 0.125 | AH31: =29:29/8 -> 0.25 | AI31: =29:29/8 -> 0.25 | AJ31: =29:29/8 -> 0.375 | AK31: =29:29/8 -> 0.375 | AL31: =29:29/8 -> 0.25 | AM31: =29:29/8 -> 0.375 | AN31: =29:29/8 -> 0.125 | AO31: =29:29/8 -> 0.375 | AP31: =29:29/8 -> 0.25 | AQ31: =29:29/8 -> 0.125 | AR31: =29:29/8 -> 0.25 | AS31: =29:29/8 -> 0.375 | AT31: =29:29/8 -> 0.375 | AU31: =29:29/8 -> 0.5 | AV31: =29:29/8 -> 0.375 | AW31: =29:29/8 -> 0.25 | AX31: =29:29/8 -> 0.25 | AY31: =29:29/8 -> 0.125 | AZ31: =29:29/8 -> 0.5 | BA31: =29:29/8 -> 0.375 | BB31: =29:29/8 -> 0.5 | BC31: =29:29/8 -> 0.25 | BD31: =29:29/8 -> 0.25 | BE31: =29:29/8 -> 0.75 | BF31: =29:29/8 -> 0.625 | BG31: =29:29/8 -> 0.375 | BH31: =29:29/8 -> 0.125 | BI31: =29:29/8 -> 0.25 | BJ31: =29:29/8 -> 0.25 | BK31: =29:29/8 -> 0.375 | BL31: =29:29/8 -> 0.25 | BM31: =29:29/8 -> 0.25 | BN31: =29:29/8 -> 0.375 | BO31: =29:29/8 -> 0.125 | BP31: =29:29/8 -> 0.375 | BQ31: =29:29/8 -> 0.25 | BR31: =29:29/8 -> 0.125 | BS31: =29:29/8 -> 0.25 | BT31: =29:29/8 -> 0.375 | BU31: =29:29/8 -> 0.375 | BV31: =29:29/8 -> 0 | BW31: =29:29/8 -> 0.375 | BX31: =29:29/8 -> 0.25 | BY31: =29:29/8 -> 0.25 | BZ31: =29:29/8 -> 0.125 | CA31: =29:29/8 -> 0.125 | CB31: =29:29/8 -> 0.375 | CC31: =29:29/8 -> 0.5 | CD31: =29:29/8 -> 0.25 | CE31: =29:29/8 -> 0.25 | CF31: =29:29/8 -> 0.75 | CG31: =29:29/8 -> 0.625 | CH31: =29:29/8 -> 0.375 | CI31: =29:29/8 -> 0.125 | CJ31: =29:29/8 -> 0.25 | CK31: =29:29/8 -> 0.25 | CL31: =29:29/8 -> 0.375 | CM31: =29:29/8 -> 0.25 | CN31: =29:29/8 -> 0.25 | CO31: =29:29/8 -> 0.375 | CP31: =29:29/8 -> 0.125 | CQ31: =29:29/8 -> 0.375 | CR31: =29:29/8 -> 0.25 | CS31: =29:29/8 -> 0.125 | CT31: =29:29/8 -> 0.25 | CU31: =29:29/8 -> 0.375 | CV31: =29:29/8 -> 0.375 | CW31: =29:29/8 -> 0.5 | CX31: =29:29/8 -> 0.375
B32: qi | C32: =30:30/8 -> 0.25 | D32: =30:30/8 -> 0.875 | E32: =30:30/8 -> 0.875 | F32: =30:30/8 -> 0.875 | G32: =30:30/8 -> 0.75 | H32: =30:30/8 -> 0.75 | I32: =30:30/8 -> 0.625 | J32: =30:30/8 -> 0.625 | K32: =30:30/8 -> 0.75 | L32: =30:30/8 -> 0.625 | M32: =30:30/8 -> 0.875 | N32: =30:30/8 -> 0.625 | O32: =30:30/8 -> 0.75 | P32: =30:30/8 -> 0.875 | Q32: =30:30/8 -> 0.75 | R32: =30:30/8 -> 0.625 | S32: =30:30/8 -> 0.875 | T32: =30:30/8 -> 0.5 | U32: =30:30/8 -> 0.625 | V32: =30:30/8 -> 0.75 | W32: =30:30/8 -> 0.75 | X32: =30:30/8 -> 0.875 | Y32: =30:30/8 -> 0.5 | Z32: =30:30/8 -> 0.625 | AA32: =30:30/8 -> 0.5 | AB32: =30:30/8 -> 0.75 | AC32: =30:30/8 -> 0.75 | AD32: =30:30/8 -> 0.25 | AE32: =30:30/8 -> 0.375 | AF32: =30:30/8 -> 0.625 | AG32: =30:30/8 -> 0.875 | AH32: =30:30/8 -> 0.75 | AI32: =30:30/8 -> 0.75 | AJ32: =30:30/8 -> 0.625 | AK32: =30:30/8 -> 0.625 | AL32: =30:30/8 -> 0.75 | AM32: =30:30/8 -> 0.625 | AN32: =30:30/8 -> 0.875 | AO32: =30:30/8 -> 0.625 | AP32: =30:30/8 -> 0.75 | AQ32: =30:30/8 -> 0.875 | AR32: =30:30/8 -> 0.75 | AS32: =30:30/8 -> 0.625 | AT32: =30:30/8 -> 0.625 | AU32: =30:30/8 -> 0.5 | AV32: =30:30/8 -> 0.625 | AW32: =30:30/8 -> 0.75 | AX32: =30:30/8 -> 0.75 | AY32: =30:30/8 -> 0.875 | AZ32: =30:30/8 -> 0.5 | BA32: =30:30/8 -> 0.625 | BB32: =30:30/8 -> 0.5 | BC32: =30:30/8 -> 0.75 | BD32: =30:30/8 -> 0.75 | BE32: =30:30/8 -> 0.25 | BF32: =30:30/8 -> 0.375 | BG32: =30:30/8 -> 0.625 | BH32: =30:30/8 -> 0.875 | BI32: =30:30/8 -> 0.75 | BJ32: =30:30/8 -> 0.75 | BK32: =30:30/8 -> 0.625 | BL32: =30:30/8 -> 0.75 | BM32: =30:30/8 -> 0.75 | BN32: =30:30/8 -> 0.625 | BO32: =30:30/8 -> 0.875 | BP32: =30:30/8 -> 0.625 | BQ32: =30:30/8 -> 0.75 | BR32: =30:30/8 -> 0.875 | BS32: =30:30/8 -> 0.75 | BT32: =30:30/8 -> 0.625 | BU32: =30:30/8 -> 0.625 | BV32: =30:30/8 -> 1 | BW32: =30:30/8 -> 0.625 | BX32: =30:30/8 -> 0.75 | BY32: =30:30/8 -> 0.75 | BZ32: =30:30/8 -> 0.875 | CA32: =30:30/8 -> 0.875 | CB32: =30:30/8 -> 0.625 | CC32: =30:30/8 -> 0.5 | CD32: =30:30/8 -> 0.75 | CE32: =30:30/8 -> 0.75 | CF32: =30:30/8 -> 0.25 | CG32: =30:30/8 -> 0.375 | CH32: =30:30/8 -> 0.625 | CI32: =30:30/8 -> 0.875 | CJ32: =30:30/8 -> 0.75 | CK32: =30:30/8 -> 0.75 | CL32: =30:30/8 -> 0.625 | CM32: =30:30/8 -> 0.75 | CN32: =30:30/8 -> 0.75 | CO32: =30:30/8 -> 0.625 | CP32: =30:30/8 -> 0.875 | CQ32: =30:30/8 -> 0.625 | CR32: =30:30/8 -> 0.75 | CS32: =30:30/8 -> 0.875 | CT32: =30:30/8 -> 0.75 | CU32: =30:30/8 -> 0.625 | CV32: =30:30/8 -> 0.625 | CW32: =30:30/8 -> 0.5 | CX32: =30:30/8 -> 0.625
B33: piqi | C33: =C31 * C32 -> 0.1875 | D33: =D31 * D32 -> 0.109375 | E33: =E31 * E32 -> 0.109375 | F33: =F31 * F32 -> 0.109375 | G33: =G31 * G32 -> 0.1875 | H33: =H31 * H32 -> 0.1875 | I33: =I31 * I32 -> 0.234375 | J33: =J31 * J32 -> 0.234375 | K33: =K31 * K32 -> 0.1875 | L33: =L31 * L32 -> 0.234375 | M33: =M31 * M32 -> 0.109375 | N33: =N31 * N32 -> 0.234375 | O33: =O31 * O32 -> 0.1875 | P33: =P31 * P32 -> 0.109375 | Q33: =Q31 * Q32 -> 0.1875 | R33: =R31 * R32 -> 0.234375 | S33: =S31 * S32 -> 0.109375 | T33: =T31 * T32 -> 0.25 | U33: =U31 * U32 -> 0.234375 | V33: =V31 * V32 -> 0.1875 | W33: =W31 * W32 -> 0.1875 | X33: =X31 * X32 -> 0.109375 | Y33: =Y31 * Y32 -> 0.25 | Z33: =Z31 * Z32 -> 0.234375 | AA33: =AA31 * AA32 -> 0.25 | AB33: =AB31 * AB32 -> 0.1875 | AC33: =AC31 * AC32 -> 0.1875 | AD33: =AD31 * AD32 -> 0.1875 | AE33: =AE31 * AE32 -> 0.234375 | AF33: =AF31 * AF32 -> 0.234375 | AG33: =AG31 * AG32 -> 0.109375 | AH33: =AH31 * AH32 -> 0.1875 | AI33: =AI31 * AI32 -> 0.1875 | AJ33: =AJ31 * AJ32 -> 0.234375 | AK33: =AK31 * AK32 -> 0.234375 | AL33: =AL31 * AL32 -> 0.1875 | AM33: =AM31 * AM32 -> 0.234375 | AN33: =AN31 * AN32 -> 0.109375 | AO33: =AO31 * AO32 -> 0.234375 | AP33: =AP31 * AP32 -> 0.1875 | AQ33: =AQ31 * AQ32 -> 0.109375 | AR33: =AR31 * AR32 -> 0.1875 | AS33: =AS31 * AS32 -> 0.234375 | AT33: =AT31 * AT32 -> 0.234375 | AU33: =AU31 * AU32 -> 0.25 | AV33: =AV31 * AV32 -> 0.234375 | AW33: =AW31 * AW32 -> 0.1875 | AX33: =AX31 * AX32 -> 0.1875 | AY33: =AY31 * AY32 -> 0.109375 | AZ33: =AZ31 * AZ32 -> 0.25 | BA33: =BA31 * BA32 -> 0.234375 | BB33: =BB31 * BB32 -> 0.25 | BC33: =BC31 * BC32 -> 0.1875 | BD33: =BD31 * BD32 -> 0.1875 | BE33: =BE31 * BE32 -> 0.1875 | BF33: =BF31 * BF32 -> 0.234375 | BG33: =BG31 * BG32 -> 0.234375 | BH33: =BH31 * BH32 -> 0.109375 | BI33: =BI31 * BI32 -> 0.1875 | BJ33: =BJ31 * BJ32 -> 0.1875 | BK33: =BK31 * BK32 -> 0.234375 | BL33: =BL31 * BL32 -> 0.1875 | BM33: =BM31 * BM32 -> 0.1875 | BN33: =BN31 * BN32 -> 0.234375 | BO33: =BO31 * BO32 -> 0.109375 | BP33: =BP31 * BP32 -> 0.234375 | BQ33: =BQ31 * BQ32 -> 0.1875 | BR33: =BR31 * BR32 -> 0.109375 | BS33: =BS31 * BS32 -> 0.1875 | BT33: =BT31 * BT32 -> 0.234375 | BU33: =BU31 * BU32 -> 0.234375 | BV33: =BV31 * BV32 -> 0 | BW33: =BW31 * BW32 -> 0.234375 | BX33: =BX31 * BX32 -> 0.1875 | BY33: =BY31 * BY32 -> 0.1875 | BZ33: =BZ31 * BZ32 -> 0.109375 | CA33: =CA31 * CA32 -> 0.109375 | CB33: =CB31 * CB32 -> 0.234375 | CC33: =CC31 * CC32 -> 0.25 | CD33: =CD31 * CD32 -> 0.1875 | CE33: =CE31 * CE32 -> 0.1875 | CF33: =CF31 * CF32 -> 0.1875 | CG33: =CG31 * CG32 -> 0.234375 | CH33: =CH31 * CH32 -> 0.234375 | CI33: =CI31 * CI32 -> 0.109375 | CJ33: =CJ31 * CJ32 -> 0.1875 | CK33: =CK31 * CK32 -> 0.1875 | CL33: =CL31 * CL32 -> 0.234375 | CM33: =CM31 * CM32 -> 0.1875 | CN33: =CN31 * CN32 -> 0.1875 | CO33: =CO31 * CO32 -> 0.234375 | CP33: =CP31 * CP32 -> 0.109375 | CQ33: =CQ31 * CQ32 -> 0.234375 | CR33: =CR31 * CR32 -> 0.1875 | CS33: =CS31 * CS32 -> 0.109375 | CT33: =CT31 * CT32 -> 0.1875 | CU33: =CU31 * CU32 -> 0.234375 | CV33: =CV31 * CV32 -> 0.234375 | CW33: =CW31 * CW32 -> 0.25 | CX33: =CX31 * CX32 -> 0.234375 | CZ33: =SUM(C33:CX33) -> 19.171875
B35: ร้อยละการเลือกตัวเลือกแต่ละข้อ
B36: ข้อ | C36: 1 | D36: 2 | E36: 3 | F36: 4 | G36: 5 | H36: 6 | I36: 7 | J36: 8 | K36: 9 | L36: 10 | M36: 11 | N36: 12 | O36: 13 | P36: 14 | Q36: 15 | R36: 16 | S36: 17 | T36: 18 | U36: 19 | V36: 20 | W36: 21 | X36: 22 | Y36: 23 | Z36: 24 | AA36: 25 | AB36: 26 | AC36: 27 | AD36: 28 | AE36: 29 | AF36: 30 | AG36: 31 | AH36: 32 | AI36: 33 | AJ36: 34 | AK36: 35 | AL36: 36 | AM36: 37 | AN36: 38 | AO36: 39 | AP36: 40 | AQ36: 41 | AR36: 42 | AS36: 43 | AT36: 44 | AU36: 45 | AV36: 46 | AW36: 47 | AX36: 48 | AY36: 49 | AZ36: 50 | BA36: 51 | BB36: 52 | BC36: 53 | BD36: 54 | BE36: 55 | BF36: 56 | BG36: 57 | BH36: 58 | BI36: 59 | BJ36: 60 | BK36: 61 | BL36: 62 | BM36: 63 | BN36: 64 | BO36: 65 | BP36: 66 | BQ36: 67 | BR36: 68 | BS36: 69 | BT36: 70 | BU36: 71 | BV36: 72 | BW36: 73 | BX36: 74 | BY36: 75 | BZ36: 76 | CA36: 77 | CB36: 78 | CC36: 79 | CD36: 80 | CE36: 81 | CF36: 82 | CG36: 83 | CH36: 84 | CI36: 85 | CJ36: 86 | CK36: 87 | CL36: 88 | CM36: 89 | CN36: 90 | CO36: 91 | CP36: 92 | CQ36: 93 | CR36: 94 | CS36: 95 | CT36: 96 | CU36: 97 | CV36: 98 | CW36: 99 | CX36: 100
B37: ข้อ ก | C37: =COUNTIF(C8:C15,"ก") / 8 * 100 -> 12.5 | D37: =COUNTIF(D8:D15,"ก") / 8 * 100 -> 0 | E37: =COUNTIF(E8:E15,"ก") / 8 * 100 -> 37.5 | F37: =COUNTIF(F8:F15,"ก") / 8 * 100 -> 12.5 | G37: =COUNTIF(G8:G15,"ก") / 8 * 100 -> 25 | H37: =COUNTIF(H8:H15,"ก") / 8 * 100 -> 25 | I37: =COUNTIF(I8:I15,"ก") / 8 * 100 -> 37.5 | J37: =COUNTIF(J8:J15,"ก") / 8 * 100 -> 25 | K37: =COUNTIF(K8:K15,"ก") / 8 * 100 -> 25 | L37: =COUNTIF(L8:L15,"ก") / 8 * 100 -> 12.5 | M37: =COUNTIF(M8:M15,"ก") / 8 * 100 -> 12.5 | N37: =COUNTIF(N8:N15,"ก") / 8 * 100 -> 25 | O37: =COUNTIF(O8:O15,"ก") / 8 * 100 -> 12.5 | P37: =COUNTIF(P8:P15,"ก") / 8 * 100 -> 12.5 | Q37: =COUNTIF(Q8:Q15,"ก") / 8 * 100 -> 50 | R37: =COUNTIF(R8:R15,"ก") / 8 * 100 -> 37.5 | S37: =COUNTIF(S8:S15,"ก") / 8 * 100 -> 37.5 | T37: =COUNTIF(T8:T15,"ก") / 8 * 100 -> 50 | U37: =COUNTIF(U8:U15,"ก") / 8 * 100 -> 0 | V37: =COUNTIF(V8:V15,"ก") / 8 * 100 -> 12.5 | W37: =COUNTIF(W8:W15,"ก") / 8 * 100 -> 25 | X37: =COUNTIF(X8:X15,"ก") / 8 * 100 -> 0 | Y37: =COUNTIF(Y8:Y15,"ก") / 8 * 100 -> 12.5 | Z37: =COUNTIF(Z8:Z15,"ก") / 8 * 100 -> 37.5 | AA37: =COUNTIF(AA8:AA15,"ก") / 8 * 100 -> 0 | AB37: =COUNTIF(AB8:AB15,"ก") / 8 * 100 -> 12.5 | AC37: =COUNTIF(AC8:AC15,"ก") / 8 * 100 -> 12.5 | AD37: =COUNTIF(AD8:AD15,"ก") / 8 * 100 -> 12.5 | AE37: =COUNTIF(AE8:AE15,"ก") / 8 * 100 -> 12.5 | AF37: =COUNTIF(AF8:AF15,"ก") / 8 * 100 -> 37.5 | AG37: =COUNTIF(AG8:AG15,"ก") / 8 * 100 -> 12.5 | AH37: =COUNTIF(AH8:AH15,"ก") / 8 * 100 -> 25 | AI37: =COUNTIF(AI8:AI15,"ก") / 8 * 100 -> 25 | AJ37: =COUNTIF(AJ8:AJ15,"ก") / 8 * 100 -> 37.5 | AK37: =COUNTIF(AK8:AK15,"ก") / 8 * 100 -> 25 | AL37: =COUNTIF(AL8:AL15,"ก") / 8 * 100 -> 25 | AM37: =COUNTIF(AM8:AM15,"ก") / 8 * 100 -> 12.5 | AN37: =COUNTIF(AN8:AN15,"ก") / 8 * 100 -> 12.5 | AO37: =COUNTIF(AO8:AO15,"ก") / 8 * 100 -> 25 | AP37: =COUNTIF(AP8:AP15,"ก") / 8 * 100 -> 12.5 | AQ37: =COUNTIF(AQ8:AQ15,"ก") / 8 * 100 -> 12.5 | AR37: =COUNTIF(AR8:AR15,"ก") / 8 * 100 -> 50 | AS37: =COUNTIF(AS8:AS15,"ก") / 8 * 100 -> 37.5 | AT37: =COUNTIF(AT8:AT15,"ก") / 8 * 100 -> 37.5 | AU37: =COUNTIF(AU8:AU15,"ก") / 8 * 100 -> 50 | AV37: =COUNTIF(AV8:AV15,"ก") / 8 * 100 -> 0 | AW37: =COUNTIF(AW8:AW15,"ก") / 8 * 100 -> 12.5 | AX37: =COUNTIF(AX8:AX15,"ก") / 8 * 100 -> 25 | AY37: =COUNTIF(AY8:AY15,"ก") / 8 * 100 -> 0 | AZ37: =COUNTIF(AZ8:AZ15,"ก") / 8 * 100 -> 12.5 | BA37: =COUNTIF(BA8:BA15,"ก") / 8 * 100 -> 37.5 | BB37: =COUNTIF(BB8:BB15,"ก") / 8 * 100 -> 0 | BC37: =COUNTIF(BC8:BC15,"ก") / 8 * 100 -> 12.5 | BD37: =COUNTIF(BD8:BD15,"ก") / 8 * 100 -> 12.5 | BE37: =COUNTIF(BE8:BE15,"ก") / 8 * 100 -> 12.5 | BF37: =COUNTIF(BF8:BF15,"ก") / 8 * 100 -> 12.5 | BG37: =COUNTIF(BG8:BG15,"ก") / 8 * 100 -> 37.5 | BH37: =COUNTIF(BH8:BH15,"ก") / 8 * 100 -> 12.5 | BI37: =COUNTIF(BI8:BI15,"ก") / 8 * 100 -> 25 | BJ37: =COUNTIF(BJ8:BJ15,"ก") / 8 * 100 -> 25 | BK37: =COUNTIF(BK8:BK15,"ก") / 8 * 100 -> 37.5 | BL37: =COUNTIF(BL8:BL15,"ก") / 8 * 100 -> 25 | BM37: =COUNTIF(BM8:BM15,"ก") / 8 * 100 -> 25 | BN37: =COUNTIF(BN8:BN15,"ก") / 8 * 100 -> 12.5 | BO37: =COUNTIF(BO8:BO15,"ก") / 8 * 100 -> 12.5 | BP37: =COUNTIF(BP8:BP15,"ก") / 8 * 100 -> 25 | BQ37: =COUNTIF(BQ8:BQ15,"ก") / 8 * 100 -> 12.5 | BR37: =COUNTIF(BR8:BR15,"ก") / 8 * 100 -> 12.5 | BS37: =COUNTIF(BS8:BS15,"ก") / 8 * 100 -> 50 | BT37: =COUNTIF(BT8:BT15,"ก") / 8 * 100 -> 37.5 | BU37: =COUNTIF(BU8:BU15,"ก") / 8 * 100 -> 37.5 | BV37: =COUNTIF(BV8:BV15,"ก") / 8 * 100 -> 50 | BW37: =COUNTIF(BW8:BW15,"ก") / 8 * 100 -> 0 | BX37: =COUNTIF(BX8:BX15,"ก") / 8 * 100 -> 12.5 | BY37: =COUNTIF(BY8:BY15,"ก") / 8 * 100 -> 25 | BZ37: =COUNTIF(BZ8:BZ15,"ก") / 8 * 100 -> 0 | CA37: =COUNTIF(CA8:CA15,"ก") / 8 * 100 -> 12.5 | CB37: =COUNTIF(CB8:CB15,"ก") / 8 * 100 -> 37.5 | CC37: =COUNTIF(CC8:CC15,"ก") / 8 * 100 -> 0 | CD37: =COUNTIF(CD8:CD15,"ก") / 8 * 100 -> 12.5 | CE37: =COUNTIF(CE8:CE15,"ก") / 8 * 100 -> 12.5 | CF37: =COUNTIF(CF8:CF15,"ก") / 8 * 100 -> 12.5 | CG37: =COUNTIF(CG8:CG15,"ก") / 8 * 100 -> 12.5 | CH37: =COUNTIF(CH8:CH15,"ก") / 8 * 100 -> 37.5 | CI37: =COUNTIF(CI8:CI15,"ก") / 8 * 100 -> 12.5 | CJ37: =COUNTIF(CJ8:CJ15,"ก") / 8 * 100 -> 25 | CK37: =COUNTIF(CK8:CK15,"ก") / 8 * 100 -> 25 | CL37: =COUNTIF(CL8:CL15,"ก") / 8 * 100 -> 37.5 | CM37: =COUNTIF(CM8:CM15,"ก") / 8 * 100 -> 25 | CN37: =COUNTIF(CN8:CN15,"ก") / 8 * 100 -> 25 | CO37: =COUNTIF(CO8:CO15,"ก") / 8 * 100 -> 12.5 | CP37: =COUNTIF(CP8:CP15,"ก") / 8 * 100 -> 12.5 | CQ37: =COUNTIF(CQ8:CQ15,"ก") / 8 * 100 -> 25 | CR37: =COUNTIF(CR8:CR15,"ก") / 8 * 100 -> 12.5 | CS37: =COUNTIF(CS8:CS15,"ก") / 8 * 100 -> 12.5 | CT37: =COUNTIF(CT8:CT15,"ก") / 8 * 100 -> 50 | CU37: =COUNTIF(CU8:CU15,"ก") / 8 * 100 -> 37.5 | CV37: =COUNTIF(CV8:CV15,"ก") / 8 * 100 -> 37.5 | CW37: =COUNTIF(CW8:CW15,"ก") / 8 * 100 -> 50 | CX37: =COUNTIF(CX8:CX15,"ก") / 8 * 100 -> 0
B38: ข้อ ข | C38: =COUNTIF(C8:C15,"ข") / 8 * 100 -> 0 | D38: =COUNTIF(D8:D15,"ข") / 8 * 100 -> 62.5 | E38: =COUNTIF(E8:E15,"ข") / 8 * 100 -> 37.5 | F38: =COUNTIF(F8:F15,"ข") / 8 * 100 -> 50 | G38: =COUNTIF(G8:G15,"ข") / 8 * 100 -> 25 | H38: =COUNTIF(H8:H15,"ข") / 8 * 100 -> 25 | I38: =COUNTIF(I8:I15,"ข") / 8 * 100 -> 25 | J38: =COUNTIF(J8:J15,"ข") / 8 * 100 -> 37.5 | K38: =COUNTIF(K8:K15,"ข") / 8 * 100 -> 25 | L38: =COUNTIF(L8:L15,"ข") / 8 * 100 -> 37.5 | M38: =COUNTIF(M8:M15,"ข") / 8 * 100 -> 12.5 | N38: =COUNTIF(N8:N15,"ข") / 8 * 100 -> 12.5 | O38: =COUNTIF(O8:O15,"ข") / 8 * 100 -> 25 | P38: =COUNTIF(P8:P15,"ข") / 8 * 100 -> 12.5 | Q38: =COUNTIF(Q8:Q15,"ข") / 8 * 100 -> 12.5 | R38: =COUNTIF(R8:R15,"ข") / 8 * 100 -> 37.5 | S38: =COUNTIF(S8:S15,"ข") / 8 * 100 -> 12.5 | T38: =COUNTIF(T8:T15,"ข") / 8 * 100 -> 0 | U38: =COUNTIF(U8:U15,"ข") / 8 * 100 -> 37.5 | V38: =COUNTIF(V8:V15,"ข") / 8 * 100 -> 25 | W38: =COUNTIF(W8:W15,"ข") / 8 * 100 -> 37.5 | X38: =COUNTIF(X8:X15,"ข") / 8 * 100 -> 62.5 | Y38: =COUNTIF(Y8:Y15,"ข") / 8 * 100 -> 12.5 | Z38: =COUNTIF(Z8:Z15,"ข") / 8 * 100 -> 50 | AA38: =COUNTIF(AA8:AA15,"ข") / 8 * 100 -> 25 | AB38: =COUNTIF(AB8:AB15,"ข") / 8 * 100 -> 25 | AC38: =COUNTIF(AC8:AC15,"ข") / 8 * 100 -> 50 | AD38: =COUNTIF(AD8:AD15,"ข") / 8 * 100 -> 0 | AE38: =COUNTIF(AE8:AE15,"ข") / 8 * 100 -> 62.5 | AF38: =COUNTIF(AF8:AF15,"ข") / 8 * 100 -> 37.5 | AG38: =COUNTIF(AG8:AG15,"ข") / 8 * 100 -> 50 | AH38: =COUNTIF(AH8:AH15,"ข") / 8 * 100 -> 25 | AI38: =COUNTIF(AI8:AI15,"ข") / 8 * 100 -> 25 | AJ38: =COUNTIF(AJ8:AJ15,"ข") / 8 * 100 -> 25 | AK38: =COUNTIF(AK8:AK15,"ข") / 8 * 100 -> 37.5 | AL38: =COUNTIF(AL8:AL15,"ข") / 8 * 100 -> 25 | AM38: =COUNTIF(AM8:AM15,"ข") / 8 * 100 -> 37.5 | AN38: =COUNTIF(AN8:AN15,"ข") / 8 * 100 -> 12.5 | AO38: =COUNTIF(AO8:AO15,"ข") / 8 * 100 -> 12.5 | AP38: =COUNTIF(AP8:AP15,"ข") / 8 * 100 -> 25 | AQ38: =COUNTIF(AQ8:AQ15,"ข") / 8 * 100 -> 12.5 | AR38: =COUNTIF(AR8:AR15,"ข") / 8 * 100 -> 12.5 | AS38: =COUNTIF(AS8:AS15,"ข") / 8 * 100 -> 37.5 | AT38: =COUNTIF(AT8:AT15,"ข") / 8 * 100 -> 12.5 | AU38: =COUNTIF(AU8:AU15,"ข") / 8 * 100 -> 0 | AV38: =COUNTIF(AV8:AV15,"ข") / 8 * 100 -> 37.5 | AW38: =COUNTIF(AW8:AW15,"ข") / 8 * 100 -> 25 | AX38: =COUNTIF(AX8:AX15,"ข") / 8 * 100 -> 37.5 | AY38: =COUNTIF(AY8:AY15,"ข") / 8 * 100 -> 62.5 | AZ38: =COUNTIF(AZ8:AZ15,"ข") / 8 * 100 -> 12.5 | BA38: =COUNTIF(BA8:BA15,"ข") / 8 * 100 -> 50 | BB38: =COUNTIF(BB8:BB15,"ข") / 8 * 100 -> 25 | BC38: =COUNTIF(BC8:BC15,"ข") / 8 * 100 -> 25 | BD38: =COUNTIF(BD8:BD15,"ข") / 8 * 100 -> 50 | BE38: =COUNTIF(BE8:BE15,"ข") / 8 * 100 -> 0 | BF38: =COUNTIF(BF8:BF15,"ข") / 8 * 100 -> 62.5 | BG38: =COUNTIF(BG8:BG15,"ข") / 8 * 100 -> 37.5 | BH38: =COUNTIF(BH8:BH15,"ข") / 8 * 100 -> 50 | BI38: =COUNTIF(BI8:BI15,"ข") / 8 * 100 -> 25 | BJ38: =COUNTIF(BJ8:BJ15,"ข") / 8 * 100 -> 25 | BK38: =COUNTIF(BK8:BK15,"ข") / 8 * 100 -> 25 | BL38: =COUNTIF(BL8:BL15,"ข") / 8 * 100 -> 37.5 | BM38: =COUNTIF(BM8:BM15,"ข") / 8 * 100 -> 25 | BN38: =COUNTIF(BN8:BN15,"ข") / 8 * 100 -> 37.5 | BO38: =COUNTIF(BO8:BO15,"ข") / 8 * 100 -> 12.5 | BP38: =COUNTIF(BP8:BP15,"ข") / 8 * 100 -> 12.5 | BQ38: =COUNTIF(BQ8:BQ15,"ข") / 8 * 100 -> 25 | BR38: =COUNTIF(BR8:BR15,"ข") / 8 * 100 -> 12.5 | BS38: =COUNTIF(BS8:BS15,"ข") / 8 * 100 -> 12.5 | BT38: =COUNTIF(BT8:BT15,"ข") / 8 * 100 -> 37.5 | BU38: =COUNTIF(BU8:BU15,"ข") / 8 * 100 -> 12.5 | BV38: =COUNTIF(BV8:BV15,"ข") / 8 * 100 -> 0 | BW38: =COUNTIF(BW8:BW15,"ข") / 8 * 100 -> 37.5 | BX38: =COUNTIF(BX8:BX15,"ข") / 8 * 100 -> 25 | BY38: =COUNTIF(BY8:BY15,"ข") / 8 * 100 -> 37.5 | BZ38: =COUNTIF(BZ8:BZ15,"ข") / 8 * 100 -> 62.5 | CA38: =COUNTIF(CA8:CA15,"ข") / 8 * 100 -> 12.5 | CB38: =COUNTIF(CB8:CB15,"ข") / 8 * 100 -> 50 | CC38: =COUNTIF(CC8:CC15,"ข") / 8 * 100 -> 25 | CD38: =COUNTIF(CD8:CD15,"ข") / 8 * 100 -> 25 | CE38: =COUNTIF(CE8:CE15,"ข") / 8 * 100 -> 50 | CF38: =COUNTIF(CF8:CF15,"ข") / 8 * 100 -> 0 | CG38: =COUNTIF(CG8:CG15,"ข") / 8 * 100 -> 62.5 | CH38: =COUNTIF(CH8:CH15,"ข") / 8 * 100 -> 37.5 | CI38: =COUNTIF(CI8:CI15,"ข") / 8 * 100 -> 50 | CJ38: =COUNTIF(CJ8:CJ15,"ข") / 8 * 100 -> 25 | CK38: =COUNTIF(CK8:CK15,"ข") / 8 * 100 -> 25 | CL38: =COUNTIF(CL8:CL15,"ข") / 8 * 100 -> 25 | CM38: =COUNTIF(CM8:CM15,"ข") / 8 * 100 -> 37.5 | CN38: =COUNTIF(CN8:CN15,"ข") / 8 * 100 -> 25 | CO38: =COUNTIF(CO8:CO15,"ข") / 8 * 100 -> 37.5 | CP38: =COUNTIF(CP8:CP15,"ข") / 8 * 100 -> 12.5 | CQ38: =COUNTIF(CQ8:CQ15,"ข") / 8 * 100 -> 12.5 | CR38: =COUNTIF(CR8:CR15,"ข") / 8 * 100 -> 25 | CS38: =COUNTIF(CS8:CS15,"ข") / 8 * 100 -> 12.5 | CT38: =COUNTIF(CT8:CT15,"ข") / 8 * 100 -> 12.5 | CU38: =COUNTIF(CU8:CU15,"ข") / 8 * 100 -> 37.5 | CV38: =COUNTIF(CV8:CV15,"ข") / 8 * 100 -> 12.5 | CW38: =COUNTIF(CW8:CW15,"ข") / 8 * 100 -> 0 | CX38: =COUNTIF(CX8:CX15,"ข") / 8 * 100 -> 37.5
B39: ข้อ ค | C39: =COUNTIF(C8:C15,"ค") / 8 * 100 -> 75 | D39: =COUNTIF(D8:D15,"ค") / 8 * 100 -> 12.5 | E39: =COUNTIF(E8:E15,"ค") / 8 * 100 -> 12.5 | F39: =COUNTIF(F8:F15,"ค") / 8 * 100 -> 12.5 | G39: =COUNTIF(G8:G15,"ค") / 8 * 100 -> 12.5 | H39: =COUNTIF(H8:H15,"ค") / 8 * 100 -> 25 | I39: =COUNTIF(I8:I15,"ค") / 8 * 100 -> 0 | J39: =COUNTIF(J8:J15,"ค") / 8 * 100 -> 12.5 | K39: =COUNTIF(K8:K15,"ค") / 8 * 100 -> 37.5 | L39: =COUNTIF(L8:L15,"ค") / 8 * 100 -> 12.5 | M39: =COUNTIF(M8:M15,"ค") / 8 * 100 -> 25 | N39: =COUNTIF(N8:N15,"ค") / 8 * 100 -> 37.5 | O39: =COUNTIF(O8:O15,"ค") / 8 * 100 -> 62.5 | P39: =COUNTIF(P8:P15,"ค") / 8 * 100 -> 50 | Q39: =COUNTIF(Q8:Q15,"ค") / 8 * 100 -> 12.5 | R39: =COUNTIF(R8:R15,"ค") / 8 * 100 -> 12.5 | S39: =COUNTIF(S8:S15,"ค") / 8 * 100 -> 12.5 | T39: =COUNTIF(T8:T15,"ค") / 8 * 100 -> 12.5 | U39: =COUNTIF(U8:U15,"ค") / 8 * 100 -> 25 | V39: =COUNTIF(V8:V15,"ค") / 8 * 100 -> 25 | W39: =COUNTIF(W8:W15,"ค") / 8 * 100 -> 37.5 | X39: =COUNTIF(X8:X15,"ค") / 8 * 100 -> 12.5 | Y39: =COUNTIF(Y8:Y15,"ค") / 8 * 100 -> 50 | Z39: =COUNTIF(Z8:Z15,"ค") / 8 * 100 -> 0 | AA39: =COUNTIF(AA8:AA15,"ค") / 8 * 100 -> 25 | AB39: =COUNTIF(AB8:AB15,"ค") / 8 * 100 -> 25 | AC39: =COUNTIF(AC8:AC15,"ค") / 8 * 100 -> 25 | AD39: =COUNTIF(AD8:AD15,"ค") / 8 * 100 -> 75 | AE39: =COUNTIF(AE8:AE15,"ค") / 8 * 100 -> 12.5 | AF39: =COUNTIF(AF8:AF15,"ค") / 8 * 100 -> 12.5 | AG39: =COUNTIF(AG8:AG15,"ค") / 8 * 100 -> 12.5 | AH39: =COUNTIF(AH8:AH15,"ค") / 8 * 100 -> 12.5 | AI39: =COUNTIF(AI8:AI15,"ค") / 8 * 100 -> 25 | AJ39: =COUNTIF(AJ8:AJ15,"ค") / 8 * 100 -> 0 | AK39: =COUNTIF(AK8:AK15,"ค") / 8 * 100 -> 12.5 | AL39: =COUNTIF(AL8:AL15,"ค") / 8 * 100 -> 37.5 | AM39: =COUNTIF(AM8:AM15,"ค") / 8 * 100 -> 25 | AN39: =COUNTIF(AN8:AN15,"ค") / 8 * 100 -> 25 | AO39: =COUNTIF(AO8:AO15,"ค") / 8 * 100 -> 37.5 | AP39: =COUNTIF(AP8:AP15,"ค") / 8 * 100 -> 62.5 | AQ39: =COUNTIF(AQ8:AQ15,"ค") / 8 * 100 -> 50 | AR39: =COUNTIF(AR8:AR15,"ค") / 8 * 100 -> 12.5 | AS39: =COUNTIF(AS8:AS15,"ค") / 8 * 100 -> 12.5 | AT39: =COUNTIF(AT8:AT15,"ค") / 8 * 100 -> 12.5 | AU39: =COUNTIF(AU8:AU15,"ค") / 8 * 100 -> 12.5 | AV39: =COUNTIF(AV8:AV15,"ค") / 8 * 100 -> 25 | AW39: =COUNTIF(AW8:AW15,"ค") / 8 * 100 -> 25 | AX39: =COUNTIF(AX8:AX15,"ค") / 8 * 100 -> 37.5 | AY39: =COUNTIF(AY8:AY15,"ค") / 8 * 100 -> 12.5 | AZ39: =COUNTIF(AZ8:AZ15,"ค") / 8 * 100 -> 50 | BA39: =COUNTIF(BA8:BA15,"ค") / 8 * 100 -> 0 | BB39: =COUNTIF(BB8:BB15,"ค") / 8 * 100 -> 25 | BC39: =COUNTIF(BC8:BC15,"ค") / 8 * 100 -> 25 | BD39: =COUNTIF(BD8:BD15,"ค") / 8 * 100 -> 25 | BE39: =COUNTIF(BE8:BE15,"ค") / 8 * 100 -> 75 | BF39: =COUNTIF(BF8:BF15,"ค") / 8 * 100 -> 12.5 | BG39: =COUNTIF(BG8:BG15,"ค") / 8 * 100 -> 12.5 | BH39: =COUNTIF(BH8:BH15,"ค") / 8 * 100 -> 12.5 | BI39: =COUNTIF(BI8:BI15,"ค") / 8 * 100 -> 12.5 | BJ39: =COUNTIF(BJ8:BJ15,"ค") / 8 * 100 -> 25 | BK39: =COUNTIF(BK8:BK15,"ค") / 8 * 100 -> 0 | BL39: =COUNTIF(BL8:BL15,"ค") / 8 * 100 -> 12.5 | BM39: =COUNTIF(BM8:BM15,"ค") / 8 * 100 -> 37.5 | BN39: =COUNTIF(BN8:BN15,"ค") / 8 * 100 -> 25 | BO39: =COUNTIF(BO8:BO15,"ค") / 8 * 100 -> 25 | BP39: =COUNTIF(BP8:BP15,"ค") / 8 * 100 -> 37.5 | BQ39: =COUNTIF(BQ8:BQ15,"ค") / 8 * 100 -> 62.5 | BR39: =COUNTIF(BR8:BR15,"ค") / 8 * 100 -> 50 | BS39: =COUNTIF(BS8:BS15,"ค") / 8 * 100 -> 12.5 | BT39: =COUNTIF(BT8:BT15,"ค") / 8 * 100 -> 12.5 | BU39: =COUNTIF(BU8:BU15,"ค") / 8 * 100 -> 12.5 | BV39: =COUNTIF(BV8:BV15,"ค") / 8 * 100 -> 12.5 | BW39: =COUNTIF(BW8:BW15,"ค") / 8 * 100 -> 25 | BX39: =COUNTIF(BX8:BX15,"ค") / 8 * 100 -> 25 | BY39: =COUNTIF(BY8:BY15,"ค") / 8 * 100 -> 37.5 | BZ39: =COUNTIF(BZ8:BZ15,"ค") / 8 * 100 -> 12.5 | CA39: =COUNTIF(CA8:CA15,"ค") / 8 * 100 -> 50 | CB39: =COUNTIF(CB8:CB15,"ค") / 8 * 100 -> 0 | CC39: =COUNTIF(CC8:CC15,"ค") / 8 * 100 -> 25 | CD39: =COUNTIF(CD8:CD15,"ค") / 8 * 100 -> 25 | CE39: =COUNTIF(CE8:CE15,"ค") / 8 * 100 -> 25 | CF39: =COUNTIF(CF8:CF15,"ค") / 8 * 100 -> 75 | CG39: =COUNTIF(CG8:CG15,"ค") / 8 * 100 -> 12.5 | CH39: =COUNTIF(CH8:CH15,"ค") / 8 * 100 -> 12.5 | CI39: =COUNTIF(CI8:CI15,"ค") / 8 * 100 -> 12.5 | CJ39: =COUNTIF(CJ8:CJ15,"ค") / 8 * 100 -> 12.5 | CK39: =COUNTIF(CK8:CK15,"ค") / 8 * 100 -> 25 | CL39: =COUNTIF(CL8:CL15,"ค") / 8 * 100 -> 0 | CM39: =COUNTIF(CM8:CM15,"ค") / 8 * 100 -> 12.5 | CN39: =COUNTIF(CN8:CN15,"ค") / 8 * 100 -> 37.5 | CO39: =COUNTIF(CO8:CO15,"ค") / 8 * 100 -> 25 | CP39: =COUNTIF(CP8:CP15,"ค") / 8 * 100 -> 25 | CQ39: =COUNTIF(CQ8:CQ15,"ค") / 8 * 100 -> 37.5 | CR39: =COUNTIF(CR8:CR15,"ค") / 8 * 100 -> 62.5 | CS39: =COUNTIF(CS8:CS15,"ค") / 8 * 100 -> 50 | CT39: =COUNTIF(CT8:CT15,"ค") / 8 * 100 -> 12.5 | CU39: =COUNTIF(CU8:CU15,"ค") / 8 * 100 -> 12.5 | CV39: =COUNTIF(CV8:CV15,"ค") / 8 * 100 -> 12.5 | CW39: =COUNTIF(CW8:CW15,"ค") / 8 * 100 -> 12.5 | CX39: =COUNTIF(CX8:CX15,"ค") / 8 * 100 -> 25
B40: ข้อ ง | C40: =COUNTIF(C8:C15,"ง") / 8 * 100 -> 12.5 | D40: =COUNTIF(D8:D15,"ง") / 8 * 100 -> 12.5 | E40: =COUNTIF(E8:E15,"ง") / 8 * 100 -> 12.5 | F40: =COUNTIF(F8:F15,"ง") / 8 * 100 -> 25 | G40: =COUNTIF(G8:G15,"ง") / 8 * 100 -> 37.5 | H40: =COUNTIF(H8:H15,"ง") / 8 * 100 -> 25 | I40: =COUNTIF(I8:I15,"ง") / 8 * 100 -> 37.5 | J40: =COUNTIF(J8:J15,"ง") / 8 * 100 -> 25 | K40: =COUNTIF(K8:K15,"ง") / 8 * 100 -> 12.5 | L40: =COUNTIF(L8:L15,"ง") / 8 * 100 -> 37.5 | M40: =COUNTIF(M8:M15,"ง") / 8 * 100 -> 50 | N40: =COUNTIF(N8:N15,"ง") / 8 * 100 -> 25 | O40: =COUNTIF(O8:O15,"ง") / 8 * 100 -> 0 | P40: =COUNTIF(P8:P15,"ง") / 8 * 100 -> 25 | Q40: =COUNTIF(Q8:Q15,"ง") / 8 * 100 -> 25 | R40: =COUNTIF(R8:R15,"ง") / 8 * 100 -> 12.5 | S40: =COUNTIF(S8:S15,"ง") / 8 * 100 -> 37.5 | T40: =COUNTIF(T8:T15,"ง") / 8 * 100 -> 37.5 | U40: =COUNTIF(U8:U15,"ง") / 8 * 100 -> 37.5 | V40: =COUNTIF(V8:V15,"ง") / 8 * 100 -> 37.5 | W40: =COUNTIF(W8:W15,"ง") / 8 * 100 -> 0 | X40: =COUNTIF(X8:X15,"ง") / 8 * 100 -> 25 | Y40: =COUNTIF(Y8:Y15,"ง") / 8 * 100 -> 25 | Z40: =COUNTIF(Z8:Z15,"ง") / 8 * 100 -> 12.5 | AA40: =COUNTIF(AA8:AA15,"ง") / 8 * 100 -> 50 | AB40: =COUNTIF(AB8:AB15,"ง") / 8 * 100 -> 37.5 | AC40: =COUNTIF(AC8:AC15,"ง") / 8 * 100 -> 12.5 | AD40: =COUNTIF(AD8:AD15,"ง") / 8 * 100 -> 12.5 | AE40: =COUNTIF(AE8:AE15,"ง") / 8 * 100 -> 12.5 | AF40: =COUNTIF(AF8:AF15,"ง") / 8 * 100 -> 12.5 | AG40: =COUNTIF(AG8:AG15,"ง") / 8 * 100 -> 25 | AH40: =COUNTIF(AH8:AH15,"ง") / 8 * 100 -> 37.5 | AI40: =COUNTIF(AI8:AI15,"ง") / 8 * 100 -> 25 | AJ40: =COUNTIF(AJ8:AJ15,"ง") / 8 * 100 -> 37.5 | AK40: =COUNTIF(AK8:AK15,"ง") / 8 * 100 -> 25 | AL40: =COUNTIF(AL8:AL15,"ง") / 8 * 100 -> 12.5 | AM40: =COUNTIF(AM8:AM15,"ง") / 8 * 100 -> 25 | AN40: =COUNTIF(AN8:AN15,"ง") / 8 * 100 -> 50 | AO40: =COUNTIF(AO8:AO15,"ง") / 8 * 100 -> 25 | AP40: =COUNTIF(AP8:AP15,"ง") / 8 * 100 -> 0 | AQ40: =COUNTIF(AQ8:AQ15,"ง") / 8 * 100 -> 25 | AR40: =COUNTIF(AR8:AR15,"ง") / 8 * 100 -> 25 | AS40: =COUNTIF(AS8:AS15,"ง") / 8 * 100 -> 12.5 | AT40: =COUNTIF(AT8:AT15,"ง") / 8 * 100 -> 37.5 | AU40: =COUNTIF(AU8:AU15,"ง") / 8 * 100 -> 37.5 | AV40: =COUNTIF(AV8:AV15,"ง") / 8 * 100 -> 37.5 | AW40: =COUNTIF(AW8:AW15,"ง") / 8 * 100 -> 37.5 | AX40: =COUNTIF(AX8:AX15,"ง") / 8 * 100 -> 0 | AY40: =COUNTIF(AY8:AY15,"ง") / 8 * 100 -> 25 | AZ40: =COUNTIF(AZ8:AZ15,"ง") / 8 * 100 -> 25 | BA40: =COUNTIF(BA8:BA15,"ง") / 8 * 100 -> 12.5 | BB40: =COUNTIF(BB8:BB15,"ง") / 8 * 100 -> 50 | BC40: =COUNTIF(BC8:BC15,"ง") / 8 * 100 -> 37.5 | BD40: =COUNTIF(BD8:BD15,"ง") / 8 * 100 -> 12.5 | BE40: =COUNTIF(BE8:BE15,"ง") / 8 * 100 -> 12.5 | BF40: =COUNTIF(BF8:BF15,"ง") / 8 * 100 -> 12.5 | BG40: =COUNTIF(BG8:BG15,"ง") / 8 * 100 -> 12.5 | BH40: =COUNTIF(BH8:BH15,"ง") / 8 * 100 -> 25 | BI40: =COUNTIF(BI8:BI15,"ง") / 8 * 100 -> 37.5 | BJ40: =COUNTIF(BJ8:BJ15,"ง") / 8 * 100 -> 25 | BK40: =COUNTIF(BK8:BK15,"ง") / 8 * 100 -> 37.5 | BL40: =COUNTIF(BL8:BL15,"ง") / 8 * 100 -> 25 | BM40: =COUNTIF(BM8:BM15,"ง") / 8 * 100 -> 12.5 | BN40: =COUNTIF(BN8:BN15,"ง") / 8 * 100 -> 25 | BO40: =COUNTIF(BO8:BO15,"ง") / 8 * 100 -> 50 | BP40: =COUNTIF(BP8:BP15,"ง") / 8 * 100 -> 25 | BQ40: =COUNTIF(BQ8:BQ15,"ง") / 8 * 100 -> 0 | BR40: =COUNTIF(BR8:BR15,"ง") / 8 * 100 -> 25 | BS40: =COUNTIF(BS8:BS15,"ง") / 8 * 100 -> 25 | BT40: =COUNTIF(BT8:BT15,"ง") / 8 * 100 -> 12.5 | BU40: =COUNTIF(BU8:BU15,"ง") / 8 * 100 -> 37.5 | BV40: =COUNTIF(BV8:BV15,"ง") / 8 * 100 -> 37.5 | BW40: =COUNTIF(BW8:BW15,"ง") / 8 * 100 -> 37.5 | BX40: =COUNTIF(BX8:BX15,"ง") / 8 * 100 -> 37.5 | BY40: =COUNTIF(BY8:BY15,"ง") / 8 * 100 -> 0 | BZ40: =COUNTIF(BZ8:BZ15,"ง") / 8 * 100 -> 25 | CA40: =COUNTIF(CA8:CA15,"ง") / 8 * 100 -> 25 | CB40: =COUNTIF(CB8:CB15,"ง") / 8 * 100 -> 12.5 | CC40: =COUNTIF(CC8:CC15,"ง") / 8 * 100 -> 50 | CD40: =COUNTIF(CD8:CD15,"ง") / 8 * 100 -> 37.5 | CE40: =COUNTIF(CE8:CE15,"ง") / 8 * 100 -> 12.5 | CF40: =COUNTIF(CF8:CF15,"ง") / 8 * 100 -> 12.5 | CG40: =COUNTIF(CG8:CG15,"ง") / 8 * 100 -> 12.5 | CH40: =COUNTIF(CH8:CH15,"ง") / 8 * 100 -> 12.5 | CI40: =COUNTIF(CI8:CI15,"ง") / 8 * 100 -> 25 | CJ40: =COUNTIF(CJ8:CJ15,"ง") / 8 * 100 -> 37.5 | CK40: =COUNTIF(CK8:CK15,"ง") / 8 * 100 -> 25 | CL40: =COUNTIF(CL8:CL15,"ง") / 8 * 100 -> 37.5 | CM40: =COUNTIF(CM8:CM15,"ง") / 8 * 100 -> 25 | CN40: =COUNTIF(CN8:CN15,"ง") / 8 * 100 -> 12.5 | CO40: =COUNTIF(CO8:CO15,"ง") / 8 * 100 -> 25 | CP40: =COUNTIF(CP8:CP15,"ง") / 8 * 100 -> 50 | CQ40: =COUNTIF(CQ8:CQ15,"ง") / 8 * 100 -> 25 | CR40: =COUNTIF(CR8:CR15,"ง") / 8 * 100 -> 0 | CS40: =COUNTIF(CS8:CS15,"ง") / 8 * 100 -> 25 | CT40: =COUNTIF(CT8:CT15,"ง") / 8 * 100 -> 25 | CU40: =COUNTIF(CU8:CU15,"ง") / 8 * 100 -> 12.5 | CV40: =COUNTIF(CV8:CV15,"ง") / 8 * 100 -> 37.5 | CW40: =COUNTIF(CW8:CW15,"ง") / 8 * 100 -> 37.5 | CX40: =COUNTIF(CX8:CX15,"ง") / 8 * 100 -> 37.5
B41: ข้อ จ | C41: =COUNTIF(C8:C15,"จ") / 8 * 100 -> 0 | D41: =COUNTIF(D8:D15,"จ") / 8 * 100 -> 12.5 | E41: =COUNTIF(E8:E15,"จ") / 8 * 100 -> 0 | F41: =COUNTIF(F8:F15,"จ") / 8 * 100 -> 0 | G41: =COUNTIF(G8:G15,"จ") / 8 * 100 -> 0 | H41: =COUNTIF(H8:H15,"จ") / 8 * 100 -> 0 | I41: =COUNTIF(I8:I15,"จ") / 8 * 100 -> 0 | J41: =COUNTIF(J8:J15,"จ") / 8 * 100 -> 0 | K41: =COUNTIF(K8:K15,"จ") / 8 * 100 -> 0 | L41: =COUNTIF(L8:L15,"จ") / 8 * 100 -> 0 | M41: =COUNTIF(M8:M15,"จ") / 8 * 100 -> 0 | N41: =COUNTIF(N8:N15,"จ") / 8 * 100 -> 0 | O41: =COUNTIF(O8:O15,"จ") / 8 * 100 -> 0 | P41: =COUNTIF(P8:P15,"จ") / 8 * 100 -> 0 | Q41: =COUNTIF(Q8:Q15,"จ") / 8 * 100 -> 0 | R41: =COUNTIF(R8:R15,"จ") / 8 * 100 -> 0 | S41: =COUNTIF(S8:S15,"จ") / 8 * 100 -> 0 | T41: =COUNTIF(T8:T15,"จ") / 8 * 100 -> 0 | U41: =COUNTIF(U8:U15,"จ") / 8 * 100 -> 0 | V41: =COUNTIF(V8:V15,"จ") / 8 * 100 -> 0 | W41: =COUNTIF(W8:W15,"จ") / 8 * 100 -> 0 | X41: =COUNTIF(X8:X15,"จ") / 8 * 100 -> 0 | Y41: =COUNTIF(Y8:Y15,"จ") / 8 * 100 -> 0 | Z41: =COUNTIF(Z8:Z15,"จ") / 8 * 100 -> 0 | AA41: =COUNTIF(AA8:AA15,"จ") / 8 * 100 -> 0 | AB41: =COUNTIF(AB8:AB15,"จ") / 8 * 100 -> 0 | AC41: =COUNTIF(AC8:AC15,"จ") / 8 * 100 -> 0 | AD41: =COUNTIF(AD8:AD15,"จ") / 8 * 100 -> 0 | AE41: =COUNTIF(AE8:AE15,"จ") / 8 * 100 -> 0 | AF41: =COUNTIF(AF8:AF15,"จ") / 8 * 100 -> 0 | AG41: =COUNTIF(AG8:AG15,"จ") / 8 * 100 -> 0 | AH41: =COUNTIF(AH8:AH15,"จ") / 8 * 100 -> 0 | AI41: =COUNTIF(AI8:AI15,"จ") / 8 * 100 -> 0 | AJ41: =COUNTIF(AJ8:AJ15,"จ") / 8 * 100 -> 0 | AK41: =COUNTIF(AK8:AK15,"จ") / 8 * 100 -> 0 | AL41: =COUNTIF(AL8:AL15,"จ") / 8 * 100 -> 0 | AM41: =COUNTIF(AM8:AM15,"จ") / 8 * 100 -> 0 | AN41: =COUNTIF(AN8:AN15,"จ") / 8 * 100 -> 0 | AO41: =COUNTIF(AO8:AO15,"จ") / 8 * 100 -> 0 | AP41: =COUNTIF(AP8:AP15,"จ") / 8 * 100 -> 0 | AQ41: =COUNTIF(AQ8:AQ15,"จ") / 8 * 100 -> 0 | AR41: =COUNTIF(AR8:AR15,"จ") / 8 * 100 -> 0 | AS41: =COUNTIF(AS8:AS15,"จ") / 8 * 100 -> 0 | AT41: =COUNTIF(AT8:AT15,"จ") / 8 * 100 -> 0 | AU41: =COUNTIF(AU8:AU15,"จ") / 8 * 100 -> 0 | AV41: =COUNTIF(AV8:AV15,"จ") / 8 * 100 -> 0 | AW41: =COUNTIF(AW8:AW15,"จ") / 8 * 100 -> 0 | AX41: =COUNTIF(AX8:AX15,"จ") / 8 * 100 -> 0 | AY41: =COUNTIF(AY8:AY15,"จ") / 8 * 100 -> 0 | AZ41: =COUNTIF(AZ8:AZ15,"จ") / 8 * 100 -> 0 | BA41: =COUNTIF(BA8:BA15,"จ") / 8 * 100 -> 0 | BB41: =COUNTIF(BB8:BB15,"จ") / 8 * 100 -> 0 | BC41: =COUNTIF(BC8:BC15,"จ") / 8 * 100 -> 0 | BD41: =COUNTIF(BD8:BD15,"จ") / 8 * 100 -> 0 | BE41: =COUNTIF(BE8:BE15,"จ") / 8 * 100 -> 0 | BF41: =COUNTIF(BF8:BF15,"จ") / 8 * 100 -> 0 | BG41: =COUNTIF(BG8:BG15,"จ") / 8 * 100 -> 0 | BH41: =COUNTIF(BH8:BH15,"จ") / 8 * 100 -> 0 | BI41: =COUNTIF(BI8:BI15,"จ") / 8 * 100 -> 0 | BJ41: =COUNTIF(BJ8:BJ15,"จ") / 8 * 100 -> 0 | BK41: =COUNTIF(BK8:BK15,"จ") / 8 * 100 -> 0 | BL41: =COUNTIF(BL8:BL15,"จ") / 8 * 100 -> 0 | BM41: =COUNTIF(BM8:BM15,"จ") / 8 * 100 -> 0 | BN41: =COUNTIF(BN8:BN15,"จ") / 8 * 100 -> 0 | BO41: =COUNTIF(BO8:BO15,"จ") / 8 * 100 -> 0 | BP41: =COUNTIF(BP8:BP15,"จ") / 8 * 100 -> 0 | BQ41: =COUNTIF(BQ8:BQ15,"จ") / 8 * 100 -> 0 | BR41: =COUNTIF(BR8:BR15,"จ") / 8 * 100 -> 0 | BS41: =COUNTIF(BS8:BS15,"จ") / 8 * 100 -> 0 | BT41: =COUNTIF(BT8:BT15,"จ") / 8 * 100 -> 0 | BU41: =COUNTIF(BU8:BU15,"จ") / 8 * 100 -> 0 | BV41: =COUNTIF(BV8:BV15,"จ") / 8 * 100 -> 0 | BW41: =COUNTIF(BW8:BW15,"จ") / 8 * 100 -> 0 | BX41: =COUNTIF(BX8:BX15,"จ") / 8 * 100 -> 0 | BY41: =COUNTIF(BY8:BY15,"จ") / 8 * 100 -> 0 | BZ41: =COUNTIF(BZ8:BZ15,"จ") / 8 * 100 -> 0 | CA41: =COUNTIF(CA8:CA15,"จ") / 8 * 100 -> 0 | CB41: =COUNTIF(CB8:CB15,"จ") / 8 * 100 -> 0 | CC41: =COUNTIF(CC8:CC15,"จ") / 8 * 100 -> 0 | CD41: =COUNTIF(CD8:CD15,"จ") / 8 * 100 -> 0 | CE41: =COUNTIF(CE8:CE15,"จ") / 8 * 100 -> 0 | CF41: =COUNTIF(CF8:CF15,"จ") / 8 * 100 -> 0 | CG41: =COUNTIF(CG8:CG15,"จ") / 8 * 100 -> 0 | CH41: =COUNTIF(CH8:CH15,"จ") / 8 * 100 -> 0 | CI41: =COUNTIF(CI8:CI15,"จ") / 8 * 100 -> 0 | CJ41: =COUNTIF(CJ8:CJ15,"จ") / 8 * 100 -> 0 | CK41: =COUNTIF(CK8:CK15,"จ") / 8 * 100 -> 0 | CL41: =COUNTIF(CL8:CL15,"จ") / 8 * 100 -> 0 | CM41: =COUNTIF(CM8:CM15,"จ") / 8 * 100 -> 0 | CN41: =COUNTIF(CN8:CN15,"จ") / 8 * 100 -> 0 | CO41: =COUNTIF(CO8:CO15,"จ") / 8 * 100 -> 0 | CP41: =COUNTIF(CP8:CP15,"จ") / 8 * 100 -> 0 | CQ41: =COUNTIF(CQ8:CQ15,"จ") / 8 * 100 -> 0 | CR41: =COUNTIF(CR8:CR15,"จ") / 8 * 100 -> 0 | CS41: =COUNTIF(CS8:CS15,"จ") / 8 * 100 -> 0 | CT41: =COUNTIF(CT8:CT15,"จ") / 8 * 100 -> 0 | CU41: =COUNTIF(CU8:CU15,"จ") / 8 * 100 -> 0 | CV41: =COUNTIF(CV8:CV15,"จ") / 8 * 100 -> 0 | CW41: =COUNTIF(CW8:CW15,"จ") / 8 * 100 -> 0 | CX41: =COUNTIF(CX8:CX15,"จ") / 8 * 100 -> 0
B42: รวม | C42: =SUM(C37:C41) -> 100 | D42: =SUM(D37:D41) -> 100 | E42: =SUM(E37:E41) -> 100 | F42: =SUM(F37:F41) -> 100 | G42: =SUM(G37:G41) -> 100 | H42: =SUM(H37:H41) -> 100 | I42: =SUM(I37:I41) -> 100 | J42: =SUM(J37:J41) -> 100 | K42: =SUM(K37:K41) -> 100 | L42: =SUM(L37:L41) -> 100 | M42: =SUM(M37:M41) -> 100 | N42: =SUM(N37:N41) -> 100 | O42: =SUM(O37:O41) -> 100 | P42: =SUM(P37:P41) -> 100 | Q42: =SUM(Q37:Q41) -> 100 | R42: =SUM(R37:R41) -> 100 | S42: =SUM(S37:S41) -> 100 | T42: =SUM(T37:T41) -> 100 | U42: =SUM(U37:U41) -> 100 | V42: =SUM(V37:V41) -> 100 | W42: =SUM(W37:W41) -> 100 | X42: =SUM(X37:X41) -> 100 | Y42: =SUM(Y37:Y41) -> 100 | Z42: =SUM(Z37:Z41) -> 100 | AA42: =SUM(AA37:AA41) -> 100 | AB42: =SUM(AB37:AB41) -> 100 | AC42: =SUM(AC37:AC41) -> 100 | AD42: =SUM(AD37:AD41) -> 100 | AE42: =SUM(AE37:AE41) -> 100 | AF42: =SUM(AF37:AF41) -> 100 | AG42: =SUM(AG37:AG41) -> 100 | AH42: =SUM(AH37:AH41) -> 100 | AI42: =SUM(AI37:AI41) -> 100 | AJ42: =SUM(AJ37:AJ41) -> 100 | AK42: =SUM(AK37:AK41) -> 100 | AL42: =SUM(AL37:AL41) -> 100 | AM42: =SUM(AM37:AM41) -> 100 | AN42: =SUM(AN37:AN41) -> 100 | AO42: =SUM(AO37:AO41) -> 100 | AP42: =SUM(AP37:AP41) -> 100 | AQ42: =SUM(AQ37:AQ41) -> 100 | AR42: =SUM(AR37:AR41) -> 100 | AS42: =SUM(AS37:AS41) -> 100 | AT42: =SUM(AT37:AT41) -> 100 | AU42: =SUM(AU37:AU41) -> 100 | AV42: =SUM(AV37:AV41) -> 100 | AW42: =SUM(AW37:AW41) -> 100 | AX42: =SUM(AX37:AX41) -> 100 | AY42: =SUM(AY37:AY41) -> 100 | AZ42: =SUM(AZ37:AZ41) -> 100 | BA42: =SUM(BA37:BA41) -> 100 | BB42: =SUM(BB37:BB41) -> 100 | BC42: =SUM(BC37:BC41) -> 100 | BD42: =SUM(BD37:BD41) -> 100 | BE42: =SUM(BE37:BE41) -> 100 | BF42: =SUM(BF37:BF41) -> 100 | BG42: =SUM(BG37:BG41) -> 100 | BH42: =SUM(BH37:BH41) -> 100 | BI42: =SUM(BI37:BI41) -> 100 | BJ42: =SUM(BJ37:BJ41) -> 100 | BK42: =SUM(BK37:BK41) -> 100 | BL42: =SUM(BL37:BL41) -> 100 | BM42: =SUM(BM37:BM41) -> 100 | BN42: =SUM(BN37:BN41) -> 100 | BO42: =SUM(BO37:BO41) -> 100 | BP42: =SUM(BP37:BP41) -> 100 | BQ42: =SUM(BQ37:BQ41) -> 100 | BR42: =SUM(BR37:BR41) -> 100 | BS42: =SUM(BS37:BS41) -> 100 | BT42: =SUM(BT37:BT41) -> 100 | BU42: =SUM(BU37:BU41) -> 100 | BV42: =SUM(BV37:BV41) -> 100 | BW42: =SUM(BW37:BW41) -> 100 | BX42: =SUM(BX37:BX41) -> 100 | BY42: =SUM(BY37:BY41) -> 100 | BZ42: =SUM(BZ37:BZ41) -> 100 | CA42: =SUM(CA37:CA41) -> 100 | CB42: =SUM(CB37:CB41) -> 100 | CC42: =SUM(CC37:CC41) -> 100 | CD42: =SUM(CD37:CD41) -> 100 | CE42: =SUM(CE37:CE41) -> 100 | CF42: =SUM(CF37:CF41) -> 100 | CG42: =SUM(CG37:CG41) -> 100 | CH42: =SUM(CH37:CH41) -> 100 | CI42: =SUM(CI37:CI41) -> 100 | CJ42: =SUM(CJ37:CJ41) -> 100 | CK42: =SUM(CK37:CK41) -> 100 | CL42: =SUM(CL37:CL41) -> 100 | CM42: =SUM(CM37:CM41) -> 100 | CN42: =SUM(CN37:CN41) -> 100 | CO42: =SUM(CO37:CO41) -> 100 | CP42: =SUM(CP37:CP41) -> 100 | CQ42: =SUM(CQ37:CQ41) -> 100 | CR42: =SUM(CR37:CR41) -> 100 | CS42: =SUM(CS37:CS41) -> 100 | CT42: =SUM(CT37:CT41) -> 100 | CU42: =SUM(CU37:CU41) -> 100 | CV42: =SUM(CV37:CV41) -> 100 | CW42: =SUM(CW37:CW41) -> 100 | CX42: =SUM(CX37:CX41) -> 100
B44: IF total (รวม) | C44: =SUM(C19:C26)/8 -> 0.75 | D44: =SUM(D19:D26)/8 -> 0.125 | E44: =SUM(E19:E26)/8 -> 0.125 | F44: =SUM(F19:F26)/8 -> 0.125 | G44: =SUM(G19:G26)/8 -> 0.25 | H44: =SUM(H19:H26)/8 -> 0.25 | I44: =SUM(I19:I26)/8 -> 0.375 | J44: =SUM(J19:J26)/8 -> 0.375 | K44: =SUM(K19:K26)/8 -> 0.25 | L44: =SUM(L19:L26)/8 -> 0.375 | M44: =SUM(M19:M26)/8 -> 0.125 | N44: =SUM(N19:N26)/8 -> 0.375 | O44: =SUM(O19:O26)/8 -> 0.25 | P44: =SUM(P19:P26)/8 -> 0.125 | Q44: =SUM(Q19:Q26)/8 -> 0.25 | R44: =SUM(R19:R26)/8 -> 0.375 | S44: =SUM(S19:S26)/8 -> 0.125 | T44: =SUM(T19:T26)/8 -> 0.5 | U44: =SUM(U19:U26)/8 -> 0.375 | V44: =SUM(V19:V26)/8 -> 0.25 | W44: =SUM(W19:W26)/8 -> 0.25 | X44: =SUM(X19:X26)/8 -> 0.125 | Y44: =SUM(Y19:Y26)/8 -> 0.5 | Z44: =SUM(Z19:Z26)/8 -> 0.375 | AA44: =SUM(AA19:AA26)/8 -> 0.5 | AB44: =SUM(AB19:AB26)/8 -> 0.25 | AC44: =SUM(AC19:AC26)/8 -> 0.25 | AD44: =SUM(AD19:AD26)/8 -> 0.75 | AE44: =SUM(AE19:AE26)/8 -> 0.625 | AF44: =SUM(AF19:AF26)/8 -> 0.375 | AG44: =SUM(AG19:AG26)/8 -> 0.125 | AH44: =SUM(AH19:AH26)/8 -> 0.25 | AI44: =SUM(AI19:AI26)/8 -> 0.25 | AJ44: =SUM(AJ19:AJ26)/8 -> 0.375 | AK44: =SUM(AK19:AK26)/8 -> 0.375 | AL44: =SUM(AL19:AL26)/8 -> 0.25 | AM44: =SUM(AM19:AM26)/8 -> 0.375 | AN44: =SUM(AN19:AN26)/8 -> 0.125 | AO44: =SUM(AO19:AO26)/8 -> 0.375 | AP44: =SUM(AP19:AP26)/8 -> 0.25 | AQ44: =SUM(AQ19:AQ26)/8 -> 0.125 | AR44: =SUM(AR19:AR26)/8 -> 0.25 | AS44: =SUM(AS19:AS26)/8 -> 0.375 | AT44: =SUM(AT19:AT26)/8 -> 0.375 | AU44: =SUM(AU19:AU26)/8 -> 0.5 | AV44: =SUM(AV19:AV26)/8 -> 0.375 | AW44: =SUM(AW19:AW26)/8 -> 0.25 | AX44: =SUM(AX19:AX26)/8 -> 0.25 | AY44: =SUM(AY19:AY26)/8 -> 0.125 | AZ44: =SUM(AZ19:AZ26)/8 -> 0.5 | BA44: =SUM(BA19:BA26)/8 -> 0.375 | BB44: =SUM(BB19:BB26)/8 -> 0.5 | BC44: =SUM(BC19:BC26)/8 -> 0.25 | BD44: =SUM(BD19:BD26)/8 -> 0.25 | BE44: =SUM(BE19:BE26)/8 -> 0.75 | BF44: =SUM(BF19:BF26)/8 -> 0.625 | BG44: =SUM(BG19:BG26)/8 -> 0.375 | BH44: =SUM(BH19:BH26)/8 -> 0.125 | BI44: =SUM(BI19:BI26)/8 -> 0.25 | BJ44: =SUM(BJ19:BJ26)/8 -> 0.25 | BK44: =SUM(BK19:BK26)/8 -> 0.375 | BL44: =SUM(BL19:BL26)/8 -> 0.25 | BM44: =SUM(BM19:BM26)/8 -> 0.25 | BN44: =SUM(BN19:BN26)/8 -> 0.375 | BO44: =SUM(BO19:BO26)/8 -> 0.125 | BP44: =SUM(BP19:BP26)/8 -> 0.375 | BQ44: =SUM(BQ19:BQ26)/8 -> 0.25 | BR44: =SUM(BR19:BR26)/8 -> 0.125 | BS44: =SUM(BS19:BS26)/8 -> 0.25 | BT44: =SUM(BT19:BT26)/8 -> 0.375 | BU44: =SUM(BU19:BU26)/8 -> 0.375 | BV44: =SUM(BV19:BV26)/8 -> 0 | BW44: =SUM(BW19:BW26)/8 -> 0.375 | BX44: =SUM(BX19:BX26)/8 -> 0.25 | BY44: =SUM(BY19:BY26)/8 -> 0.25 | BZ44: =SUM(BZ19:BZ26)/8 -> 0.125 | CA44: =SUM(CA19:CA26)/8 -> 0.125 | CB44: =SUM(CB19:CB26)/8 -> 0.375 | CC44: =SUM(CC19:CC26)/8 -> 0.5 | CD44: =SUM(CD19:CD26)/8 -> 0.25 | CE44: =SUM(CE19:CE26)/8 -> 0.25 | CF44: =SUM(CF19:CF26)/8 -> 0.75 | CG44: =SUM(CG19:CG26)/8 -> 0.625 | CH44: =SUM(CH19:CH26)/8 -> 0.375 | CI44: =SUM(CI19:CI26)/8 -> 0.125 | CJ44: =SUM(CJ19:CJ26)/8 -> 0.25 | CK44: =SUM(CK19:CK26)/8 -> 0.25 | CL44: =SUM(CL19:CL26)/8 -> 0.375 | CM44: =SUM(CM19:CM26)/8 -> 0.25 | CN44: =SUM(CN19:CN26)/8 -> 0.25 | CO44: =SUM(CO19:CO26)/8 -> 0.375 | CP44: =SUM(CP19:CP26)/8 -> 0.125 | CQ44: =SUM(CQ19:CQ26)/8 -> 0.375 | CR44: =SUM(CR19:CR26)/8 -> 0.25 | CS44: =SUM(CS19:CS26)/8 -> 0.125 | CT44: =SUM(CT19:CT26)/8 -> 0.25 | CU44: =SUM(CU19:CU26)/8 -> 0.375 | CV44: =SUM(CV19:CV26)/8 -> 0.375 | CW44: =SUM(CW19:CW26)/8 -> 0.5 | CX44: =SUM(CX19:CX26)/8 -> 0.375
B45: IF Upper (กลุ่มสูง) | C45: =SUM(C19:C22)/4 -> 1 | D45: =SUM(D19:D22)/4 -> 0 | E45: =SUM(E19:E22)/4 -> 0 | F45: =SUM(F19:F22)/4 -> 0.25 | G45: =SUM(G19:G22)/4 -> 0.5 | H45: =SUM(H19:H22)/4 -> 0.5 | I45: =SUM(I19:I22)/4 -> 0.5 | J45: =SUM(J19:J22)/4 -> 0.75 | K45: =SUM(K19:K22)/4 -> 0.25 | L45: =SUM(L19:L22)/4 -> 0.25 | M45: =SUM(M19:M22)/4 -> 0.25 | N45: =SUM(N19:N22)/4 -> 0.5 | O45: =SUM(O19:O22)/4 -> 0.25 | P45: =SUM(P19:P22)/4 -> 0.25 | Q45: =SUM(Q19:Q22)/4 -> 0.25 | R45: =SUM(R19:R22)/4 -> 0.5 | S45: =SUM(S19:S22)/4 -> 0 | T45: =SUM(T19:T22)/4 -> 0.75 | U45: =SUM(U19:U22)/4 -> 0.5 | V45: =SUM(V19:V22)/4 -> 0.25 | W45: =SUM(W19:W22)/4 -> 0.5 | X45: =SUM(X19:X22)/4 -> 0.25 | Y45: =SUM(Y19:Y22)/4 -> 0.75 | Z45: =SUM(Z19:Z22)/4 -> 0.75 | AA45: =SUM(AA19:AA22)/4 -> 0.5 | AB45: =SUM(AB19:AB22)/4 -> 0.5 | AC45: =SUM(AC19:AC22)/4 -> 0.5 | AD45: =SUM(AD19:AD22)/4 -> 1 | AE45: =SUM(AE19:AE22)/4 -> 0.75 | AF45: =SUM(AF19:AF22)/4 -> 0.5 | AG45: =SUM(AG19:AG22)/4 -> 0.25 | AH45: =SUM(AH19:AH22)/4 -> 0.5 | AI45: =SUM(AI19:AI22)/4 -> 0.5 | AJ45: =SUM(AJ19:AJ22)/4 -> 0.5 | AK45: =SUM(AK19:AK22)/4 -> 0.75 | AL45: =SUM(AL19:AL22)/4 -> 0.25 | AM45: =SUM(AM19:AM22)/4 -> 0.25 | AN45: =SUM(AN19:AN22)/4 -> 0.25 | AO45: =SUM(AO19:AO22)/4 -> 0.5 | AP45: =SUM(AP19:AP22)/4 -> 0.25 | AQ45: =SUM(AQ19:AQ22)/4 -> 0.25 | AR45: =SUM(AR19:AR22)/4 -> 0.25 | AS45: =SUM(AS19:AS22)/4 -> 0.5 | AT45: =SUM(AT19:AT22)/4 -> 0.75 | AU45: =SUM(AU19:AU22)/4 -> 0.75 | AV45: =SUM(AV19:AV22)/4 -> 0.5 | AW45: =SUM(AW19:AW22)/4 -> 0.25 | AX45: =SUM(AX19:AX22)/4 -> 0.5 | AY45: =SUM(AY19:AY22)/4 -> 0.25 | AZ45: =SUM(AZ19:AZ22)/4 -> 0.75 | BA45: =SUM(BA19:BA22)/4 -> 0.75 | BB45: =SUM(BB19:BB22)/4 -> 0.5 | BC45: =SUM(BC19:BC22)/4 -> 0.5 | BD45: =SUM(BD19:BD22)/4 -> 0.5 | BE45: =SUM(BE19:BE22)/4 -> 1 | BF45: =SUM(BF19:BF22)/4 -> 0.75 | BG45: =SUM(BG19:BG22)/4 -> 0.5 | BH45: =SUM(BH19:BH22)/4 -> 0.25 | BI45: =SUM(BI19:BI22)/4 -> 0.5 | BJ45: =SUM(BJ19:BJ22)/4 -> 0.5 | BK45: =SUM(BK19:BK22)/4 -> 0.5 | BL45: =SUM(BL19:BL22)/4 -> 0.25 | BM45: =SUM(BM19:BM22)/4 -> 0.25 | BN45: =SUM(BN19:BN22)/4 -> 0.25 | BO45: =SUM(BO19:BO22)/4 -> 0.25 | BP45: =SUM(BP19:BP22)/4 -> 0.5 | BQ45: =SUM(BQ19:BQ22)/4 -> 0.25 | BR45: =SUM(BR19:BR22)/4 -> 0.25 | BS45: =SUM(BS19:BS22)/4 -> 0.25 | BT45: =SUM(BT19:BT22)/4 -> 0.5 | BU45: =SUM(BU19:BU22)/4 -> 0.75 | BV45: =SUM(BV19:BV22)/4 -> 0 | BW45: =SUM(BW19:BW22)/4 -> 0.5 | BX45: =SUM(BX19:BX22)/4 -> 0.25 | BY45: =SUM(BY19:BY22)/4 -> 0.5 | BZ45: =SUM(BZ19:BZ22)/4 -> 0.25 | CA45: =SUM(CA19:CA22)/4 -> 0 | CB45: =SUM(CB19:CB22)/4 -> 0.75 | CC45: =SUM(CC19:CC22)/4 -> 0.5 | CD45: =SUM(CD19:CD22)/4 -> 0.5 | CE45: =SUM(CE19:CE22)/4 -> 0.5 | CF45: =SUM(CF19:CF22)/4 -> 1 | CG45: =SUM(CG19:CG22)/4 -> 0.75 | CH45: =SUM(CH19:CH22)/4 -> 0.5 | CI45: =SUM(CI19:CI22)/4 -> 0.25 | CJ45: =SUM(CJ19:CJ22)/4 -> 0.5 | CK45: =SUM(CK19:CK22)/4 -> 0.5 | CL45: =SUM(CL19:CL22)/4 -> 0.5 | CM45: =SUM(CM19:CM22)/4 -> 0.25 | CN45: =SUM(CN19:CN22)/4 -> 0.25 | CO45: =SUM(CO19:CO22)/4 -> 0.25 | CP45: =SUM(CP19:CP22)/4 -> 0.25 | CQ45: =SUM(CQ19:CQ22)/4 -> 0.5 | CR45: =SUM(CR19:CR22)/4 -> 0.25 | CS45: =SUM(CS19:CS22)/4 -> 0.25 | CT45: =SUM(CT19:CT22)/4 -> 0.25 | CU45: =SUM(CU19:CU22)/4 -> 0.5 | CV45: =SUM(CV19:CV22)/4 -> 0.75 | CW45: =SUM(CW19:CW22)/4 -> 0.75 | CX45: =SUM(CX19:CX22)/4 -> 0.5
B46: IF Lower (กลุ่มต่ำ) | C46: =SUM(C23:C26)/4 -> 0.5 | D46: =SUM(D23:D26)/4 -> 0.25 | E46: =SUM(E23:E26)/4 -> 0.25 | F46: =SUM(F23:F26)/4 -> 0 | G46: =SUM(G23:G26)/4 -> 0 | H46: =SUM(H23:H26)/4 -> 0 | I46: =SUM(I23:I26)/4 -> 0.25 | J46: =SUM(J23:J26)/4 -> 0 | K46: =SUM(K23:K26)/4 -> 0.25 | L46: =SUM(L23:L26)/4 -> 0.5 | M46: =SUM(M23:M26)/4 -> 0 | N46: =SUM(N23:N26)/4 -> 0.25 | O46: =SUM(O23:O26)/4 -> 0.25 | P46: =SUM(P23:P26)/4 -> 0 | Q46: =SUM(Q23:Q26)/4 -> 0.25 | R46: =SUM(R23:R26)/4 -> 0.25 | S46: =SUM(S23:S26)/4 -> 0.25 | T46: =SUM(T23:T26)/4 -> 0.25 | U46: =SUM(U23:U26)/4 -> 0.25 | V46: =SUM(V23:V26)/4 -> 0.25 | W46: =SUM(W23:W26)/4 -> 0 | X46: =SUM(X23:X26)/4 -> 0 | Y46: =SUM(Y23:Y26)/4 -> 0.25 | Z46: =SUM(Z23:Z26)/4 -> 0 | AA46: =SUM(AA23:AA26)/4 -> 0.5 | AB46: =SUM(AB23:AB26)/4 -> 0 | AC46: =SUM(AC23:AC26)/4 -> 0 | AD46: =SUM(AD23:AD26)/4 -> 0.5 | AE46: =SUM(AE23:AE26)/4 -> 0.5 | AF46: =SUM(AF23:AF26)/4 -> 0.25 | AG46: =SUM(AG23:AG26)/4 -> 0 | AH46: =SUM(AH23:AH26)/4 -> 0 | AI46: =SUM(AI23:AI26)/4 -> 0 | AJ46: =SUM(AJ23:AJ26)/4 -> 0.25 | AK46: =SUM(AK23:AK26)/4 -> 0 | AL46: =SUM(AL23:AL26)/4 -> 0.25 | AM46: =SUM(AM23:AM26)/4 -> 0.5 | AN46: =SUM(AN23:AN26)/4 -> 0 | AO46: =SUM(AO23:AO26)/4 -> 0.25 | AP46: =SUM(AP23:AP26)/4 -> 0.25 | AQ46: =SUM(AQ23:AQ26)/4 -> 0 | AR46: =SUM(AR23:AR26)/4 -> 0.25 | AS46: =SUM(AS23:AS26)/4 -> 0.25 | AT46: =SUM(AT23:AT26)/4 -> 0 | AU46: =SUM(AU23:AU26)/4 -> 0.25 | AV46: =SUM(AV23:AV26)/4 -> 0.25 | AW46: =SUM(AW23:AW26)/4 -> 0.25 | AX46: =SUM(AX23:AX26)/4 -> 0 | AY46: =SUM(AY23:AY26)/4 -> 0 | AZ46: =SUM(AZ23:AZ26)/4 -> 0.25 | BA46: =SUM(BA23:BA26)/4 -> 0 | BB46: =SUM(BB23:BB26)/4 -> 0.5 | BC46: =SUM(BC23:BC26)/4 -> 0 | BD46: =SUM(BD23:BD26)/4 -> 0 | BE46: =SUM(BE23:BE26)/4 -> 0.5 | BF46: =SUM(BF23:BF26)/4 -> 0.5 | BG46: =SUM(BG23:BG26)/4 -> 0.25 | BH46: =SUM(BH23:BH26)/4 -> 0 | BI46: =SUM(BI23:BI26)/4 -> 0 | BJ46: =SUM(BJ23:BJ26)/4 -> 0 | BK46: =SUM(BK23:BK26)/4 -> 0.25 | BL46: =SUM(BL23:BL26)/4 -> 0.25 | BM46: =SUM(BM23:BM26)/4 -> 0.25 | BN46: =SUM(BN23:BN26)/4 -> 0.5 | BO46: =SUM(BO23:BO26)/4 -> 0 | BP46: =SUM(BP23:BP26)/4 -> 0.25 | BQ46: =SUM(BQ23:BQ26)/4 -> 0.25 | BR46: =SUM(BR23:BR26)/4 -> 0 | BS46: =SUM(BS23:BS26)/4 -> 0.25 | BT46: =SUM(BT23:BT26)/4 -> 0.25 | BU46: =SUM(BU23:BU26)/4 -> 0 | BV46: =SUM(BV23:BV26)/4 -> 0 | BW46: =SUM(BW23:BW26)/4 -> 0.25 | BX46: =SUM(BX23:BX26)/4 -> 0.25 | BY46: =SUM(BY23:BY26)/4 -> 0 | BZ46: =SUM(BZ23:BZ26)/4 -> 0 | CA46: =SUM(CA23:CA26)/4 -> 0.25 | CB46: =SUM(CB23:CB26)/4 -> 0 | CC46: =SUM(CC23:CC26)/4 -> 0.5 | CD46: =SUM(CD23:CD26)/4 -> 0 | CE46: =SUM(CE23:CE26)/4 -> 0 | CF46: =SUM(CF23:CF26)/4 -> 0.5 | CG46: =SUM(CG23:CG26)/4 -> 0.5 | CH46: =SUM(CH23:CH26)/4 -> 0.25 | CI46: =SUM(CI23:CI26)/4 -> 0 | CJ46: =SUM(CJ23:CJ26)/4 -> 0 | CK46: =SUM(CK23:CK26)/4 -> 0 | CL46: =SUM(CL23:CL26)/4 -> 0.25 | CM46: =SUM(CM23:CM26)/4 -> 0.25 | CN46: =SUM(CN23:CN26)/4 -> 0.25 | CO46: =SUM(CO23:CO26)/4 -> 0.5 | CP46: =SUM(CP23:CP26)/4 -> 0 | CQ46: =SUM(CQ23:CQ26)/4 -> 0.25 | CR46: =SUM(CR23:CR26)/4 -> 0.25 | CS46: =SUM(CS23:CS26)/4 -> 0 | CT46: =SUM(CT23:CT26)/4 -> 0.25 | CU46: =SUM(CU23:CU26)/4 -> 0.25 | CV46: =SUM(CV23:CV26)/4 -> 0 | CW46: =SUM(CW23:CW26)/4 -> 0.25 | CX46: =SUM(CX23:CX26)/4 -> 0.25
B47: ID (อำนาจจำแนก) | C47: =C45-C46 -> 0.5 | D47: =D45-D46 -> -0.25 | E47: =E45-E46 -> -0.25 | F47: =F45-F46 -> 0.25 | G47: =G45-G46 -> 0.5 | H47: =H45-H46 -> 0.5 | I47: =I45-I46 -> 0.25 | J47: =J45-J46 -> 0.75 | K47: =K45-K46 -> 0 | L47: =L45-L46 -> -0.25 | M47: =M45-M46 -> 0.25 | N47: =N45-N46 -> 0.25 | O47: =O45-O46 -> 0 | P47: =P45-P46 -> 0.25 | Q47: =Q45-Q46 -> 0 | R47: =R45-R46 -> 0.25 | S47: =S45-S46 -> -0.25 | T47: =T45-T46 -> 0.5 | U47: =U45-U46 -> 0.25 | V47: =V45-V46 -> 0 | W47: =W45-W46 -> 0.5 | X47: =X45-X46 -> 0.25 | Y47: =Y45-Y46 -> 0.5 | Z47: =Z45-Z46 -> 0.75 | AA47: =AA45-AA46 -> 0 | AB47: =AB45-AB46 -> 0.5 | AC47: =AC45-AC46 -> 0.5 | AD47: =AD45-AD46 -> 0.5 | AE47: =AE45-AE46 -> 0.25 | AF47: =AF45-AF46 -> 0.25 | AG47: =AG45-AG46 -> 0.25 | AH47: =AH45-AH46 -> 0.5 | AI47: =AI45-AI46 -> 0.5 | AJ47: =AJ45-AJ46 -> 0.25 | AK47: =AK45-AK46 -> 0.75 | AL47: =AL45-AL46 -> 0 | AM47: =AM45-AM46 -> -0.25 | AN47: =AN45-AN46 -> 0.25 | AO47: =AO45-AO46 -> 0.25 | AP47: =AP45-AP46 -> 0 | AQ47: =AQ45-AQ46 -> 0.25 | AR47: =AR45-AR46 -> 0 | AS47: =AS45-AS46 -> 0.25 | AT47: =AT45-AT46 -> 0.75 | AU47: =AU45-AU46 -> 0.5 | AV47: =AV45-AV46 -> 0.25 | AW47: =AW45-AW46 -> 0 | AX47: =AX45-AX46 -> 0.5 | AY47: =AY45-AY46 -> 0.25 | AZ47: =AZ45-AZ46 -> 0.5 | BA47: =BA45-BA46 -> 0.75 | BB47: =BB45-BB46 -> 0 | BC47: =BC45-BC46 -> 0.5 | BD47: =BD45-BD46 -> 0.5 | BE47: =BE45-BE46 -> 0.5 | BF47: =BF45-BF46 -> 0.25 | BG47: =BG45-BG46 -> 0.25 | BH47: =BH45-BH46 -> 0.25 | BI47: =BI45-BI46 -> 0.5 | BJ47: =BJ45-BJ46 -> 0.5 | BK47: =BK45-BK46 -> 0.25 | BL47: =BL45-BL46 -> 0 | BM47: =BM45-BM46 -> 0 | BN47: =BN45-BN46 -> -0.25 | BO47: =BO45-BO46 -> 0.25 | BP47: =BP45-BP46 -> 0.25 | BQ47: =BQ45-BQ46 -> 0 | BR47: =BR45-BR46 -> 0.25 | BS47: =BS45-BS46 -> 0 | BT47: =BT45-BT46 -> 0.25 | BU47: =BU45-BU46 -> 0.75 | BV47: =BV45-BV46 -> 0 | BW47: =BW45-BW46 -> 0.25 | BX47: =BX45-BX46 -> 0 | BY47: =BY45-BY46 -> 0.5 | BZ47: =BZ45-BZ46 -> 0.25 | CA47: =CA45-CA46 -> -0.25 | CB47: =CB45-CB46 -> 0.75 | CC47: =CC45-CC46 -> 0 | CD47: =CD45-CD46 -> 0.5 | CE47: =CE45-CE46 -> 0.5 | CF47: =CF45-CF46 -> 0.5 | CG47: =CG45-CG46 -> 0.25 | CH47: =CH45-CH46 -> 0.25 | CI47: =CI45-CI46 -> 0.25 | CJ47: =CJ45-CJ46 -> 0.5 | CK47: =CK45-CK46 -> 0.5 | CL47: =CL45-CL46 -> 0.25 | CM47: =CM45-CM46 -> 0 | CN47: =CN45-CN46 -> 0 | CO47: =CO45-CO46 -> -0.25 | CP47: =CP45-CP46 -> 0.25 | CQ47: =CQ45-CQ46 -> 0.25 | CR47: =CR45-CR46 -> 0 | CS47: =CS45-CS46 -> 0.25 | CT47: =CT45-CT46 -> 0 | CU47: =CU45-CU46 -> 0.25 | CV47: =CV45-CV46 -> 0.75 | CW47: =CW45-CW46 -> 0.5 | CX47: =CX45-CX46 -> 0.25
B49: Reliability(KR-20) | C49: 0.98
B50: คะแนนเฉลี่ย | C50: 31.38
B51: S.D. | C51: 24.08
B52: SEM | C52: 3.41
B54: ความยาก-ง่าย (IF total) | C54: =IF(C44 > 0.8,"ง่ายมาก-ตัดทิ้ง",IF(C44 > 0.6,"ดีพอใช้",IF(C44 >0.4,"ดีมาก",IF(C44 >0.19,"ดีพอใช้","ยากมาก-ตัดทิ้ง")))) -> ดีพอใช้ | D54: =IF(D44 > 0.8,"ง่ายมาก-ตัดทิ้ง",IF(D44 > 0.6,"ดีพอใช้",IF(D44 >0.4,"ดีมาก",IF(D44 >0.19,"ดีพอใช้","ยากมาก-ตัดทิ้ง")))) -> ยากมาก-ตัดทิ้ง | E54: =IF(E44 > 0.8,"ง่ายมาก-ตัดทิ้ง",IF(E44 > 0.6,"ดีพอใช้",IF(E44 >0.4,"ดีมาก",IF(E44 >0.19,"ดีพอใช้","ยากมาก-ตัดทิ้ง")))) -> ยากมาก-ตัดทิ้ง | F54: =IF(F44 > 0.8,"ง่ายมาก-ตัดทิ้ง",IF(F44 > 0.6,"ดีพอใช้",IF(F44 >0.4,"ดีมาก",IF(F44 >0.19,"ดีพอใช้","ยากมาก-ตัดทิ้ง")))) -> ยากมาก-ตัดทิ้ง | G54: =IF(G44 > 0.8,"ง่ายมาก-ตัดทิ้ง",IF(G44 > 0.6,"ดีพอใช้",IF(G44 >0.4,"ดีมาก",IF(G44 >0.19,"ดีพอใช้","ยากมาก-ตัดทิ้ง")))) -> ดีพอใช้ | H54: =IF(H44 > 0.8,"ง่ายมาก-ตัดทิ้ง",IF(H44 > 0.6,"ดีพอใช้",IF(H44 >0.4,"ดีมาก",IF(H44 >0.19,"ดีพอใช้","ยากมาก-ตัดทิ้ง")))) -> ดีพอใช้ | I54: =IF(I44 > 0.8,"ง่ายมาก-ตัดทิ้ง",IF(I44 > 0.6,"ดีพอใช้",IF(I44 >0.4,"ดีมาก",IF(I44 >0.19,"ดีพอใช้","ยากมาก-ตัดทิ้ง")))) -> ดีพอใช้ | J54: =IF(J44 > 0.8,"ง่ายมาก-ตัดทิ้ง",IF(J44 > 0.6,"ดีพอใช้",IF(J44 >0.4,"ดีมาก",IF(J44 >0.19,"ดีพอใช้","ยากมาก-ตัดทิ้ง")))) -> ดีพอใช้ | K54: =IF(K44 > 0.8,"ง่ายมาก-ตัดทิ้ง",IF(K44 > 0.6,"ดีพอใช้",IF(K44 >0.4,"ดีมาก",IF(K44 >0.19,"ดีพอใช้","ยากมาก-ตัดทิ้ง")))) -> ดีพอใช้ | L54: =IF(L44 > 0.8,"ง่ายมาก-ตัดทิ้ง",IF(L44 > 0.6,"ดีพอใช้",IF(L44 >0.4,"ดีมาก",IF(L44 >0.19,"ดีพอใช้","ยากมาก-ตัดทิ้ง")))) -> ดีพอใช้ | M54: =IF(M44 > 0.8,"ง่ายมาก-ตัดทิ้ง",IF(M44 > 0.6,"ดีพอใช้",IF(M44 >0.4,"ดีมาก",IF(M44 >0.19,"ดีพอใช้","ยากมาก-ตัดทิ้ง")))) -> ยากมาก-ตัดทิ้ง | N54: =IF(N44 > 0.8,"ง่ายมาก-ตัดทิ้ง",IF(N44 > 0.6,"ดีพอใช้",IF(N44 >0.4,"ดีมาก",IF(N44 >0.19,"ดีพอใช้","ยากมาก-ตัดทิ้ง")))) -> ดีพอใช้ | O54: =IF(O44 > 0.8,"ง่ายมาก-ตัดทิ้ง",IF(O44 > 0.6,"ดีพอใช้",IF(O44 >0.4,"ดีมาก",IF(O44 >0.19,"ดีพอใช้","ยากมาก-ตัดทิ้ง")))) -> ดีพอใช้ | P54: =IF(P44 > 0.8,"ง่ายมาก-ตัดทิ้ง",IF(P44 > 0.6,"ดีพอใช้",IF(P44 >0.4,"ดีมาก",IF(P44 >0.19,"ดีพอใช้","ยากมาก-ตัดทิ้ง")))) -> ยากมาก-ตัดทิ้ง | Q54: =IF(Q44 > 0.8,"ง่ายมาก-ตัดทิ้ง",IF(Q44 > 0.6,"ดีพอใช้",IF(Q44 >0.4,"ดีมาก",IF(Q44 >0.19,"ดีพอใช้","ยากมาก-ตัดทิ้ง")))) -> ดีพอใช้ | R54: =IF(R44 > 0.8,"ง่ายมาก-ตัดทิ้ง",IF(R44 > 0.6,"ดีพอใช้",IF(R44 >0.4,"ดีมาก",IF(R44 >0.19,"ดีพอใช้","ยากมาก-ตัดทิ้ง")))) -> ดีพอใช้ | S54: =IF(S44 > 0.8,"ง่ายมาก-ตัดทิ้ง",IF(S44 > 0.6,"ดีพอใช้",IF(S44 >0.4,"ดีมาก",IF(S44 >0.19,"ดีพอใช้","ยากมาก-ตัดทิ้ง")))) -> ยากมาก-ตัดทิ้ง | T54: =IF(T44 > 0.8,"ง่ายมาก-ตัดทิ้ง",IF(T44 > 0.6,"ดีพอใช้",IF(T44 >0.4,"ดีมาก",IF(T44 >0.19,"ดีพอใช้","ยากมาก-ตัดทิ้ง")))) -> ดีมาก | U54: =IF(U44 > 0.8,"ง่ายมาก-ตัดทิ้ง",IF(U44 > 0.6,"ดีพอใช้",IF(U44 >0.4,"ดีมาก",IF(U44 >0.19,"ดีพอใช้","ยากมาก-ตัดทิ้ง")))) -> ดีพอใช้ | V54: =IF(V44 > 0.8,"ง่ายมาก-ตัดทิ้ง",IF(V44 > 0.6,"ดีพอใช้",IF(V44 >0.4,"ดีมาก",IF(V44 >0.19,"ดีพอใช้","ยากมาก-ตัดทิ้ง")))) -> ดีพอใช้ | W54: =IF(W44 > 0.8,"ง่ายมาก-ตัดทิ้ง",IF(W44 > 0.6,"ดีพอใช้",IF(W44 >0.4,"ดีมาก",IF(W44 >0.19,"ดีพอใช้","ยากมาก-ตัดทิ้ง")))) -> ดีพอใช้ | X54: =IF(X44 > 0.8,"ง่ายมาก-ตัดทิ้ง",IF(X44 > 0.6,"ดีพอใช้",IF(X44 >0.4,"ดีมาก",IF(X44 >0.19,"ดีพอใช้","ยากมาก-ตัดทิ้ง")))) -> ยากมาก-ตัดทิ้ง | Y54: =IF(Y44 > 0.8,"ง่ายมาก-ตัดทิ้ง",IF(Y44 > 0.6,"ดีพอใช้",IF(Y44 >0.4,"ดีมาก",IF(Y44 >0.19,"ดีพอใช้","ยากมาก-ตัดทิ้ง")))) -> ดีมาก | Z54: =IF(Z44 > 0.8,"ง่ายมาก-ตัดทิ้ง",IF(Z44 > 0.6,"ดีพอใช้",IF(Z44 >0.4,"ดีมาก",IF(Z44 >0.19,"ดีพอใช้","ยากมาก-ตัดทิ้ง")))) -> ดีพอใช้ | AA54: =IF(AA44 > 0.8,"ง่ายมาก-ตัดทิ้ง",IF(AA44 > 0.6,"ดีพอใช้",IF(AA44 >0.4,"ดีมาก",IF(AA44 >0.19,"ดีพอใช้","ยากมาก-ตัดทิ้ง")))) -> ดีมาก | AB54: =IF(AB44 > 0.8,"ง่ายมาก-ตัดทิ้ง",IF(AB44 > 0.6,"ดีพอใช้",IF(AB44 >0.4,"ดีมาก",IF(AB44 >0.19,"ดีพอใช้","ยากมาก-ตัดทิ้ง")))) -> ดีพอใช้ | AC54: =IF(AC44 > 0.8,"ง่ายมาก-ตัดทิ้ง",IF(AC44 > 0.6,"ดีพอใช้",IF(AC44 >0.4,"ดีมาก",IF(AC44 >0.19,"ดีพอใช้","ยากมาก-ตัดทิ้ง")))) -> ดีพอใช้ | AD54: =IF(AD44 > 0.8,"ง่ายมาก-ตัดทิ้ง",IF(AD44 > 0.6,"ดีพอใช้",IF(AD44 >0.4,"ดีมาก",IF(AD44 >0.19,"ดีพอใช้","ยากมาก-ตัดทิ้ง")))) -> ดีพอใช้ | AE54: =IF(AE44 > 0.8,"ง่ายมาก-ตัดทิ้ง",IF(AE44 > 0.6,"ดีพอใช้",IF(AE44 >0.4,"ดีมาก",IF(AE44 >0.19,"ดีพอใช้","ยากมาก-ตัดทิ้ง")))) -> ดีพอใช้ | AF54: =IF(AF44 > 0.8,"ง่ายมาก-ตัดทิ้ง",IF(AF44 > 0.6,"ดีพอใช้",IF(AF44 >0.4,"ดีมาก",IF(AF44 >0.19,"ดีพอใช้","ยากมาก-ตัดทิ้ง")))) -> ดีพอใช้ | AG54: =IF(AG44 > 0.8,"ง่ายมาก-ตัดทิ้ง",IF(AG44 > 0.6,"ดีพอใช้",IF(AG44 >0.4,"ดีมาก",IF(AG44 >0.19,"ดีพอใช้","ยากมาก-ตัดทิ้ง")))) -> ยากมาก-ตัดทิ้ง | AH54: =IF(AH44 > 0.8,"ง่ายมาก-ตัดทิ้ง",IF(AH44 > 0.6,"ดีพอใช้",IF(AH44 >0.4,"ดีมาก",IF(AH44 >0.19,"ดีพอใช้","ยากมาก-ตัดทิ้ง")))) -> ดีพอใช้ | AI54: =IF(AI44 > 0.8,"ง่ายมาก-ตัดทิ้ง",IF(AI44 > 0.6,"ดีพอใช้",IF(AI44 >0.4,"ดีมาก",IF(AI44 >0.19,"ดีพอใช้","ยากมาก-ตัดทิ้ง")))) -> ดีพอใช้ | AJ54: =IF(AJ44 > 0.8,"ง่ายมาก-ตัดทิ้ง",IF(AJ44 > 0.6,"ดีพอใช้",IF(AJ44 >0.4,"ดีมาก",IF(AJ44 >0.19,"ดีพอใช้","ยากมาก-ตัดทิ้ง")))) -> ดีพอใช้ | AK54: =IF(AK44 > 0.8,"ง่ายมาก-ตัดทิ้ง",IF(AK44 > 0.6,"ดีพอใช้",IF(AK44 >0.4,"ดีมาก",IF(AK44 >0.19,"ดีพอใช้","ยากมาก-ตัดทิ้ง")))) -> ดีพอใช้ | AL54: =IF(AL44 > 0.8,"ง่ายมาก-ตัดทิ้ง",IF(AL44 > 0.6,"ดีพอใช้",IF(AL44 >0.4,"ดีมาก",IF(AL44 >0.19,"ดีพอใช้","ยากมาก-ตัดทิ้ง")))) -> ดีพอใช้ | AM54: =IF(AM44 > 0.8,"ง่ายมาก-ตัดทิ้ง",IF(AM44 > 0.6,"ดีพอใช้",IF(AM44 >0.4,"ดีมาก",IF(AM44 >0.19,"ดีพอใช้","ยากมาก-ตัดทิ้ง")))) -> ดีพอใช้ | AN54: =IF(AN44 > 0.8,"ง่ายมาก-ตัดทิ้ง",IF(AN44 > 0.6,"ดีพอใช้",IF(AN44 >0.4,"ดีมาก",IF(AN44 >0.19,"ดีพอใช้","ยากมาก-ตัดทิ้ง")))) -> ยากมาก-ตัดทิ้ง | AO54: =IF(AO44 > 0.8,"ง่ายมาก-ตัดทิ้ง",IF(AO44 > 0.6,"ดีพอใช้",IF(AO44 >0.4,"ดีมาก",IF(AO44 >0.19,"ดีพอใช้","ยากมาก-ตัดทิ้ง")))) -> ดีพอใช้ | AP54: =IF(AP44 > 0.8,"ง่ายมาก-ตัดทิ้ง",IF(AP44 > 0.6,"ดีพอใช้",IF(AP44 >0.4,"ดีมาก",IF(AP44 >0.19,"ดีพอใช้","ยากมาก-ตัดทิ้ง")))) -> ดีพอใช้ | AQ54: =IF(AQ44 > 0.8,"ง่ายมาก-ตัดทิ้ง",IF(AQ44 > 0.6,"ดีพอใช้",IF(AQ44 >0.4,"ดีมาก",IF(AQ44 >0.19,"ดีพอใช้","ยากมาก-ตัดทิ้ง")))) -> ยากมาก-ตัดทิ้ง | AR54: =IF(AR44 > 0.8,"ง่ายมาก-ตัดทิ้ง",IF(AR44 > 0.6,"ดีพอใช้",IF(AR44 >0.4,"ดีมาก",IF(AR44 >0.19,"ดีพอใช้","ยากมาก-ตัดทิ้ง")))) -> ดีพอใช้ | AS54: =IF(AS44 > 0.8,"ง่ายมาก-ตัดทิ้ง",IF(AS44 > 0.6,"ดีพอใช้",IF(AS44 >0.4,"ดีมาก",IF(AS44 >0.19,"ดีพอใช้","ยากมาก-ตัดทิ้ง")))) -> ดีพอใช้ | AT54: =IF(AT44 > 0.8,"ง่ายมาก-ตัดทิ้ง",IF(AT44 > 0.6,"ดีพอใช้",IF(AT44 >0.4,"ดีมาก",IF(AT44 >0.19,"ดีพอใช้","ยากมาก-ตัดทิ้ง")))) -> ดีพอใช้ | AU54: =IF(AU44 > 0.8,"ง่ายมาก-ตัดทิ้ง",IF(AU44 > 0.6,"ดีพอใช้",IF(AU44 >0.4,"ดีมาก",IF(AU44 >0.19,"ดีพอใช้","ยากมาก-ตัดทิ้ง")))) -> ดีมาก | AV54: =IF(AV44 > 0.8,"ง่ายมาก-ตัดทิ้ง",IF(AV44 > 0.6,"ดีพอใช้",IF(AV44 >0.4,"ดีมาก",IF(AV44 >0.19,"ดีพอใช้","ยากมาก-ตัดทิ้ง")))) -> ดีพอใช้ | AW54: =IF(AW44 > 0.8,"ง่ายมาก-ตัดทิ้ง",IF(AW44 > 0.6,"ดีพอใช้",IF(AW44 >0.4,"ดีมาก",IF(AW44 >0.19,"ดีพอใช้","ยากมาก-ตัดทิ้ง")))) -> ดีพอใช้ | AX54: =IF(AX44 > 0.8,"ง่ายมาก-ตัดทิ้ง",IF(AX44 > 0.6,"ดีพอใช้",IF(AX44 >0.4,"ดีมาก",IF(AX44 >0.19,"ดีพอใช้","ยากมาก-ตัดทิ้ง")))) -> ดีพอใช้ | AY54: =IF(AY44 > 0.8,"ง่ายมาก-ตัดทิ้ง",IF(AY44 > 0.6,"ดีพอใช้",IF(AY44 >0.4,"ดีมาก",IF(AY44 >0.19,"ดีพอใช้","ยากมาก-ตัดทิ้ง")))) -> ยากมาก-ตัดทิ้ง | AZ54: =IF(AZ44 > 0.8,"ง่ายมาก-ตัดทิ้ง",IF(AZ44 > 0.6,"ดีพอใช้",IF(AZ44 >0.4,"ดีมาก",IF(AZ44 >0.19,"ดีพอใช้","ยากมาก-ตัดทิ้ง")))) -> ดีมาก | BA54: =IF(BA44 > 0.8,"ง่ายมาก-ตัดทิ้ง",IF(BA44 > 0.6,"ดีพอใช้",IF(BA44 >0.4,"ดีมาก",IF(BA44 >0.19,"ดีพอใช้","ยากมาก-ตัดทิ้ง")))) -> ดีพอใช้ | BB54: =IF(BB44 > 0.8,"ง่ายมาก-ตัดทิ้ง",IF(BB44 > 0.6,"ดีพอใช้",IF(BB44 >0.4,"ดีมาก",IF(BB44 >0.19,"ดีพอใช้","ยากมาก-ตัดทิ้ง")))) -> ดีมาก | BC54: =IF(BC44 > 0.8,"ง่ายมาก-ตัดทิ้ง",IF(BC44 > 0.6,"ดีพอใช้",IF(BC44 >0.4,"ดีมาก",IF(BC44 >0.19,"ดีพอใช้","ยากมาก-ตัดทิ้ง")))) -> ดีพอใช้ | BD54: =IF(BD44 > 0.8,"ง่ายมาก-ตัดทิ้ง",IF(BD44 > 0.6,"ดีพอใช้",IF(BD44 >0.4,"ดีมาก",IF(BD44 >0.19,"ดีพอใช้","ยากมาก-ตัดทิ้ง")))) -> ดีพอใช้ | BE54: =IF(BE44 > 0.8,"ง่ายมาก-ตัดทิ้ง",IF(BE44 > 0.6,"ดีพอใช้",IF(BE44 >0.4,"ดีมาก",IF(BE44 >0.19,"ดีพอใช้","ยากมาก-ตัดทิ้ง")))) -> ดีพอใช้ | BF54: =IF(BF44 > 0.8,"ง่ายมาก-ตัดทิ้ง",IF(BF44 > 0.6,"ดีพอใช้",IF(BF44 >0.4,"ดีมาก",IF(BF44 >0.19,"ดีพอใช้","ยากมาก-ตัดทิ้ง")))) -> ดีพอใช้ | BG54: =IF(BG44 > 0.8,"ง่ายมาก-ตัดทิ้ง",IF(BG44 > 0.6,"ดีพอใช้",IF(BG44 >0.4,"ดีมาก",IF(BG44 >0.19,"ดีพอใช้","ยากมาก-ตัดทิ้ง")))) -> ดีพอใช้ | BH54: =IF(BH44 > 0.8,"ง่ายมาก-ตัดทิ้ง",IF(BH44 > 0.6,"ดีพอใช้",IF(BH44 >0.4,"ดีมาก",IF(BH44 >0.19,"ดีพอใช้","ยากมาก-ตัดทิ้ง")))) -> ยากมาก-ตัดทิ้ง | BI54: =IF(BI44 > 0.8,"ง่ายมาก-ตัดทิ้ง",IF(BI44 > 0.6,"ดีพอใช้",IF(BI44 >0.4,"ดีมาก",IF(BI44 >0.19,"ดีพอใช้","ยากมาก-ตัดทิ้ง")))) -> ดีพอใช้ | BJ54: =IF(BJ44 > 0.8,"ง่ายมาก-ตัดทิ้ง",IF(BJ44 > 0.6,"ดีพอใช้",IF(BJ44 >0.4,"ดีมาก",IF(BJ44 >0.19,"ดีพอใช้","ยากมาก-ตัดทิ้ง")))) -> ดีพอใช้ | BK54: =IF(BK44 > 0.8,"ง่ายมาก-ตัดทิ้ง",IF(BK44 > 0.6,"ดีพอใช้",IF(BK44 >0.4,"ดีมาก",IF(BK44 >0.19,"ดีพอใช้","ยากมาก-ตัดทิ้ง")))) -> ดีพอใช้ | BL54: =IF(BL44 > 0.8,"ง่ายมาก-ตัดทิ้ง",IF(BL44 > 0.6,"ดีพอใช้",IF(BL44 >0.4,"ดีมาก",IF(BL44 >0.19,"ดีพอใช้","ยากมาก-ตัดทิ้ง")))) -> ดีพอใช้ | BM54: =IF(BM44 > 0.8,"ง่ายมาก-ตัดทิ้ง",IF(BM44 > 0.6,"ดีพอใช้",IF(BM44 >0.4,"ดีมาก",IF(BM44 >0.19,"ดีพอใช้","ยากมาก-ตัดทิ้ง")))) -> ดีพอใช้ | BN54: =IF(BN44 > 0.8,"ง่ายมาก-ตัดทิ้ง",IF(BN44 > 0.6,"ดีพอใช้",IF(BN44 >0.4,"ดีมาก",IF(BN44 >0.19,"ดีพอใช้","ยากมาก-ตัดทิ้ง")))) -> ดีพอใช้ | BO54: =IF(BO44 > 0.8,"ง่ายมาก-ตัดทิ้ง",IF(BO44 > 0.6,"ดีพอใช้",IF(BO44 >0.4,"ดีมาก",IF(BO44 >0.19,"ดีพอใช้","ยากมาก-ตัดทิ้ง")))) -> ยากมาก-ตัดทิ้ง | BP54: =IF(BP44 > 0.8,"ง่ายมาก-ตัดทิ้ง",IF(BP44 > 0.6,"ดีพอใช้",IF(BP44 >0.4,"ดีมาก",IF(BP44 >0.19,"ดีพอใช้","ยากมาก-ตัดทิ้ง")))) -> ดีพอใช้ | BQ54: =IF(BQ44 > 0.8,"ง่ายมาก-ตัดทิ้ง",IF(BQ44 > 0.6,"ดีพอใช้",IF(BQ44 >0.4,"ดีมาก",IF(BQ44 >0.19,"ดีพอใช้","ยากมาก-ตัดทิ้ง")))) -> ดีพอใช้ | BR54: =IF(BR44 > 0.8,"ง่ายมาก-ตัดทิ้ง",IF(BR44 > 0.6,"ดีพอใช้",IF(BR44 >0.4,"ดีมาก",IF(BR44 >0.19,"ดีพอใช้","ยากมาก-ตัดทิ้ง")))) -> ยากมาก-ตัดทิ้ง | BS54: =IF(BS44 > 0.8,"ง่ายมาก-ตัดทิ้ง",IF(BS44 > 0.6,"ดีพอใช้",IF(BS44 >0.4,"ดีมาก",IF(BS44 >0.19,"ดีพอใช้","ยากมาก-ตัดทิ้ง")))) -> ดีพอใช้ | BT54: =IF(BT44 > 0.8,"ง่ายมาก-ตัดทิ้ง",IF(BT44 > 0.6,"ดีพอใช้",IF(BT44 >0.4,"ดีมาก",IF(BT44 >0.19,"ดีพอใช้","ยากมาก-ตัดทิ้ง")))) -> ดีพอใช้ | BU54: =IF(BU44 > 0.8,"ง่ายมาก-ตัดทิ้ง",IF(BU44 > 0.6,"ดีพอใช้",IF(BU44 >0.4,"ดีมาก",IF(BU44 >0.19,"ดีพอใช้","ยากมาก-ตัดทิ้ง")))) -> ดีพอใช้ | BV54: =IF(BV44 > 0.8,"ง่ายมาก-ตัดทิ้ง",IF(BV44 > 0.6,"ดีพอใช้",IF(BV44 >0.4,"ดีมาก",IF(BV44 >0.19,"ดีพอใช้","ยากมาก-ตัดทิ้ง")))) -> ยากมาก-ตัดทิ้ง | BW54: =IF(BW44 > 0.8,"ง่ายมาก-ตัดทิ้ง",IF(BW44 > 0.6,"ดีพอใช้",IF(BW44 >0.4,"ดีมาก",IF(BW44 >0.19,"ดีพอใช้","ยากมาก-ตัดทิ้ง")))) -> ดีพอใช้ | BX54: =IF(BX44 > 0.8,"ง่ายมาก-ตัดทิ้ง",IF(BX44 > 0.6,"ดีพอใช้",IF(BX44 >0.4,"ดีมาก",IF(BX44 >0.19,"ดีพอใช้","ยากมาก-ตัดทิ้ง")))) -> ดีพอใช้ | BY54: =IF(BY44 > 0.8,"ง่ายมาก-ตัดทิ้ง",IF(BY44 > 0.6,"ดีพอใช้",IF(BY44 >0.4,"ดีมาก",IF(BY44 >0.19,"ดีพอใช้","ยากมาก-ตัดทิ้ง")))) -> ดีพอใช้ | BZ54: =IF(BZ44 > 0.8,"ง่ายมาก-ตัดทิ้ง",IF(BZ44 > 0.6,"ดีพอใช้",IF(BZ44 >0.4,"ดีมาก",IF(BZ44 >0.19,"ดีพอใช้","ยากมาก-ตัดทิ้ง")))) -> ยากมาก-ตัดทิ้ง | CA54: =IF(CA44 > 0.8,"ง่ายมาก-ตัดทิ้ง",IF(CA44 > 0.6,"ดีพอใช้",IF(CA44 >0.4,"ดีมาก",IF(CA44 >0.19,"ดีพอใช้","ยากมาก-ตัดทิ้ง")))) -> ยากมาก-ตัดทิ้ง | CB54: =IF(CB44 > 0.8,"ง่ายมาก-ตัดทิ้ง",IF(CB44 > 0.6,"ดีพอใช้",IF(CB44 >0.4,"ดีมาก",IF(CB44 >0.19,"ดีพอใช้","ยากมาก-ตัดทิ้ง")))) -> ดีพอใช้ | CC54: =IF(CC44 > 0.8,"ง่ายมาก-ตัดทิ้ง",IF(CC44 > 0.6,"ดีพอใช้",IF(CC44 >0.4,"ดีมาก",IF(CC44 >0.19,"ดีพอใช้","ยากมาก-ตัดทิ้ง")))) -> ดีมาก | CD54: =IF(CD44 > 0.8,"ง่ายมาก-ตัดทิ้ง",IF(CD44 > 0.6,"ดีพอใช้",IF(CD44 >0.4,"ดีมาก",IF(CD44 >0.19,"ดีพอใช้","ยากมาก-ตัดทิ้ง")))) -> ดีพอใช้ | CE54: =IF(CE44 > 0.8,"ง่ายมาก-ตัดทิ้ง",IF(CE44 > 0.6,"ดีพอใช้",IF(CE44 >0.4,"ดีมาก",IF(CE44 >0.19,"ดีพอใช้","ยากมาก-ตัดทิ้ง")))) -> ดีพอใช้ | CF54: =IF(CF44 > 0.8,"ง่ายมาก-ตัดทิ้ง",IF(CF44 > 0.6,"ดีพอใช้",IF(CF44 >0.4,"ดีมาก",IF(CF44 >0.19,"ดีพอใช้","ยากมาก-ตัดทิ้ง")))) -> ดีพอใช้ | CG54: =IF(CG44 > 0.8,"ง่ายมาก-ตัดทิ้ง",IF(CG44 > 0.6,"ดีพอใช้",IF(CG44 >0.4,"ดีมาก",IF(CG44 >0.19,"ดีพอใช้","ยากมาก-ตัดทิ้ง")))) -> ดีพอใช้ | CH54: =IF(CH44 > 0.8,"ง่ายมาก-ตัดทิ้ง",IF(CH44 > 0.6,"ดีพอใช้",IF(CH44 >0.4,"ดีมาก",IF(CH44 >0.19,"ดีพอใช้","ยากมาก-ตัดทิ้ง")))) -> ดีพอใช้ | CI54: =IF(CI44 > 0.8,"ง่ายมาก-ตัดทิ้ง",IF(CI44 > 0.6,"ดีพอใช้",IF(CI44 >0.4,"ดีมาก",IF(CI44 >0.19,"ดีพอใช้","ยากมาก-ตัดทิ้ง")))) -> ยากมาก-ตัดทิ้ง | CJ54: =IF(CJ44 > 0.8,"ง่ายมาก-ตัดทิ้ง",IF(CJ44 > 0.6,"ดีพอใช้",IF(CJ44 >0.4,"ดีมาก",IF(CJ44 >0.19,"ดีพอใช้","ยากมาก-ตัดทิ้ง")))) -> ดีพอใช้ | CK54: =IF(CK44 > 0.8,"ง่ายมาก-ตัดทิ้ง",IF(CK44 > 0.6,"ดีพอใช้",IF(CK44 >0.4,"ดีมาก",IF(CK44 >0.19,"ดีพอใช้","ยากมาก-ตัดทิ้ง")))) -> ดีพอใช้ | CL54: =IF(CL44 > 0.8,"ง่ายมาก-ตัดทิ้ง",IF(CL44 > 0.6,"ดีพอใช้",IF(CL44 >0.4,"ดีมาก",IF(CL44 >0.19,"ดีพอใช้","ยากมาก-ตัดทิ้ง")))) -> ดีพอใช้ | CM54: =IF(CM44 > 0.8,"ง่ายมาก-ตัดทิ้ง",IF(CM44 > 0.6,"ดีพอใช้",IF(CM44 >0.4,"ดีมาก",IF(CM44 >0.19,"ดีพอใช้","ยากมาก-ตัดทิ้ง")))) -> ดีพอใช้ | CN54: =IF(CN44 > 0.8,"ง่ายมาก-ตัดทิ้ง",IF(CN44 > 0.6,"ดีพอใช้",IF(CN44 >0.4,"ดีมาก",IF(CN44 >0.19,"ดีพอใช้","ยากมาก-ตัดทิ้ง")))) -> ดีพอใช้ | CO54: =IF(CO44 > 0.8,"ง่ายมาก-ตัดทิ้ง",IF(CO44 > 0.6,"ดีพอใช้",IF(CO44 >0.4,"ดีมาก",IF(CO44 >0.19,"ดีพอใช้","ยากมาก-ตัดทิ้ง")))) -> ดีพอใช้ | CP54: =IF(CP44 > 0.8,"ง่ายมาก-ตัดทิ้ง",IF(CP44 > 0.6,"ดีพอใช้",IF(CP44 >0.4,"ดีมาก",IF(CP44 >0.19,"ดีพอใช้","ยากมาก-ตัดทิ้ง")))) -> ยากมาก-ตัดทิ้ง | CQ54: =IF(CQ44 > 0.8,"ง่ายมาก-ตัดทิ้ง",IF(CQ44 > 0.6,"ดีพอใช้",IF(CQ44 >0.4,"ดีมาก",IF(CQ44 >0.19,"ดีพอใช้","ยากมาก-ตัดทิ้ง")))) -> ดีพอใช้ | CR54: =IF(CR44 > 0.8,"ง่ายมาก-ตัดทิ้ง",IF(CR44 > 0.6,"ดีพอใช้",IF(CR44 >0.4,"ดีมาก",IF(CR44 >0.19,"ดีพอใช้","ยากมาก-ตัดทิ้ง")))) -> ดีพอใช้ | CS54: =IF(CS44 > 0.8,"ง่ายมาก-ตัดทิ้ง",IF(CS44 > 0.6,"ดีพอใช้",IF(CS44 >0.4,"ดีมาก",IF(CS44 >0.19,"ดีพอใช้","ยากมาก-ตัดทิ้ง")))) -> ยากมาก-ตัดทิ้ง | CT54: =IF(CT44 > 0.8,"ง่ายมาก-ตัดทิ้ง",IF(CT44 > 0.6,"ดีพอใช้",IF(CT44 >0.4,"ดีมาก",IF(CT44 >0.19,"ดีพอใช้","ยากมาก-ตัดทิ้ง")))) -> ดีพอใช้ | CU54: =IF(CU44 > 0.8,"ง่ายมาก-ตัดทิ้ง",IF(CU44 > 0.6,"ดีพอใช้",IF(CU44 >0.4,"ดีมาก",IF(CU44 >0.19,"ดีพอใช้","ยากมาก-ตัดทิ้ง")))) -> ดีพอใช้ | CV54: =IF(CV44 > 0.8,"ง่ายมาก-ตัดทิ้ง",IF(CV44 > 0.6,"ดีพอใช้",IF(CV44 >0.4,"ดีมาก",IF(CV44 >0.19,"ดีพอใช้","ยากมาก-ตัดทิ้ง")))) -> ดีพอใช้ | CW54: =IF(CW44 > 0.8,"ง่ายมาก-ตัดทิ้ง",IF(CW44 > 0.6,"ดีพอใช้",IF(CW44 >0.4,"ดีมาก",IF(CW44 >0.19,"ดีพอใช้","ยากมาก-ตัดทิ้ง")))) -> ดีมาก | CX54: =IF(CX44 > 0.8,"ง่ายมาก-ตัดทิ้ง",IF(CX44 > 0.6,"ดีพอใช้",IF(CX44 >0.4,"ดีมาก",IF(CX44 >0.19,"ดีพอใช้","ยากมาก-ตัดทิ้ง")))) -> ดีพอใช้
B55: อำนาจจำแนก (ID) | C55: =IF(C47 >= 0.6,"ดีมาก",IF(C47 > 0.4,"ดี",IF(C47 >0.2,"พอใช้ได้",IF(C47 >0,"ค่อนข้างต่ำ","ตัดทิ้ง")))) -> ดี | D55: =IF(D47 >= 0.6,"ดีมาก",IF(D47 > 0.4,"ดี",IF(D47 >0.2,"พอใช้ได้",IF(D47 >0,"ค่อนข้างต่ำ","ตัดทิ้ง")))) -> ตัดทิ้ง | E55: =IF(E47 >= 0.6,"ดีมาก",IF(E47 > 0.4,"ดี",IF(E47 >0.2,"พอใช้ได้",IF(E47 >0,"ค่อนข้างต่ำ","ตัดทิ้ง")))) -> ตัดทิ้ง | F55: =IF(F47 >= 0.6,"ดีมาก",IF(F47 > 0.4,"ดี",IF(F47 >0.2,"พอใช้ได้",IF(F47 >0,"ค่อนข้างต่ำ","ตัดทิ้ง")))) -> พอใช้ได้ | G55: =IF(G47 >= 0.6,"ดีมาก",IF(G47 > 0.4,"ดี",IF(G47 >0.2,"พอใช้ได้",IF(G47 >0,"ค่อนข้างต่ำ","ตัดทิ้ง")))) -> ดี | H55: =IF(H47 >= 0.6,"ดีมาก",IF(H47 > 0.4,"ดี",IF(H47 >0.2,"พอใช้ได้",IF(H47 >0,"ค่อนข้างต่ำ","ตัดทิ้ง")))) -> ดี | I55: =IF(I47 >= 0.6,"ดีมาก",IF(I47 > 0.4,"ดี",IF(I47 >0.2,"พอใช้ได้",IF(I47 >0,"ค่อนข้างต่ำ","ตัดทิ้ง")))) -> พอใช้ได้ | J55: =IF(J47 >= 0.6,"ดีมาก",IF(J47 > 0.4,"ดี",IF(J47 >0.2,"พอใช้ได้",IF(J47 >0,"ค่อนข้างต่ำ","ตัดทิ้ง")))) -> ดีมาก | K55: =IF(K47 >= 0.6,"ดีมาก",IF(K47 > 0.4,"ดี",IF(K47 >0.2,"พอใช้ได้",IF(K47 >0,"ค่อนข้างต่ำ","ตัดทิ้ง")))) -> ตัดทิ้ง | L55: =IF(L47 >= 0.6,"ดีมาก",IF(L47 > 0.4,"ดี",IF(L47 >0.2,"พอใช้ได้",IF(L47 >0,"ค่อนข้างต่ำ","ตัดทิ้ง")))) -> ตัดทิ้ง | M55: =IF(M47 >= 0.6,"ดีมาก",IF(M47 > 0.4,"ดี",IF(M47 >0.2,"พอใช้ได้",IF(M47 >0,"ค่อนข้างต่ำ","ตัดทิ้ง")))) -> พอใช้ได้ | N55: =IF(N47 >= 0.6,"ดีมาก",IF(N47 > 0.4,"ดี",IF(N47 >0.2,"พอใช้ได้",IF(N47 >0,"ค่อนข้างต่ำ","ตัดทิ้ง")))) -> พอใช้ได้ | O55: =IF(O47 >= 0.6,"ดีมาก",IF(O47 > 0.4,"ดี",IF(O47 >0.2,"พอใช้ได้",IF(O47 >0,"ค่อนข้างต่ำ","ตัดทิ้ง")))) -> ตัดทิ้ง | P55: =IF(P47 >= 0.6,"ดีมาก",IF(P47 > 0.4,"ดี",IF(P47 >0.2,"พอใช้ได้",IF(P47 >0,"ค่อนข้างต่ำ","ตัดทิ้ง")))) -> พอใช้ได้ | Q55: =IF(Q47 >= 0.6,"ดีมาก",IF(Q47 > 0.4,"ดี",IF(Q47 >0.2,"พอใช้ได้",IF(Q47 >0,"ค่อนข้างต่ำ","ตัดทิ้ง")))) -> ตัดทิ้ง | R55: =IF(R47 >= 0.6,"ดีมาก",IF(R47 > 0.4,"ดี",IF(R47 >0.2,"พอใช้ได้",IF(R47 >0,"ค่อนข้างต่ำ","ตัดทิ้ง")))) -> พอใช้ได้ | S55: =IF(S47 >= 0.6,"ดีมาก",IF(S47 > 0.4,"ดี",IF(S47 >0.2,"พอใช้ได้",IF(S47 >0,"ค่อนข้างต่ำ","ตัดทิ้ง")))) -> ตัดทิ้ง | T55: =IF(T47 >= 0.6,"ดีมาก",IF(T47 > 0.4,"ดี",IF(T47 >0.2,"พอใช้ได้",IF(T47 >0,"ค่อนข้างต่ำ","ตัดทิ้ง")))) -> ดี | U55: =IF(U47 >= 0.6,"ดีมาก",IF(U47 > 0.4,"ดี",IF(U47 >0.2,"พอใช้ได้",IF(U47 >0,"ค่อนข้างต่ำ","ตัดทิ้ง")))) -> พอใช้ได้ | V55: =IF(V47 >= 0.6,"ดีมาก",IF(V47 > 0.4,"ดี",IF(V47 >0.2,"พอใช้ได้",IF(V47 >0,"ค่อนข้างต่ำ","ตัดทิ้ง")))) -> ตัดทิ้ง | W55: =IF(W47 >= 0.6,"ดีมาก",IF(W47 > 0.4,"ดี",IF(W47 >0.2,"พอใช้ได้",IF(W47 >0,"ค่อนข้างต่ำ","ตัดทิ้ง")))) -> ดี | X55: =IF(X47 >= 0.6,"ดีมาก",IF(X47 > 0.4,"ดี",IF(X47 >0.2,"พอใช้ได้",IF(X47 >0,"ค่อนข้างต่ำ","ตัดทิ้ง")))) -> พอใช้ได้ | Y55: =IF(Y47 >= 0.6,"ดีมาก",IF(Y47 > 0.4,"ดี",IF(Y47 >0.2,"พอใช้ได้",IF(Y47 >0,"ค่อนข้างต่ำ","ตัดทิ้ง")))) -> ดี | Z55: =IF(Z47 >= 0.6,"ดีมาก",IF(Z47 > 0.4,"ดี",IF(Z47 >0.2,"พอใช้ได้",IF(Z47 >0,"ค่อนข้างต่ำ","ตัดทิ้ง")))) -> ดีมาก | AA55: =IF(AA47 >= 0.6,"ดีมาก",IF(AA47 > 0.4,"ดี",IF(AA47 >0.2,"พอใช้ได้",IF(AA47 >0,"ค่อนข้างต่ำ","ตัดทิ้ง")))) -> ตัดทิ้ง | AB55: =IF(AB47 >= 0.6,"ดีมาก",IF(AB47 > 0.4,"ดี",IF(AB47 >0.2,"พอใช้ได้",IF(AB47 >0,"ค่อนข้างต่ำ","ตัดทิ้ง")))) -> ดี | AC55: =IF(AC47 >= 0.6,"ดีมาก",IF(AC47 > 0.4,"ดี",IF(AC47 >0.2,"พอใช้ได้",IF(AC47 >0,"ค่อนข้างต่ำ","ตัดทิ้ง")))) -> ดี | AD55: =IF(AD47 >= 0.6,"ดีมาก",IF(AD47 > 0.4,"ดี",IF(AD47 >0.2,"พอใช้ได้",IF(AD47 >0,"ค่อนข้างต่ำ","ตัดทิ้ง")))) -> ดี | AE55: =IF(AE47 >= 0.6,"ดีมาก",IF(AE47 > 0.4,"ดี",IF(AE47 >0.2,"พอใช้ได้",IF(AE47 >0,"ค่อนข้างต่ำ","ตัดทิ้ง")))) -> พอใช้ได้ | AF55: =IF(AF47 >= 0.6,"ดีมาก",IF(AF47 > 0.4,"ดี",IF(AF47 >0.2,"พอใช้ได้",IF(AF47 >0,"ค่อนข้างต่ำ","ตัดทิ้ง")))) -> พอใช้ได้ | AG55: =IF(AG47 >= 0.6,"ดีมาก",IF(AG47 > 0.4,"ดี",IF(AG47 >0.2,"พอใช้ได้",IF(AG47 >0,"ค่อนข้างต่ำ","ตัดทิ้ง")))) -> พอใช้ได้ | AH55: =IF(AH47 >= 0.6,"ดีมาก",IF(AH47 > 0.4,"ดี",IF(AH47 >0.2,"พอใช้ได้",IF(AH47 >0,"ค่อนข้างต่ำ","ตัดทิ้ง")))) -> ดี | AI55: =IF(AI47 >= 0.6,"ดีมาก",IF(AI47 > 0.4,"ดี",IF(AI47 >0.2,"พอใช้ได้",IF(AI47 >0,"ค่อนข้างต่ำ","ตัดทิ้ง")))) -> ดี | AJ55: =IF(AJ47 >= 0.6,"ดีมาก",IF(AJ47 > 0.4,"ดี",IF(AJ47 >0.2,"พอใช้ได้",IF(AJ47 >0,"ค่อนข้างต่ำ","ตัดทิ้ง")))) -> พอใช้ได้ | AK55: =IF(AK47 >= 0.6,"ดีมาก",IF(AK47 > 0.4,"ดี",IF(AK47 >0.2,"พอใช้ได้",IF(AK47 >0,"ค่อนข้างต่ำ","ตัดทิ้ง")))) -> ดีมาก | AL55: =IF(AL47 >= 0.6,"ดีมาก",IF(AL47 > 0.4,"ดี",IF(AL47 >0.2,"พอใช้ได้",IF(AL47 >0,"ค่อนข้างต่ำ","ตัดทิ้ง")))) -> ตัดทิ้ง | AM55: =IF(AM47 >= 0.6,"ดีมาก",IF(AM47 > 0.4,"ดี",IF(AM47 >0.2,"พอใช้ได้",IF(AM47 >0,"ค่อนข้างต่ำ","ตัดทิ้ง")))) -> ตัดทิ้ง | AN55: =IF(AN47 >= 0.6,"ดีมาก",IF(AN47 > 0.4,"ดี",IF(AN47 >0.2,"พอใช้ได้",IF(AN47 >0,"ค่อนข้างต่ำ","ตัดทิ้ง")))) -> พอใช้ได้ | AO55: =IF(AO47 >= 0.6,"ดีมาก",IF(AO47 > 0.4,"ดี",IF(AO47 >0.2,"พอใช้ได้",IF(AO47 >0,"ค่อนข้างต่ำ","ตัดทิ้ง")))) -> พอใช้ได้ | AP55: =IF(AP47 >= 0.6,"ดีมาก",IF(AP47 > 0.4,"ดี",IF(AP47 >0.2,"พอใช้ได้",IF(AP47 >0,"ค่อนข้างต่ำ","ตัดทิ้ง")))) -> ตัดทิ้ง | AQ55: =IF(AQ47 >= 0.6,"ดีมาก",IF(AQ47 > 0.4,"ดี",IF(AQ47 >0.2,"พอใช้ได้",IF(AQ47 >0,"ค่อนข้างต่ำ","ตัดทิ้ง")))) -> พอใช้ได้ | AR55: =IF(AR47 >= 0.6,"ดีมาก",IF(AR47 > 0.4,"ดี",IF(AR47 >0.2,"พอใช้ได้",IF(AR47 >0,"ค่อนข้างต่ำ","ตัดทิ้ง")))) -> ตัดทิ้ง | AS55: =IF(AS47 >= 0.6,"ดีมาก",IF(AS47 > 0.4,"ดี",IF(AS47 >0.2,"พอใช้ได้",IF(AS47 >0,"ค่อนข้างต่ำ","ตัดทิ้ง")))) -> พอใช้ได้ | AT55: =IF(AT47 >= 0.6,"ดีมาก",IF(AT47 > 0.4,"ดี",IF(AT47 >0.2,"พอใช้ได้",IF(AT47 >0,"ค่อนข้างต่ำ","ตัดทิ้ง")))) -> ดีมาก | AU55: =IF(AU47 >= 0.6,"ดีมาก",IF(AU47 > 0.4,"ดี",IF(AU47 >0.2,"พอใช้ได้",IF(AU47 >0,"ค่อนข้างต่ำ","ตัดทิ้ง")))) -> ดี | AV55: =IF(AV47 >= 0.6,"ดีมาก",IF(AV47 > 0.4,"ดี",IF(AV47 >0.2,"พอใช้ได้",IF(AV47 >0,"ค่อนข้างต่ำ","ตัดทิ้ง")))) -> พอใช้ได้ | AW55: =IF(AW47 >= 0.6,"ดีมาก",IF(AW47 > 0.4,"ดี",IF(AW47 >0.2,"พอใช้ได้",IF(AW47 >0,"ค่อนข้างต่ำ","ตัดทิ้ง")))) -> ตัดทิ้ง | AX55: =IF(AX47 >= 0.6,"ดีมาก",IF(AX47 > 0.4,"ดี",IF(AX47 >0.2,"พอใช้ได้",IF(AX47 >0,"ค่อนข้างต่ำ","ตัดทิ้ง")))) -> ดี | AY55: =IF(AY47 >= 0.6,"ดีมาก",IF(AY47 > 0.4,"ดี",IF(AY47 >0.2,"พอใช้ได้",IF(AY47 >0,"ค่อนข้างต่ำ","ตัดทิ้ง")))) -> พอใช้ได้ | AZ55: =IF(AZ47 >= 0.6,"ดีมาก",IF(AZ47 > 0.4,"ดี",IF(AZ47 >0.2,"พอใช้ได้",IF(AZ47 >0,"ค่อนข้างต่ำ","ตัดทิ้ง")))) -> ดี | BA55: =IF(BA47 >= 0.6,"ดีมาก",IF(BA47 > 0.4,"ดี",IF(BA47 >0.2,"พอใช้ได้",IF(BA47 >0,"ค่อนข้างต่ำ","ตัดทิ้ง")))) -> ดีมาก | BB55: =IF(BB47 >= 0.6,"ดีมาก",IF(BB47 > 0.4,"ดี",IF(BB47 >0.2,"พอใช้ได้",IF(BB47 >0,"ค่อนข้างต่ำ","ตัดทิ้ง")))) -> ตัดทิ้ง | BC55: =IF(BC47 >= 0.6,"ดีมาก",IF(BC47 > 0.4,"ดี",IF(BC47 >0.2,"พอใช้ได้",IF(BC47 >0,"ค่อนข้างต่ำ","ตัดทิ้ง")))) -> ดี | BD55: =IF(BD47 >= 0.6,"ดีมาก",IF(BD47 > 0.4,"ดี",IF(BD47 >0.2,"พอใช้ได้",IF(BD47 >0,"ค่อนข้างต่ำ","ตัดทิ้ง")))) -> ดี | BE55: =IF(BE47 >= 0.6,"ดีมาก",IF(BE47 > 0.4,"ดี",IF(BE47 >0.2,"พอใช้ได้",IF(BE47 >0,"ค่อนข้างต่ำ","ตัดทิ้ง")))) -> ดี | BF55: =IF(BF47 >= 0.6,"ดีมาก",IF(BF47 > 0.4,"ดี",IF(BF47 >0.2,"พอใช้ได้",IF(BF47 >0,"ค่อนข้างต่ำ","ตัดทิ้ง")))) -> พอใช้ได้ | BG55: =IF(BG47 >= 0.6,"ดีมาก",IF(BG47 > 0.4,"ดี",IF(BG47 >0.2,"พอใช้ได้",IF(BG47 >0,"ค่อนข้างต่ำ","ตัดทิ้ง")))) -> พอใช้ได้ | BH55: =IF(BH47 >= 0.6,"ดีมาก",IF(BH47 > 0.4,"ดี",IF(BH47 >0.2,"พอใช้ได้",IF(BH47 >0,"ค่อนข้างต่ำ","ตัดทิ้ง")))) -> พอใช้ได้ | BI55: =IF(BI47 >= 0.6,"ดีมาก",IF(BI47 > 0.4,"ดี",IF(BI47 >0.2,"พอใช้ได้",IF(BI47 >0,"ค่อนข้างต่ำ","ตัดทิ้ง")))) -> ดี | BJ55: =IF(BJ47 >= 0.6,"ดีมาก",IF(BJ47 > 0.4,"ดี",IF(BJ47 >0.2,"พอใช้ได้",IF(BJ47 >0,"ค่อนข้างต่ำ","ตัดทิ้ง")))) -> ดี | BK55: =IF(BK47 >= 0.6,"ดีมาก",IF(BK47 > 0.4,"ดี",IF(BK47 >0.2,"พอใช้ได้",IF(BK47 >0,"ค่อนข้างต่ำ","ตัดทิ้ง")))) -> พอใช้ได้ | BL55: =IF(BL47 >= 0.6,"ดีมาก",IF(BL47 > 0.4,"ดี",IF(BL47 >0.2,"พอใช้ได้",IF(BL47 >0,"ค่อนข้างต่ำ","ตัดทิ้ง")))) -> ตัดทิ้ง | BM55: =IF(BM47 >= 0.6,"ดีมาก",IF(BM47 > 0.4,"ดี",IF(BM47 >0.2,"พอใช้ได้",IF(BM47 >0,"ค่อนข้างต่ำ","ตัดทิ้ง")))) -> ตัดทิ้ง | BN55: =IF(BN47 >= 0.6,"ดีมาก",IF(BN47 > 0.4,"ดี",IF(BN47 >0.2,"พอใช้ได้",IF(BN47 >0,"ค่อนข้างต่ำ","ตัดทิ้ง")))) -> ตัดทิ้ง | BO55: =IF(BO47 >= 0.6,"ดีมาก",IF(BO47 > 0.4,"ดี",IF(BO47 >0.2,"พอใช้ได้",IF(BO47 >0,"ค่อนข้างต่ำ","ตัดทิ้ง")))) -> พอใช้ได้ | BP55: =IF(BP47 >= 0.6,"ดีมาก",IF(BP47 > 0.4,"ดี",IF(BP47 >0.2,"พอใช้ได้",IF(BP47 >0,"ค่อนข้างต่ำ","ตัดทิ้ง")))) -> พอใช้ได้ | BQ55: =IF(BQ47 >= 0.6,"ดีมาก",IF(BQ47 > 0.4,"ดี",IF(BQ47 >0.2,"พอใช้ได้",IF(BQ47 >0,"ค่อนข้างต่ำ","ตัดทิ้ง")))) -> ตัดทิ้ง | BR55: =IF(BR47 >= 0.6,"ดีมาก",IF(BR47 > 0.4,"ดี",IF(BR47 >0.2,"พอใช้ได้",IF(BR47 >0,"ค่อนข้างต่ำ","ตัดทิ้ง")))) -> พอใช้ได้ | BS55: =IF(BS47 >= 0.6,"ดีมาก",IF(BS47 > 0.4,"ดี",IF(BS47 >0.2,"พอใช้ได้",IF(BS47 >0,"ค่อนข้างต่ำ","ตัดทิ้ง")))) -> ตัดทิ้ง | BT55: =IF(BT47 >= 0.6,"ดีมาก",IF(BT47 > 0.4,"ดี",IF(BT47 >0.2,"พอใช้ได้",IF(BT47 >0,"ค่อนข้างต่ำ","ตัดทิ้ง")))) -> พอใช้ได้ | BU55: =IF(BU47 >= 0.6,"ดีมาก",IF(BU47 > 0.4,"ดี",IF(BU47 >0.2,"พอใช้ได้",IF(BU47 >0,"ค่อนข้างต่ำ","ตัดทิ้ง")))) -> ดีมาก | BV55: =IF(BV47 >= 0.6,"ดีมาก",IF(BV47 > 0.4,"ดี",IF(BV47 >0.2,"พอใช้ได้",IF(BV47 >0,"ค่อนข้างต่ำ","ตัดทิ้ง")))) -> ตัดทิ้ง | BW55: =IF(BW47 >= 0.6,"ดีมาก",IF(BW47 > 0.4,"ดี",IF(BW47 >0.2,"พอใช้ได้",IF(BW47 >0,"ค่อนข้างต่ำ","ตัดทิ้ง")))) -> พอใช้ได้ | BX55: =IF(BX47 >= 0.6,"ดีมาก",IF(BX47 > 0.4,"ดี",IF(BX47 >0.2,"พอใช้ได้",IF(BX47 >0,"ค่อนข้างต่ำ","ตัดทิ้ง")))) -> ตัดทิ้ง | BY55: =IF(BY47 >= 0.6,"ดีมาก",IF(BY47 > 0.4,"ดี",IF(BY47 >0.2,"พอใช้ได้",IF(BY47 >0,"ค่อนข้างต่ำ","ตัดทิ้ง")))) -> ดี | BZ55: =IF(BZ47 >= 0.6,"ดีมาก",IF(BZ47 > 0.4,"ดี",IF(BZ47 >0.2,"พอใช้ได้",IF(BZ47 >0,"ค่อนข้างต่ำ","ตัดทิ้ง")))) -> พอใช้ได้ | CA55: =IF(CA47 >= 0.6,"ดีมาก",IF(CA47 > 0.4,"ดี",IF(CA47 >0.2,"พอใช้ได้",IF(CA47 >0,"ค่อนข้างต่ำ","ตัดทิ้ง")))) -> ตัดทิ้ง | CB55: =IF(CB47 >= 0.6,"ดีมาก",IF(CB47 > 0.4,"ดี",IF(CB47 >0.2,"พอใช้ได้",IF(CB47 >0,"ค่อนข้างต่ำ","ตัดทิ้ง")))) -> ดีมาก | CC55: =IF(CC47 >= 0.6,"ดีมาก",IF(CC47 > 0.4,"ดี",IF(CC47 >0.2,"พอใช้ได้",IF(CC47 >0,"ค่อนข้างต่ำ","ตัดทิ้ง")))) -> ตัดทิ้ง | CD55: =IF(CD47 >= 0.6,"ดีมาก",IF(CD47 > 0.4,"ดี",IF(CD47 >0.2,"พอใช้ได้",IF(CD47 >0,"ค่อนข้างต่ำ","ตัดทิ้ง")))) -> ดี | CE55: =IF(CE47 >= 0.6,"ดีมาก",IF(CE47 > 0.4,"ดี",IF(CE47 >0.2,"พอใช้ได้",IF(CE47 >0,"ค่อนข้างต่ำ","ตัดทิ้ง")))) -> ดี | CF55: =IF(CF47 >= 0.6,"ดีมาก",IF(CF47 > 0.4,"ดี",IF(CF47 >0.2,"พอใช้ได้",IF(CF47 >0,"ค่อนข้างต่ำ","ตัดทิ้ง")))) -> ดี | CG55: =IF(CG47 >= 0.6,"ดีมาก",IF(CG47 > 0.4,"ดี",IF(CG47 >0.2,"พอใช้ได้",IF(CG47 >0,"ค่อนข้างต่ำ","ตัดทิ้ง")))) -> พอใช้ได้ | CH55: =IF(CH47 >= 0.6,"ดีมาก",IF(CH47 > 0.4,"ดี",IF(CH47 >0.2,"พอใช้ได้",IF(CH47 >0,"ค่อนข้างต่ำ","ตัดทิ้ง")))) -> พอใช้ได้ | CI55: =IF(CI47 >= 0.6,"ดีมาก",IF(CI47 > 0.4,"ดี",IF(CI47 >0.2,"พอใช้ได้",IF(CI47 >0,"ค่อนข้างต่ำ","ตัดทิ้ง")))) -> พอใช้ได้ | CJ55: =IF(CJ47 >= 0.6,"ดีมาก",IF(CJ47 > 0.4,"ดี",IF(CJ47 >0.2,"พอใช้ได้",IF(CJ47 >0,"ค่อนข้างต่ำ","ตัดทิ้ง")))) -> ดี | CK55: =IF(CK47 >= 0.6,"ดีมาก",IF(CK47 > 0.4,"ดี",IF(CK47 >0.2,"พอใช้ได้",IF(CK47 >0,"ค่อนข้างต่ำ","ตัดทิ้ง")))) -> ดี | CL55: =IF(CL47 >= 0.6,"ดีมาก",IF(CL47 > 0.4,"ดี",IF(CL47 >0.2,"พอใช้ได้",IF(CL47 >0,"ค่อนข้างต่ำ","ตัดทิ้ง")))) -> พอใช้ได้ | CM55: =IF(CM47 >= 0.6,"ดีมาก",IF(CM47 > 0.4,"ดี",IF(CM47 >0.2,"พอใช้ได้",IF(CM47 >0,"ค่อนข้างต่ำ","ตัดทิ้ง")))) -> ตัดทิ้ง | CN55: =IF(CN47 >= 0.6,"ดีมาก",IF(CN47 > 0.4,"ดี",IF(CN47 >0.2,"พอใช้ได้",IF(CN47 >0,"ค่อนข้างต่ำ","ตัดทิ้ง")))) -> ตัดทิ้ง | CO55: =IF(CO47 >= 0.6,"ดีมาก",IF(CO47 > 0.4,"ดี",IF(CO47 >0.2,"พอใช้ได้",IF(CO47 >0,"ค่อนข้างต่ำ","ตัดทิ้ง")))) -> ตัดทิ้ง | CP55: =IF(CP47 >= 0.6,"ดีมาก",IF(CP47 > 0.4,"ดี",IF(CP47 >0.2,"พอใช้ได้",IF(CP47 >0,"ค่อนข้างต่ำ","ตัดทิ้ง")))) -> พอใช้ได้ | CQ55: =IF(CQ47 >= 0.6,"ดีมาก",IF(CQ47 > 0.4,"ดี",IF(CQ47 >0.2,"พอใช้ได้",IF(CQ47 >0,"ค่อนข้างต่ำ","ตัดทิ้ง")))) -> พอใช้ได้ | CR55: =IF(CR47 >= 0.6,"ดีมาก",IF(CR47 > 0.4,"ดี",IF(CR47 >0.2,"พอใช้ได้",IF(CR47 >0,"ค่อนข้างต่ำ","ตัดทิ้ง")))) -> ตัดทิ้ง | CS55: =IF(CS47 >= 0.6,"ดีมาก",IF(CS47 > 0.4,"ดี",IF(CS47 >0.2,"พอใช้ได้",IF(CS47 >0,"ค่อนข้างต่ำ","ตัดทิ้ง")))) -> พอใช้ได้ | CT55: =IF(CT47 >= 0.6,"ดีมาก",IF(CT47 > 0.4,"ดี",IF(CT47 >0.2,"พอใช้ได้",IF(CT47 >0,"ค่อนข้างต่ำ","ตัดทิ้ง")))) -> ตัดทิ้ง | CU55: =IF(CU47 >= 0.6,"ดีมาก",IF(CU47 > 0.4,"ดี",IF(CU47 >0.2,"พอใช้ได้",IF(CU47 >0,"ค่อนข้างต่ำ","ตัดทิ้ง")))) -> พอใช้ได้ | CV55: =IF(CV47 >= 0.6,"ดีมาก",IF(CV47 > 0.4,"ดี",IF(CV47 >0.2,"พอใช้ได้",IF(CV47 >0,"ค่อนข้างต่ำ","ตัดทิ้ง")))) -> ดีมาก | CW55: =IF(CW47 >= 0.6,"ดีมาก",IF(CW47 > 0.4,"ดี",IF(CW47 >0.2,"พอใช้ได้",IF(CW47 >0,"ค่อนข้างต่ำ","ตัดทิ้ง")))) -> ดี | CX55: =IF(CX47 >= 0.6,"ดีมาก",IF(CX47 > 0.4,"ดี",IF(CX47 >0.2,"พอใช้ได้",IF(CX47 >0,"ค่อนข้างต่ำ","ตัดทิ้ง")))) -> พอใช้ได้
